Ref No,Fund Type,Dept,Cost Centre Description    ,Description    ,Creditor Name    ,GL Code Net Amount,Payment date        
2,Revenue,CAHD,Central - Commissioned Services,Permanent Residential,1 St Georges House,13333.52, 01-Jun-2021
3,Revenue,CAHD,Central - Commissioned Services,Permanent Residential,1 St Georges House,13333.52, 29-Jun-2021
4,Revenue,CAHD,Early Years High Needs Support,Other Private Contractors,100 Acre Wood Day Nursery,616.50, 22-Jun-2021
5,Revenue,CAHD,CSC - Asylum Seekers - Unaccompanied,Client Transport,1625 Independent People,1071.57, 17-Jun-2021
6,Revenue,CAHD,CSC - Asylum Seekers - Unaccompanied,Client Transport,1625 Independent People,1500.00, 25-Jun-2021
7,Revenue,CAHD,Supporting People Programme,Grants to Voluntary Bodies,1625 Independent People,15167.00, 01-Jun-2021
8,Revenue,CAHD,South - Commissioned Services,Permanent Residential,2Nd Floor Building,5630.76, 01-Jun-2021
9,Revenue,CAHD,South - Commissioned Services,Permanent Residential,2Nd Floor Building,5630.76, 29-Jun-2021
10,Revenue,CAHD,South - Commissioned Services,Permanent Residential,2Nd Floor Building,2806.12, 01-Jun-2021
11,Revenue,CAHD,South - Commissioned Services,Permanent Residential,2Nd Floor Building,2806.12, 29-Jun-2021
12,Revenue,CAHD,Central - Commissioned Services,Other Small Contracts,3 Trees Community Support Ltd,7535.78, 03-Jun-2021
13,Revenue,CAHD,Central - Commissioned Services,Supported Living,3 Trees Community Support Ltd,2994.89, 03-Jun-2021
14,Revenue,CAHD,Central - Commissioned Services,Other Small Contracts,3 Trees Community Support Ltd,7654.88, 11-Jun-2021
15,Revenue,CAHD,Central - Commissioned Services,Supported Living,3 Trees Community Support Ltd,3003.60, 11-Jun-2021
16,Revenue,CAHD,Central - Commissioned Services,Other Small Contracts,3 Trees Community Support Ltd,7530.15, 18-Jun-2021
17,Revenue,CAHD,Central - Commissioned Services,Supported Living,3 Trees Community Support Ltd,3005.78, 18-Jun-2021
18,Revenue,CAHD,Central - Commissioned Services,Other Small Contracts,3 Trees Community Support Ltd,7528.64, 23-Jun-2021
19,Revenue,CAHD,Central - Commissioned Services,Supported Living,3 Trees Community Support Ltd,3008.32, 23-Jun-2021
20,Revenue,CAHD,Central - Commissioned Services,Other Small Contracts,3 Trees Community Support Ltd,7530.69, 29-Jun-2021
21,Revenue,CAHD,Central - Commissioned Services,Supported Living,3 Trees Community Support Ltd,3007.23, 29-Jun-2021
22,Revenue,CAHD,Central - Commissioned Services,Respite Emergency - Residential,3Rd Floor  The Aspect,4160.00, 01-Jun-2021
23,Revenue,CAHD,Central - Commissioned Services,Permanent Residential,5Th Floor Harlech Court,15254.92, 01-Jun-2021
24,Revenue,CAHD,Central - Commissioned Services,Permanent Residential,5Th Floor Harlech Court,15254.92, 29-Jun-2021
25,Revenue,CAHD,South - Commissioned Services,Permanent Residential,5Th Floor Harlech Court,17391.48, 01-Jun-2021
26,Revenue,CAHD,South - Commissioned Services,Permanent Residential,5Th Floor Harlech Court,17391.48, 29-Jun-2021
27,Revenue,CAHD,South - Commissioned Services,Permanent Residential,5Th Floor Harlech Court,44699.00, 01-Jun-2021
28,Revenue,CAHD,South - Commissioned Services,Permanent Residential,5Th Floor Harlech Court,27541.50, 01-Jun-2021
29,Revenue,CAHD,South - Commissioned Services,Permanent Residential,5Th Floor Harlech Court,22863.55, 01-Jun-2021
30,Revenue,CAHD,South - Commissioned Services,Permanent Residential,5Th Floor Harlech Court,18290.84, 01-Jun-2021
31,Revenue,CAHD,South - Commissioned Services,Permanent Residential,5Th Floor Harlech Court,18290.84, 29-Jun-2021
32,Revenue,CAHD,S28A cases,Permanent Residential,5Th Floor Harlech Court,14223.25, 01-Jun-2021
33,Revenue,CAHD,S28A cases,Permanent Residential,5Th Floor Harlech Court,11378.60, 01-Jun-2021
34,Revenue,CAHD,S28A cases,Permanent Residential,5Th Floor Harlech Court,11378.60, 29-Jun-2021
35,Revenue,CAHD,South - Commissioned Services,Permanent Residential,5Th Floor Harlech Court,11933.40, 01-Jun-2021
36,Revenue,CAHD,South - Commissioned Services,Permanent Residential,5Th Floor Harlech Court,11933.40, 29-Jun-2021
37,Revenue,CAHD,North - Community based support,Permanent Residential,5Th Floor Harlech Court,12498.56, 01-Jun-2021
38,Revenue,CAHD,North - Community based support,Permanent Residential,5Th Floor Harlech Court,12498.56, 29-Jun-2021
39,Revenue,CAHD,North - Community based support,Permanent Residential,5Th Floor Harlech Court,10537.24, 01-Jun-2021
40,Revenue,CAHD,North - Community based support,Permanent Residential,5Th Floor Harlech Court,10537.24, 29-Jun-2021
41,Revenue,CAHD,North - Community based support,Permanent Residential,5Th Floor Harlech Court,9071.12, 01-Jun-2021
42,Revenue,CAHD,North - Community based support,Permanent Residential,5Th Floor Harlech Court,9071.12, 29-Jun-2021
43,Revenue,CAHD,Early Years Pupil Premium Grant,Preventative Assistance,Abacus @ Baileys Court Activity Centre,516.75, 25-Jun-2021
44,Revenue,CAHD,EARLY YEARS DEPRIVATION PAYMENT,Preventative Assistance,Abacus @ Baileys Court Activity Centre,547.26, 25-Jun-2021
45,Revenue,CAHD,Early Years Pupil Premium Grant,Preventative Assistance,Abacus Pre School @ Mangotsfield,516.75, 25-Jun-2021
46,Revenue,CAHD,EARLY YEARS DEPRIVATION PAYMENT,Preventative Assistance,Abacus Pre School @ Mangotsfield,547.26, 25-Jun-2021
47,Revenue,CAHD,Early Years High Needs Support,Other Private Contractors,Abacus Pre-School (Meadowbrook),880.71, 22-Jun-2021
48,Revenue,CAHD,EARLY YEARS DEPRIVATION PAYMENT,Preventative Assistance,Abacus Pre-School (Meadowbrook),529.30, 25-Jun-2021
49,Revenue,CAHD,Early Years Inclusion Fund,Other Public Bodies,Abbeywood Tots Day Nursery Ltd Flying Start,2450.00, 30-Jun-2021
50,Revenue,CAHD,South - Commissioned Services,Permanent Nursing,Acacia House,2996.00, 01-Jun-2021
51,Revenue,CAHD,South - Commissioned Services,Permanent Nursing,Acacia House,2996.00, 29-Jun-2021
52,Revenue,CAHD,CSC - Residential Placements,Permanent Residential,Acorn Care & Education Ltd,15360.00, 25-Jun-2021
53,Revenue,CAHD,Jointly Funded H&SC Packages,Permanent Residential,Acorn Care Providers,2366.36, 01-Jun-2021
54,Revenue,CAHD,Section 117 Placements MH Younger,Permanent Residential,Acorn Care Providers,5605.08, 01-Jun-2021
55,Revenue,CAHD,Jointly Funded H&SC Packages,Permanent Residential,Acorn Care Providers,2366.36, 29-Jun-2021
56,Revenue,CAHD,Section 117 Placements MH Younger,Permanent Residential,Acorn Care Providers,5605.08, 29-Jun-2021
57,Revenue,CAHD,North - S117,Permanent Residential,Acorn Care Providers,4067.36, 01-Jun-2021
58,Revenue,CAHD,Jointly Funded H&SC Packages,Permanent Residential,Acorn Care Providers,2193.40, 01-Jun-2021
59,Revenue,CAHD,North - S117,Permanent Residential,Acorn Care Providers,4067.36, 29-Jun-2021
60,Revenue,CAHD,Jointly Funded H&SC Packages,Permanent Residential,Acorn Care Providers,2193.40, 29-Jun-2021
61,Revenue,CAHD,MH Purchasing - Younger,Permanent Residential,Acorn Care Providers,6528.83, 01-Jun-2021
62,Revenue,CAHD,Jointly Funded H&SC Packages,Permanent Residential,Acorn Care Providers,3515.53, 01-Jun-2021
63,Revenue,CAHD,MH Purchasing - Younger,Permanent Residential,Acorn Care Providers,6528.83, 29-Jun-2021
64,Revenue,CAHD,Jointly Funded H&SC Packages,Permanent Residential,Acorn Care Providers,3515.53, 29-Jun-2021
65,Revenue,CAHD,MH Purchasing - Younger,Permanent Residential,Acorn Care Providers,6411.00, 01-Jun-2021
66,Revenue,CAHD,MH Purchasing - Younger,Permanent Residential,Acorn Care Providers,6411.00, 29-Jun-2021
67,Revenue,CAHD,Training - Adult Services,Training Expenses,Acorn Health & Safety Limited,477.00, 10-Jun-2021
68,Revenue,CAHD,CSC - Agency Fostering,Foster Parent Allowances,Action for Children,3897.01, 18-Jun-2021
69,Revenue,CAHD,18-25 Year Olds,Permanent Residential,Action on Hearing Loss,5091.08, 01-Jun-2021
70,Revenue,CAHD,18-25 Year Olds,Permanent Residential,Action on Hearing Loss,5091.08, 29-Jun-2021
71,Revenue,CAHD,Research & Conferences,Membership Fees,ADASS,2366.00, 30-Jun-2021
72,Revenue,CAHD,South - Commissioned Services,Respite Planned - Nursing,Administration And Revenue Centre,1064.00, 01-Jun-2021
73,Revenue,CAHD,South - Commissioned Services,Permanent Nursing,Administration And Revenue Centre,2502.20, 01-Jun-2021
74,Revenue,CAHD,South - Commissioned Services,Permanent Nursing,Administration And Revenue Centre,2502.20, 29-Jun-2021
75,Revenue,CAHD,South - Commissioned Services,Permanent Nursing,Administration And Revenue Centre,3127.75, 01-Jun-2021
76,Revenue,CAHD,South - Commissioned Services,Permanent Nursing,Administration And Revenue Centre,2502.20, 01-Jun-2021
77,Revenue,CAHD,South Glos Users in South Glos Homes,Permanent Nursing,Administration And Revenue Centre,750.40, 01-Jun-2021
78,Revenue,CAHD,South - Commissioned Services,Fees & Charges Income - General,Administration And Revenue Centre,847.72, 01-Jun-2021
79,Revenue,CAHD,South - Commissioned Services,Permanent Nursing,Administration And Revenue Centre,2502.20, 29-Jun-2021
80,Revenue,CAHD,South Glos Users in South Glos Homes,Permanent Nursing,Administration And Revenue Centre,750.40, 29-Jun-2021
81,Revenue,CAHD,South - Commissioned Services,Permanent Residential,Administration And Revenue Centre,2569.56, 01-Jun-2021
82,Revenue,CAHD,South - Commissioned Services,Permanent Residential,Administration And Revenue Centre,2569.56, 29-Jun-2021
83,Revenue,CAHD,South Glos Users in South Glos Homes,Permanent Nursing,Administration And Revenue Centre,750.40, 01-Jun-2021
84,Revenue,CAHD,South Glos Users in South Glos Homes,Permanent Nursing,Administration And Revenue Centre,750.40, 29-Jun-2021
85,Revenue,CAHD,South - Commissioned Services,Permanent Nursing,Administration And Revenue Centre,3017.44, 01-Jun-2021
86,Revenue,CAHD,South Glos Users in South Glos Homes,Permanent Nursing,Administration And Revenue Centre,750.40, 01-Jun-2021
87,Revenue,CAHD,South - Commissioned Services,Permanent Nursing,Administration And Revenue Centre,3017.44, 29-Jun-2021
88,Revenue,CAHD,South Glos Users in South Glos Homes,Permanent Nursing,Administration And Revenue Centre,750.40, 29-Jun-2021
89,Revenue,CAHD,South Glos Users in South Glos Homes,Permanent Nursing,Administration And Revenue Centre,750.40, 01-Jun-2021
90,Revenue,CAHD,South Glos Users in South Glos Homes,Permanent Nursing,Administration And Revenue Centre,750.40, 29-Jun-2021
91,Revenue,CAHD,South - Commissioned Services,Permanent Residential,Administration And Revenue Centre,3400.00, 01-Jun-2021
92,Revenue,CAHD,South - Commissioned Services,Permanent Residential,Administration And Revenue Centre,3400.00, 29-Jun-2021
93,Revenue,CAHD,North - Community based support,Permanent Residential,Administration And Revenue Centre,3800.00, 01-Jun-2021
94,Revenue,CAHD,North - Community based support,Permanent Residential,Administration And Revenue Centre,3800.00, 01-Jun-2021
95,Revenue,CAHD,North - Community based support,Permanent Residential,Administration And Revenue Centre,3800.00, 29-Jun-2021
96,Revenue,CAHD,South Glos Users in South Glos Homes,Permanent Nursing,Administration And Revenue Centre,750.40, 01-Jun-2021
97,Revenue,CAHD,South Glos Users in South Glos Homes,Permanent Nursing,Administration And Revenue Centre,750.40, 29-Jun-2021
98,Revenue,CAHD,South - Commissioned Services,Permanent Residential,Administration And Revenue Centre,4207.50, 01-Jun-2021
99,Revenue,CAHD,South - Commissioned Services,Permanent Residential,Administration And Revenue Centre,3366.00, 01-Jun-2021
100,Revenue,CAHD,South - Commissioned Services,Fees & Charges Income - General,Administration And Revenue Centre,1131.18, 01-Jun-2021
101,Revenue,CAHD,South - Commissioned Services,Permanent Residential,Administration And Revenue Centre,3366.00, 29-Jun-2021
102,Revenue,CAHD,South - Commissioned Services,Permanent Nursing,Administration And Revenue Centre,2991.84, 01-Jun-2021
103,Revenue,CAHD,South - Commissioned Services,Permanent Nursing,Administration And Revenue Centre,2991.84, 29-Jun-2021
104,Revenue,CAHD,South - Commissioned Services,Permanent Nursing,Administration And Revenue Centre,7803.00, 29-Jun-2021
105,Revenue,CAHD,South - Commissioned Services,Permanent Nursing,Administration And Revenue Centre,3468.00, 29-Jun-2021
106,Revenue,CAHD,South - Commissioned Services,Permanent Residential,Administration And Revenue Centre,3263.96, 01-Jun-2021
107,Revenue,CAHD,South - Commissioned Services,Permanent Residential,Administration And Revenue Centre,3263.96, 29-Jun-2021
108,Revenue,CAHD,South - Commissioned Services,Permanent Residential,Administration And Revenue Centre,3263.96, 01-Jun-2021
109,Revenue,CAHD,South - Commissioned Services,Permanent Residential,Administration And Revenue Centre,3263.96, 29-Jun-2021
110,Revenue,CAHD,South - Commissioned Services,Permanent Nursing,Administration And Revenue Centre,2569.56, 01-Jun-2021
111,Revenue,CAHD,South Glos Users in South Glos Homes,Permanent Nursing,Administration And Revenue Centre,750.40, 01-Jun-2021
112,Revenue,CAHD,South - Commissioned Services,Permanent Nursing,Administration And Revenue Centre,2569.56, 29-Jun-2021
113,Revenue,CAHD,South Glos Users in South Glos Homes,Permanent Nursing,Administration And Revenue Centre,750.40, 29-Jun-2021
114,Revenue,CAHD,South - Commissioned Services,Permanent Nursing,Administration And Revenue Centre,2502.20, 01-Jun-2021
115,Revenue,CAHD,South Glos Users in South Glos Homes,Permanent Nursing,Administration And Revenue Centre,750.40, 01-Jun-2021
116,Revenue,CAHD,South - Commissioned Services,Permanent Nursing,Administration And Revenue Centre,2502.20, 29-Jun-2021
117,Revenue,CAHD,South Glos Users in South Glos Homes,Permanent Nursing,Administration And Revenue Centre,750.40, 29-Jun-2021
118,Revenue,CAHD,South - Commissioned Services,Permanent Nursing,Administration And Revenue Centre,2502.20, 01-Jun-2021
119,Revenue,CAHD,South Glos Users in South Glos Homes,Permanent Nursing,Administration And Revenue Centre,750.40, 01-Jun-2021
120,Revenue,CAHD,South - Commissioned Services,Permanent Nursing,Administration And Revenue Centre,2502.20, 29-Jun-2021
121,Revenue,CAHD,South Glos Users in South Glos Homes,Permanent Nursing,Administration And Revenue Centre,750.40, 29-Jun-2021
122,Revenue,CAHD,South - Commissioned Services,Permanent Residential,Administration And Revenue Centre,3263.96, 01-Jun-2021
123,Revenue,CAHD,South - Commissioned Services,Permanent Residential,Administration And Revenue Centre,3263.96, 29-Jun-2021
124,Revenue,CAHD,South - Commissioned Services,Permanent Nursing,Administration And Revenue Centre,2502.20, 01-Jun-2021
125,Revenue,CAHD,South Glos Users in South Glos Homes,Permanent Nursing,Administration And Revenue Centre,750.40, 01-Jun-2021
126,Revenue,CAHD,South - Commissioned Services,Permanent Nursing,Administration And Revenue Centre,2502.20, 29-Jun-2021
127,Revenue,CAHD,South Glos Users in South Glos Homes,Permanent Nursing,Administration And Revenue Centre,750.40, 29-Jun-2021
128,Revenue,CAHD,South Glos Users in South Glos Homes,Permanent Nursing,Administration And Revenue Centre,1983.20, 29-Jun-2021
129,Revenue,CAHD,South Glos Users in South Glos Homes,Permanent Nursing,Administration And Revenue Centre,1865.47, 29-Jun-2021
130,Revenue,CAHD,South Glos Users in South Glos Homes,Permanent Nursing,Administration And Revenue Centre,750.40, 29-Jun-2021
131,Revenue,CAHD,South - Commissioned Services,Permanent Residential,Administration And Revenue Centre,3017.44, 01-Jun-2021
132,Revenue,CAHD,South Glos Users in South Glos Homes,Permanent Nursing,Administration And Revenue Centre,750.40, 01-Jun-2021
133,Revenue,CAHD,South - Commissioned Services,Permanent Residential,Administration And Revenue Centre,3017.44, 29-Jun-2021
134,Revenue,CAHD,South Glos Users in South Glos Homes,Permanent Nursing,Administration And Revenue Centre,750.40, 29-Jun-2021
135,Revenue,CAHD,South - Commissioned Services,Other Small Contracts,Advantedge Commercial Finance Limited,952.56, 15-Jun-2021
136,Revenue,CAHD,South - Commissioned Services,Other Small Contracts,Advantedge Commercial Finance Limited,583.20, 15-Jun-2021
137,Revenue,CAHD,South - Commissioned Services,Other Small Contracts,Advantedge Commercial Finance Limited,1244.16, 15-Jun-2021
138,Revenue,CAHD,South - Commissioned Services,Other Small Contracts,Advantedge Commercial Finance Limited,777.60, 15-Jun-2021
139,Revenue,CAHD,South - Commissioned Services,Other Small Contracts,Advantedge Commercial Finance Limited,690.12, 15-Jun-2021
140,Revenue,CAHD,South - Commissioned Services,Other Small Contracts,Advantedge Commercial Finance Limited,588.06, 15-Jun-2021
141,Revenue,CAHD,South - Commissioned Services,Other Small Contracts,Advantedge Commercial Finance Limited,1224.72, 03-Jun-2021
142,Revenue,CAHD,South - Commissioned Services,Other Small Contracts,Advantedge Commercial Finance Limited,680.40, 03-Jun-2021
143,Revenue,CAHD,South - Commissioned Services,Other Small Contracts,Advantedge Commercial Finance Limited,816.48, 15-Jun-2021
144,Revenue,CAHD,South - Commissioned Services,Other Small Contracts,Advantedge Commercial Finance Limited,544.32, 15-Jun-2021
145,Revenue,CAHD,South - Commissioned Services,Other Small Contracts,Advantedge Commercial Finance Limited,845.64, 15-Jun-2021
146,Revenue,CAHD,South - Commissioned Services,Other Small Contracts,Advantedge Commercial Finance Limited,1326.78, 15-Jun-2021
147,Revenue,CAHD,South - Commissioned Services,Other Small Contracts,Advantedge Commercial Finance Limited,1238.58, 10-Jun-2021
148,Revenue,CAHD,South - Commissioned Services,Other Small Contracts,Advantedge Commercial Finance Limited,1100.96, 10-Jun-2021
149,Revenue,CAHD,South - Commissioned Services,Other Small Contracts,Advantedge Commercial Finance Limited,688.10, 10-Jun-2021
150,Revenue,CAHD,South - Commissioned Services,Other Small Contracts,Advantedge Commercial Finance Limited,2467.22, 10-Jun-2021
151,Revenue,CAHD,South - Commissioned Services,Other Small Contracts,Advantedge Commercial Finance Limited,780.99, 04-Jun-2021
152,Revenue,CAHD,South - Commissioned Services,Other Small Contracts,Advantedge Commercial Finance Limited,609.68, 10-Jun-2021
153,Revenue,CAHD,South - Commissioned Services,Other Small Contracts,Advantedge Commercial Finance Limited,983.00, 04-Jun-2021
154,Revenue,CAHD,South - Commissioned Services,Other Small Contracts,Advantedge Commercial Finance Limited,757.02, 10-Jun-2021
155,Revenue,CAHD,South - Commissioned Services,Other Small Contracts,Advantedge Commercial Finance Limited,550.48, 10-Jun-2021
156,Revenue,CAHD,South - Commissioned Services,Other Small Contracts,Advantedge Commercial Finance Limited,820.86, 10-Jun-2021
157,Revenue,CAHD,South - Commissioned Services,Other Small Contracts,Advantedge Commercial Finance Limited,1376.20, 10-Jun-2021
158,Revenue,CAHD,Covid - ASC - Infection Control,Grants to Voluntary Bodies,Advantedge Commercial Finance Limited,2813.20, 23-Jun-2021
159,Revenue,CAHD,South - Commissioned Services,Day Care / Social Activities,Age Concern,648.64, 01-Jun-2021
160,Revenue,CAHD,South - Commissioned Services,Day Care / Social Activities,Age Concern,648.64, 29-Jun-2021
161,Revenue,CAHD,Central - Commissioned Services,Day Care / Social Activities,Age Concern,559.36, 01-Jun-2021
162,Revenue,CAHD,Central - Commissioned Services,Day Care / Social Activities,Age Concern,559.36, 29-Jun-2021
163,Revenue,CAHD,Central - Commissioned Services,Day Care / Social Activities,Age Concern,559.36, 01-Jun-2021
164,Revenue,CAHD,Central - Commissioned Services,Day Care / Social Activities,Age Concern,559.36, 29-Jun-2021
165,Revenue,CAHD,Community Support - North,Preventative Assistance,Agincare Live-in South West Ltd,2369.92, 04-Jun-2021
166,Revenue,CAHD,Community Support - North,Preventative Assistance,Agincare Live-in South West Ltd,2369.92, 18-Jun-2021
167,Revenue,CAHD,South - Commissioned Services,Other Small Contracts,Agincare UK Limited,701.48, 03-Jun-2021
168,Revenue,CAHD,Younger MH non-res purchasing,Other Small Contracts,Agincare UK Limited,158.08, 03-Jun-2021
169,Revenue,CAHD,South - Commissioned Services,Other Small Contracts,Agincare UK Limited,1086.80, 03-Jun-2021
170,Revenue,CAHD,Younger MH non-res purchasing,Other Small Contracts,Agincare UK Limited,158.08, 03-Jun-2021
171,Revenue,CAHD,South - Commissioned Services,Other Small Contracts,Agincare UK Limited,587.86, 03-Jun-2021
172,Revenue,CAHD,Younger MH non-res purchasing,Other Small Contracts,Agincare UK Limited,138.32, 03-Jun-2021
173,Revenue,CAHD,South - Commissioned Services,Other Small Contracts,Agincare UK Limited,533.52, 18-Jun-2021
174,Revenue,CAHD,Younger MH non-res purchasing,Other Small Contracts,Agincare UK Limited,158.08, 18-Jun-2021
175,Revenue,CAHD,South - Commissioned Services,Other Small Contracts,Agincare UK Limited,494.00, 18-Jun-2021
176,Revenue,CAHD,Younger MH non-res purchasing,Other Small Contracts,Agincare UK Limited,158.08, 18-Jun-2021
177,Revenue,CAHD,Extra Care Housing,Private & Voluntary Home Care,Agincare UK Limited,24448.84, 01-Jun-2021
178,Revenue,CAHD,Extra Care Housing,Private & Voluntary Home Care,Agincare UK Limited,11763.39, 01-Jun-2021
179,Revenue,CAHD,Extra Care Housing,Private & Voluntary Home Care,Agincare UK Limited,29078.70, 04-Jun-2021
180,Revenue,CAHD,Extra Care Housing,Private & Voluntary Home Care,Agincare UK Limited,1319.83, 04-Jun-2021
181,Revenue,CAHD,Extra Care Housing,Private & Voluntary Home Care,Agincare UK Limited,1687.67, 04-Jun-2021
182,Revenue,CAHD,Extra Care Housing,Private & Voluntary Home Care,Agincare UK Limited,2883.83, 04-Jun-2021
183,Revenue,CAHD,Extra Care Housing,Private & Voluntary Home Care,Agincare UK Limited,2909.24, 04-Jun-2021
184,Revenue,CAHD,Prison Assessments & Costs,Other Supplies & Services,Agincare UK Limited,3468.50, 22-Jun-2021
185,Revenue,CAHD,Statemented Support Payments to OLAs,Other L.A.s - General,Air Balloon Hill Primary School,801.92, 22-Jun-2021
186,Revenue,CAHD,CSC - Adoption Support Fund,Post Adoption,Individual,2431.00, 10-Jun-2021
187,Revenue,CAHD,Covid 19 -Adult Social Care,Other Small Contracts,AliMo Care Ltd,9.78, 03-Jun-2021
188,Revenue,CAHD,South - Commissioned Services,Other Small Contracts,AliMo Care Ltd,904.65, 03-Jun-2021
189,Revenue,CAHD,North - Community based support,Other Small Contracts,AliMo Care Ltd,53.79, 03-Jun-2021
190,Revenue,CAHD,Covid 19 -Adult Social Care,Other Small Contracts,AliMo Care Ltd,9.78, 03-Jun-2021
191,Revenue,CAHD,South - Commissioned Services,Other Small Contracts,AliMo Care Ltd,855.75, 03-Jun-2021
192,Revenue,CAHD,North - Community based support,Other Small Contracts,AliMo Care Ltd,127.14, 03-Jun-2021
193,Revenue,CAHD,Covid 19 -Adult Social Care,Other Small Contracts,AliMo Care Ltd,9.78, 18-Jun-2021
194,Revenue,CAHD,South - Commissioned Services,Other Small Contracts,AliMo Care Ltd,919.32, 18-Jun-2021
195,Revenue,CAHD,North - Community based support,Other Small Contracts,AliMo Care Ltd,107.58, 18-Jun-2021
196,Revenue,CAHD,South - Commissioned Services,Other Small Contracts,AliMo Care Ltd,860.64, 21-Jun-2021
197,Revenue,CAHD,North - Community based support,Other Small Contracts,AliMo Care Ltd,122.25, 21-Jun-2021
198,Revenue,CAHD,Covid - ASC - Infection Control,Grants to Voluntary Bodies,AliMo Care Ltd,4145.77, 02-Jun-2021
199,Revenue,CAHD,Pathway 1 - Re-Ablement Home Care,Other Small Contracts,AliMo Care Ltd,811.74, 14-Jun-2021
200,Revenue,CAHD,Central - Commissioned Services,Permanent Residential,Alvony House Residential Care Home,3000.00, 01-Jun-2021
201,Revenue,CAHD,Central - Commissioned Services,Permanent Residential,Alvony House Residential Care Home,3000.00, 29-Jun-2021
202,Revenue,CAHD,CSC - Residential Placements,Permanent Residential,Amberleigh Care Ltd,17439.70, 15-Jun-2021
203,Revenue,CAHD,CSC - Residential Placements,Permanent Residential,Amberleigh Care Ltd,17439.71, 15-Jun-2021
204,Revenue,CAHD,CSC - Residential Placements,Permanent Residential,Amberleigh Care Ltd,16877.14, 25-Jun-2021
205,Revenue,CAHD,CSC - Residential Placements,Permanent Residential,Amberleigh Care Ltd,16877.14, 30-Jun-2021
206,Revenue,CAHD,Early Years High Needs Support,Other Private Contractors,Ambourne House Day Nursery,616.50, 22-Jun-2021
207,Revenue,CAHD,CSC - Agency Fostering,Foster Parent Allowances,Amicus Foster Care Ltd,4796.44, 03-Jun-2021
208,Revenue,CAHD,Early Years Inclusion Fund,Other Public Bodies,Anchor Day Nursery Ltd,3600.00, 29-Jun-2021
209,Revenue,CAHD,Early Years Inclusion Fund,Other Public Bodies,Anchor Day Nursery Ltd,1117.00, 30-Jun-2021
210,Revenue,CAHD,South - Commissioned Services,Other Supplies & Services,Anchor Hanover Group,1603.17, 10-Jun-2021
211,Revenue,CAHD,South - Commissioned Services,Other Supplies & Services,Anchor Hanover Group,2515.79, 10-Jun-2021
212,Revenue,CAHD,Supporting People Programme,Grants to Voluntary Bodies,Anchor Hanover Group,1039.00, 01-Jun-2021
213,Revenue,CAHD,Supporting People Programme,Grants to Voluntary Bodies,Anchor Hanover Group,847.00, 01-Jun-2021
214,Revenue,CAHD,Social Lettings Agency,Rent,Individual,822.73, 18-Jun-2021
215,Revenue,CAHD,Social Lettings Agency,Fees & Charges Income - General,Individual,-65.82, 18-Jun-2021
216,Revenue,CAHD,Community Support - South,Preventative Assistance,Apollo Cleaning Solutions,445.00, 24-Jun-2021
217,Revenue,CAHD,Younger MH non-res purchasing,Supported Living,Archcare Rehab Limited,2002.44, 01-Jun-2021
218,Revenue,CAHD,Younger MH non-res purchasing,Supported Living,Archcare Rehab Limited,2002.44, 29-Jun-2021
219,Revenue,CAHD,North - Community based support,Permanent Residential,Argentum Lodge,12162.93, 01-Jun-2021
220,Revenue,CAHD,North - Community based support,Permanent Residential,Argentum Lodge,6169.60, 01-Jun-2021
221,Revenue,CAHD,North - Community based support,Permanent Residential,Argentum Lodge,1057.65, 01-Jun-2021
222,Revenue,CAHD,North - Community based support,Fees & Charges Income - General,Argentum Lodge,2134.58, 01-Jun-2021
223,Revenue,CAHD,North - Community based support,Permanent Nursing,Argentum Lodge,4000.00, 01-Jun-2021
224,Revenue,CAHD,North - Community based support,Permanent Nursing,Argentum Lodge,4000.00, 29-Jun-2021
225,Revenue,CAHD,South - Commissioned Services,Permanent Residential,Ash View House,5655.48, 01-Jun-2021
226,Revenue,CAHD,Jointly Funded H&SC Packages,Permanent Residential,Ash View House,1160.84, 01-Jun-2021
227,Revenue,CAHD,South - Commissioned Services,Permanent Residential,Ash View House,5655.48, 29-Jun-2021
228,Revenue,CAHD,Jointly Funded H&SC Packages,Permanent Residential,Ash View House,1160.84, 29-Jun-2021
229,Revenue,CAHD,S117 Placements PCT,Permanent Residential,Ash View House,7884.72, 01-Jun-2021
230,Revenue,CAHD,S117 Placements PCT,Permanent Residential,Ash View House,7884.72, 29-Jun-2021
231,Revenue,CAHD,North - Community based support,Permanent Residential,Ash View House,7099.52, 01-Jun-2021
232,Revenue,CAHD,North - Community based support,Permanent Residential,Ash View House,7099.52, 29-Jun-2021
233,Revenue,CAHD,North - Community based support,Permanent Residential,Ash View House,7120.00, 01-Jun-2021
234,Revenue,CAHD,North - Community based support,Permanent Residential,Ash View House,7120.00, 29-Jun-2021
235,Revenue,CAHD,Section 117 Placements MH Younger,Permanent Residential,Ash View House,5135.96, 01-Jun-2021
236,Revenue,CAHD,Jointly Funded H&SC Packages,Permanent Residential,Ash View House,2204.28, 01-Jun-2021
237,Revenue,CAHD,Section 117 Placements MH Younger,Permanent Residential,Ash View House,5135.96, 29-Jun-2021
238,Revenue,CAHD,Jointly Funded H&SC Packages,Permanent Residential,Ash View House,2204.28, 29-Jun-2021
239,Revenue,CAHD,South - S117,Permanent Residential,Ash View House,6983.64, 01-Jun-2021
240,Revenue,CAHD,South - S117,Permanent Residential,Ash View House,6983.64, 29-Jun-2021
241,Revenue,CAHD,South - Commissioned Services,Permanent Residential,Ash View House,6903.04, 01-Jun-2021
242,Revenue,CAHD,South - Commissioned Services,Permanent Residential,Ash View House,6903.04, 29-Jun-2021
243,Revenue,CAHD,Drug and Alcohol Programme,Rent,Ashville Asset Management Limited,1244.55, 24-Jun-2021
244,Revenue,CAHD,Drug and Alcohol Programme,Rent,Ashville Asset Management Limited,4550.00, 24-Jun-2021
245,Revenue,CAHD,Supporting People Programme,Grants to Voluntary Bodies,Aspects and Milestones Trust,3441.00, 01-Jun-2021
246,Revenue,CAHD,Supporting People Programme,Grants to Voluntary Bodies,Aspects and Milestones Trust,1725.00, 01-Jun-2021
247,Revenue,CAHD,18-25 Year Olds,Other Small Contracts,Aspirations,3070.62, 03-Jun-2021
248,Revenue,CAHD,18-25 Year Olds,Supported Living,Aspirations,713.94, 03-Jun-2021
249,Revenue,CAHD,Central - Commissioned Services,Other Small Contracts,Aspirations,144.00, 03-Jun-2021
250,Revenue,CAHD,Central - Commissioned Services,Supported Living,Aspirations,3033.64, 03-Jun-2021
251,Revenue,CAHD,South - Commissioned Services,Day Care / Social Activities,Aspirations,1462.11, 03-Jun-2021
252,Revenue,CAHD,South - Commissioned Services,Other Small Contracts,Aspirations,4021.29, 03-Jun-2021
253,Revenue,CAHD,South - Commissioned Services,Supported Living,Aspirations,18215.78, 03-Jun-2021
254,Revenue,CAHD,North - Community based support,Supported Living,Aspirations,3538.80, 03-Jun-2021
255,Revenue,CAHD,18-25 Year Olds,Other Small Contracts,Aspirations,3046.26, 03-Jun-2021
256,Revenue,CAHD,18-25 Year Olds,Supported Living,Aspirations,547.68, 03-Jun-2021
257,Revenue,CAHD,Central - Commissioned Services,Other Small Contracts,Aspirations,3249.64, 03-Jun-2021
258,Revenue,CAHD,South - Commissioned Services,Day Care / Social Activities,Aspirations,1481.67, 03-Jun-2021
259,Revenue,CAHD,South - Commissioned Services,Other Small Contracts,Aspirations,181.80, 03-Jun-2021
260,Revenue,CAHD,South - Commissioned Services,Supported Living,Aspirations,18159.82, 03-Jun-2021
261,Revenue,CAHD,North - Community based support,Supported Living,Aspirations,3185.28, 03-Jun-2021
262,Revenue,CAHD,18-25 Year Olds,Other Small Contracts,Aspirations,3000.74, 18-Jun-2021
263,Revenue,CAHD,18-25 Year Olds,Supported Living,Aspirations,577.02, 18-Jun-2021
264,Revenue,CAHD,Central - Commissioned Services,Other Small Contracts,Aspirations,144.00, 18-Jun-2021
265,Revenue,CAHD,South - Commissioned Services,Day Care / Social Activities,Aspirations,1481.67, 18-Jun-2021
266,Revenue,CAHD,South - Commissioned Services,Other Small Contracts,Aspirations,97.80, 18-Jun-2021
267,Revenue,CAHD,South - Commissioned Services,Supported Living,Aspirations,17655.75, 18-Jun-2021
268,Revenue,CAHD,North - Community based support,Supported Living,Aspirations,3438.72, 18-Jun-2021
269,Revenue,CAHD,18-25 Year Olds,Other Small Contracts,Aspirations,2855.02, 18-Jun-2021
270,Revenue,CAHD,18-25 Year Olds,Supported Living,Aspirations,459.66, 18-Jun-2021
271,Revenue,CAHD,Central - Commissioned Services,Other Small Contracts,Aspirations,168.00, 18-Jun-2021
272,Revenue,CAHD,South - Commissioned Services,Day Care / Social Activities,Aspirations,1511.01, 18-Jun-2021
273,Revenue,CAHD,South - Commissioned Services,Other Small Contracts,Aspirations,84.00, 18-Jun-2021
274,Revenue,CAHD,South - Commissioned Services,Supported Living,Aspirations,17202.80, 18-Jun-2021
275,Revenue,CAHD,North - Community based support,Supported Living,Aspirations,3456.00, 18-Jun-2021
276,Revenue,CAHD,18-25 Year Olds,Other Small Contracts,Aspirations,3680.18, 25-Jun-2021
277,Revenue,CAHD,18-25 Year Olds,Supported Living,Aspirations,361.86, 25-Jun-2021
278,Revenue,CAHD,Central - Commissioned Services,Other Small Contracts,Aspirations,144.00, 25-Jun-2021
279,Revenue,CAHD,South - Commissioned Services,Day Care / Social Activities,Aspirations,1481.67, 25-Jun-2021
280,Revenue,CAHD,South - Commissioned Services,Other Small Contracts,Aspirations,181.80, 25-Jun-2021
281,Revenue,CAHD,South - Commissioned Services,Supported Living,Aspirations,17247.02, 25-Jun-2021
282,Revenue,CAHD,North - Community based support,Supported Living,Aspirations,3456.00, 25-Jun-2021
283,Revenue,CAHD,Covid - ASC - Infection Control,Grants to Voluntary Bodies,Aspirations Support Bristol Limited,740.32, 15-Jun-2021
284,Revenue,CAHD,ASC Rapid Testing Fund,Grants to Voluntary Bodies,Aspirations Support Bristol Limited,1871.80, 15-Jun-2021
285,Revenue,CAHD,CSC - Care Leavers Independent Living,Adults - Family Support,Aspirations Support Bristol Limited,15419.68, 25-Jun-2021
286,Revenue,CAHD,CSC - Care Leavers Independent Living,Adults - Family Support,Aspirations Support Bristol Limited,15419.68, 28-Jun-2021
287,Revenue,CAHD,CSC - Vinney Green Secure Unit,R & M by Departments,Assa Abloy Limited,858.46, 24-Jun-2021
288,Revenue,CAHD,Shared Lives,Other Supplies & Services,Ategi Limited,53502.00, 30-Jun-2021
289,Revenue,CAHD,South - Commissioned Services,Adults - Family Support,Ategi Limited,17042.85, 23-Jun-2021
290,Revenue,CAHD,Statemented Support Academies,Other Public Bodies,Athelstan Trust,825.30, 22-Jun-2021
291,Revenue,CAHD,Statemented Support Academies,Other Public Bodies,Athelstan Trust,1101.42, 22-Jun-2021
292,Revenue,CAHD,Statemented Support Academies,Other Public Bodies,Athelstan Trust,1367.64, 22-Jun-2021
293,Revenue,CAHD,Statemented Support Academies,Other Public Bodies,Athelstan Trust,1436.25, 22-Jun-2021
294,Revenue,CAHD,Statemented Support Academies,Other Public Bodies,Athelstan Trust,588.75, 22-Jun-2021
295,Revenue,CAHD,Statemented Support Academies,Other Public Bodies,Athelstan Trust,1155.42, 22-Jun-2021
296,Revenue,CAHD,Statemented Support Academies,Other Public Bodies,Athelstan Trust,1556.28, 22-Jun-2021
297,Revenue,CAHD,Statemented Support Academies,Other Public Bodies,Athelstan Trust,926.58, 22-Jun-2021
298,Revenue,CAHD,Statemented Support Academies,Other Public Bodies,Athelstan Trust,624.87, 22-Jun-2021
299,Revenue,CAHD,Academy Resource Base Funding,Other Public Bodies,Athelstan Trust,2465.76, 22-Jun-2021
300,Revenue,CAHD,Academy Resource Base Funding,Other Public Bodies,Athelstan Trust,2432.79, 22-Jun-2021
301,Revenue,CAHD,Academy Resource Base Funding,Other Public Bodies,Athelstan Trust,2432.79, 22-Jun-2021
302,Revenue,CAHD,Academy Resource Base Funding,Other Public Bodies,Athelstan Trust,2432.79, 22-Jun-2021
303,Revenue,CAHD,Academy Resource Base Funding,Other Public Bodies,Athelstan Trust,2432.79, 22-Jun-2021
304,Revenue,CAHD,Academy Resource Base Funding,Other Public Bodies,Athelstan Trust,2432.79, 22-Jun-2021
305,Revenue,CAHD,Academy Resource Base Funding,Other Public Bodies,Athelstan Trust,2432.79, 22-Jun-2021
306,Revenue,CAHD,Academy Resource Base Funding,Other Public Bodies,Athelstan Trust,2432.79, 22-Jun-2021
307,Revenue,CAHD,Academy Resource Base Funding,Other Public Bodies,Athelstan Trust,2432.79, 22-Jun-2021
308,Revenue,CAHD,Academy Resource Base Funding,Other Public Bodies,Athelstan Trust,2432.79, 22-Jun-2021
309,Revenue,CAHD,Academy Resource Base Funding,Other Public Bodies,Athelstan Trust,2432.79, 22-Jun-2021
310,Revenue,CAHD,Academy Resource Base Funding,Other Public Bodies,Athelstan Trust,2432.79, 22-Jun-2021
311,Revenue,CAHD,Academy Resource Base Funding,Other Public Bodies,Athelstan Trust,2432.79, 22-Jun-2021
312,Revenue,CAHD,Academy Resource Base Funding,Other Public Bodies,Athelstan Trust,2432.79, 22-Jun-2021
313,Revenue,CAHD,Contain Outbreak Mgmt Fund,Other Supplies & Services,Athelstan Trust,1000.00, 15-Jun-2021
314,Revenue,CAHD,CSC - Vinney Green Secure Unit,R & M by Departments,Atus Systems Limited,660.88, 04-Jun-2021
315,Revenue,CAHD,Independent Special Placements - Pre 16,Other Private Contractors,Aurora Hedgeway School,15967.14, 01-Jun-2021
316,Revenue,CAHD,South - Commissioned Services,Permanent Residential,Autism Specialised Care Homes,6506.88, 01-Jun-2021
317,Revenue,CAHD,South - Commissioned Services,Permanent Residential,Autism Specialised Care Homes,6506.88, 29-Jun-2021
318,Revenue,CAHD,Younger Adult Mental Health,Agency Staff (Admin/Support Staff) Pay,Avon & Wiltshire Mental Health,5638.00, 16-Jun-2021
319,Revenue,CAHD,Alexandra Way,Premises Maintenance by Contractor,Avon Armour Limited,1116.00, 10-Jun-2021
320,Revenue,CAHD,Alexandra Way,Premises Maintenance by Contractor,Avon Armour Limited,3851.00, 25-Jun-2021
321,Revenue,CAHD,South - Commissioned Services,Permanent Nursing,Avon Lodge Care Centre,4441.20, 01-Jun-2021
322,Revenue,CAHD,South Glos Users in South Glos Homes,Permanent Nursing,Avon Lodge Care Centre,750.40, 01-Jun-2021
323,Revenue,CAHD,South - Commissioned Services,Permanent Nursing,Avon Lodge Care Centre,4441.20, 29-Jun-2021
324,Revenue,CAHD,South Glos Users in South Glos Homes,Permanent Nursing,Avon Lodge Care Centre,750.40, 29-Jun-2021
325,Revenue,CAHD,South Glos Users in South Glos Homes,Permanent Nursing,Avon Lodge Care Centre,750.40, 01-Jun-2021
326,Revenue,CAHD,South Glos Users in South Glos Homes,Permanent Nursing,Avon Lodge Care Centre,750.40, 29-Jun-2021
327,Revenue,CAHD,South Glos Users in South Glos Homes,Permanent Nursing,Avon Lodge Care Centre,750.40, 01-Jun-2021
328,Revenue,CAHD,South Glos Users in South Glos Homes,Permanent Nursing,Avon Lodge Care Centre,750.40, 29-Jun-2021
329,Revenue,CAHD,South Glos Users in South Glos Homes,Permanent Nursing,Avon Lodge Care Centre,750.40, 01-Jun-2021
330,Revenue,CAHD,South Glos Users in South Glos Homes,Permanent Nursing,Avon Lodge Care Centre,750.40, 29-Jun-2021
331,Revenue,CAHD,South Glos Users in South Glos Homes,Permanent Nursing,Avon Lodge Care Centre,750.40, 01-Jun-2021
332,Revenue,CAHD,South Glos Users in South Glos Homes,Permanent Nursing,Avon Lodge Care Centre,750.40, 29-Jun-2021
333,Revenue,CAHD,South - Commissioned Services,Permanent Nursing,Avon Lodge Care Centre,3339.08, 01-Jun-2021
334,Revenue,CAHD,South - Commissioned Services,Permanent Nursing,Avon Lodge Care Centre,3339.08, 29-Jun-2021
335,Revenue,CAHD,Covid 19- Spend on behalf of NHS,Respite Planned - Nursing,Avon Lodge Care Centre,5028.57, 01-Jun-2021
336,Revenue,CAHD,Covid 19- Spend on behalf of NHS,Respite Planned - Nursing,Avon Lodge Care Centre,1571.43, 01-Jun-2021
337,Revenue,CAHD,South Glos Users in South Glos Homes,Permanent Nursing,Avon Lodge Care Centre,750.40, 01-Jun-2021
338,Revenue,CAHD,South Glos Users in South Glos Homes,Permanent Nursing,Avon Lodge Care Centre,750.40, 29-Jun-2021
339,Revenue,CAHD,South - Commissioned Services,Permanent Nursing,Avon Lodge Care Centre,4410.32, 01-Jun-2021
340,Revenue,CAHD,South Glos Users in South Glos Homes,Permanent Nursing,Avon Lodge Care Centre,750.40, 01-Jun-2021
341,Revenue,CAHD,South - Commissioned Services,Permanent Nursing,Avon Lodge Care Centre,4410.32, 29-Jun-2021
342,Revenue,CAHD,South Glos Users in South Glos Homes,Permanent Nursing,Avon Lodge Care Centre,750.40, 29-Jun-2021
343,Revenue,CAHD,South - Commissioned Services,Permanent Nursing,Avon Lodge Care Centre,3539.60, 01-Jun-2021
344,Revenue,CAHD,South - Commissioned Services,Permanent Nursing,Avon Lodge Care Centre,3539.60, 29-Jun-2021
345,Revenue,CAHD,South - Commissioned Services,Permanent Nursing,Avon Lodge Care Centre,3800.00, 01-Jun-2021
346,Revenue,CAHD,South - Commissioned Services,Permanent Nursing,Avon Lodge Care Centre,3257.14, 01-Jun-2021
347,Revenue,CAHD,South - Commissioned Services,Permanent Nursing,Avon Lodge Care Centre,3800.00, 29-Jun-2021
348,Revenue,CAHD,South Glos Users in South Glos Homes,Permanent Nursing,Avon Lodge Care Centre,3100.37, 29-Jun-2021
349,Revenue,CAHD,South Glos Users in South Glos Homes,Permanent Nursing,Avon Lodge Care Centre,1983.20, 29-Jun-2021
350,Revenue,CAHD,South Glos Users in South Glos Homes,Permanent Nursing,Avon Lodge Care Centre,750.40, 29-Jun-2021
351,Revenue,CAHD,South Glos Users in South Glos Homes,Permanent Nursing,Avon Lodge Care Centre,1983.20, 29-Jun-2021
352,Revenue,CAHD,South Glos Users in South Glos Homes,Permanent Nursing,Avon Lodge Care Centre,867.05, 29-Jun-2021
353,Revenue,CAHD,South Glos Users in South Glos Homes,Permanent Nursing,Avon Lodge Care Centre,750.40, 29-Jun-2021
354,Revenue,CAHD,South - Commissioned Services,Permanent Nursing,Avon Lodge Care Centre,4447.88, 01-Jun-2021
355,Revenue,CAHD,South Glos Users in South Glos Homes,Permanent Nursing,Avon Lodge Care Centre,750.40, 01-Jun-2021
356,Revenue,CAHD,South - Commissioned Services,Permanent Nursing,Avon Lodge Care Centre,4447.88, 29-Jun-2021
357,Revenue,CAHD,South Glos Users in South Glos Homes,Permanent Nursing,Avon Lodge Care Centre,750.40, 29-Jun-2021
358,Revenue,CAHD,South Glos Users in South Glos Homes,Permanent Nursing,Avon Lodge Care Centre,750.40, 01-Jun-2021
359,Revenue,CAHD,South Glos Users in South Glos Homes,Permanent Nursing,Avon Lodge Care Centre,750.40, 29-Jun-2021
360,Revenue,CAHD,South Glos Users in South Glos Homes,Permanent Nursing,Avon Lodge Care Centre,750.40, 01-Jun-2021
361,Revenue,CAHD,South Glos Users in South Glos Homes,Permanent Nursing,Avon Lodge Care Centre,750.40, 29-Jun-2021
362,Revenue,CAHD,Covid 19- Spend on behalf of NHS,Respite Planned - Nursing,Avon Lodge Care Centre,4400.00, 01-Jun-2021
363,Revenue,CAHD,Covid 19- Spend on behalf of NHS,Respite Planned - Nursing,Avon Lodge Care Centre,4400.00, 29-Jun-2021
364,Revenue,CAHD,South - Commissioned Services,Permanent Nursing,Avon Lodge Care Centre,4505.12, 01-Jun-2021
365,Revenue,CAHD,South Glos Users in South Glos Homes,Permanent Nursing,Avon Lodge Care Centre,750.40, 01-Jun-2021
366,Revenue,CAHD,South - Commissioned Services,Permanent Nursing,Avon Lodge Care Centre,4505.12, 29-Jun-2021
367,Revenue,CAHD,South Glos Users in South Glos Homes,Permanent Nursing,Avon Lodge Care Centre,750.40, 29-Jun-2021
368,Revenue,CAHD,South - Commissioned Services,Permanent Nursing,Avon Lodge Care Centre,3887.40, 01-Jun-2021
369,Revenue,CAHD,South - Commissioned Services,Permanent Nursing,Avon Lodge Care Centre,3887.40, 29-Jun-2021
370,Revenue,CAHD,South - Commissioned Services,Permanent Nursing,Avon Lodge Care Centre,4410.32, 01-Jun-2021
371,Revenue,CAHD,South Glos Users in South Glos Homes,Permanent Nursing,Avon Lodge Care Centre,750.40, 01-Jun-2021
372,Revenue,CAHD,South - Commissioned Services,Permanent Nursing,Avon Lodge Care Centre,4410.32, 29-Jun-2021
373,Revenue,CAHD,South Glos Users in South Glos Homes,Permanent Nursing,Avon Lodge Care Centre,750.40, 29-Jun-2021
374,Revenue,CAHD,South Glos Users in South Glos Homes,Permanent Nursing,Avon Lodge Care Centre,750.40, 01-Jun-2021
375,Revenue,CAHD,South Glos Users in South Glos Homes,Permanent Nursing,Avon Lodge Care Centre,750.40, 29-Jun-2021
376,Revenue,CAHD,Central - Commissioned Services,Permanent Nursing,Avon Lodge Care Centre,3974.16, 01-Jun-2021
377,Revenue,CAHD,South Glos Users in South Glos Homes,Permanent Nursing,Avon Lodge Care Centre,750.40, 01-Jun-2021
378,Revenue,CAHD,Central - Commissioned Services,Permanent Nursing,Avon Lodge Care Centre,3974.16, 29-Jun-2021
379,Revenue,CAHD,South Glos Users in South Glos Homes,Permanent Nursing,Avon Lodge Care Centre,750.40, 29-Jun-2021
380,Revenue,CAHD,Central - Commissioned Services,Permanent Residential,Avon Lodge Care Centre,3478.20, 01-Jun-2021
381,Revenue,CAHD,Central - Commissioned Services,Permanent Residential,Avon Lodge Care Centre,3478.20, 29-Jun-2021
382,Revenue,CAHD,South - Commissioned Services,Permanent Nursing,Avon Lodge Care Centre,3887.40, 01-Jun-2021
383,Revenue,CAHD,South - Commissioned Services,Permanent Nursing,Avon Lodge Care Centre,3887.40, 29-Jun-2021
384,Revenue,CAHD,South Glos Users in South Glos Homes,Permanent Nursing,Avon Lodge Care Centre,1983.20, 29-Jun-2021
385,Revenue,CAHD,South Glos Users in South Glos Homes,Permanent Nursing,Avon Lodge Care Centre,1629.01, 29-Jun-2021
386,Revenue,CAHD,South Glos Users in South Glos Homes,Permanent Nursing,Avon Lodge Care Centre,750.40, 29-Jun-2021
387,Revenue,CAHD,Covid 19- Spend on behalf of NHS,Respite Planned - Nursing,Avon Lodge Care Centre,3457.14, 01-Jun-2021
388,Revenue,CAHD,Covid 19- Spend on behalf of NHS,Respite Planned - Nursing,Avon Lodge Care Centre,3142.86, 01-Jun-2021
389,Revenue,CAHD,North - Community based support,Permanent Nursing,Avon Lodge Care Centre,3130.40, 01-Jun-2021
390,Revenue,CAHD,North - Community based support,Permanent Nursing,Avon Lodge Care Centre,3130.40, 29-Jun-2021
391,Revenue,CAHD,Central - Commissioned Services,Permanent Nursing,Avon Lodge Care Centre,3887.40, 01-Jun-2021
392,Revenue,CAHD,Central - Commissioned Services,Permanent Nursing,Avon Lodge Care Centre,3887.40, 29-Jun-2021
393,Revenue,CAHD,South Glos Users in South Glos Homes,Permanent Nursing,Avon Lodge Care Centre,1983.20, 29-Jun-2021
394,Revenue,CAHD,South Glos Users in South Glos Homes,Permanent Nursing,Avon Lodge Care Centre,1629.01, 29-Jun-2021
395,Revenue,CAHD,South Glos Users in South Glos Homes,Permanent Nursing,Avon Lodge Care Centre,750.40, 29-Jun-2021
396,Revenue,CAHD,North - Community based support,Permanent Residential,Avon Lodge Care Centre,3539.60, 01-Jun-2021
397,Revenue,CAHD,North - Community based support,Permanent Residential,Avon Lodge Care Centre,3539.60, 29-Jun-2021
398,Revenue,CAHD,South Glos Users in South Glos Homes,Permanent Nursing,Avon Lodge Care Centre,1983.20, 29-Jun-2021
399,Revenue,CAHD,South Glos Users in South Glos Homes,Permanent Nursing,Avon Lodge Care Centre,1786.65, 29-Jun-2021
400,Revenue,CAHD,South Glos Users in South Glos Homes,Permanent Nursing,Avon Lodge Care Centre,750.40, 29-Jun-2021
401,Revenue,CAHD,South Glos Users in South Glos Homes,Permanent Nursing,Avon Lodge Care Centre,2469.78, 29-Jun-2021
402,Revenue,CAHD,South Glos Users in South Glos Homes,Permanent Nursing,Avon Lodge Care Centre,3730.95, 29-Jun-2021
403,Revenue,CAHD,South Glos Users in South Glos Homes,Permanent Nursing,Avon Lodge Care Centre,1983.20, 29-Jun-2021
404,Revenue,CAHD,South Glos Users in South Glos Homes,Permanent Nursing,Avon Lodge Care Centre,750.40, 29-Jun-2021
405,Revenue,CAHD,Covid 19- Spend on behalf of NHS,Respite Planned - Nursing,Avon Lodge Care Centre,3771.43, 01-Jun-2021
406,Revenue,CAHD,Covid 19- Spend on behalf of NHS,Respite Planned - Nursing,Avon Lodge Care Centre,2828.57, 01-Jun-2021
407,Revenue,CAHD,South Glos Users in South Glos Homes,Permanent Nursing,Avon Lodge Care Centre,1232.80, 29-Jun-2021
408,Revenue,CAHD,South Glos Users in South Glos Homes,Permanent Nursing,Avon Lodge Care Centre,750.40, 29-Jun-2021
409,Revenue,CAHD,South - Commissioned Services,Permanent Nursing,Avon Lodge Care Centre,4634.24, 01-Jun-2021
410,Revenue,CAHD,South Glos Users in South Glos Homes,Permanent Nursing,Avon Lodge Care Centre,750.40, 01-Jun-2021
411,Revenue,CAHD,South - Commissioned Services,Permanent Nursing,Avon Lodge Care Centre,4634.24, 29-Jun-2021
412,Revenue,CAHD,South Glos Users in South Glos Homes,Permanent Nursing,Avon Lodge Care Centre,750.40, 29-Jun-2021
413,Revenue,CAHD,South - S117,Permanent Nursing,Avon Lodge Care Centre,3974.84, 01-Jun-2021
414,Revenue,CAHD,South Glos Users in South Glos Homes,Permanent Nursing,Avon Lodge Care Centre,750.40, 01-Jun-2021
415,Revenue,CAHD,South - S117,Permanent Nursing,Avon Lodge Care Centre,3974.84, 29-Jun-2021
416,Revenue,CAHD,South Glos Users in South Glos Homes,Permanent Nursing,Avon Lodge Care Centre,750.40, 29-Jun-2021
417,Revenue,CAHD,South - Commissioned Services,Respite Planned - Nursing,Avon Lodge Care Centre,9044.97, 29-Jun-2021
418,Revenue,CAHD,North - Community based support,Permanent Nursing,Avon Lodge Care Centre,8957.14, 01-Jun-2021
419,Revenue,CAHD,North - Community based support,Permanent Nursing,Avon Lodge Care Centre,4859.25, 01-Jun-2021
420,Revenue,CAHD,North - Community based support,Permanent Nursing,Avon Lodge Care Centre,3887.40, 01-Jun-2021
421,Revenue,CAHD,North - Community based support,Fees & Charges Income - General,Avon Lodge Care Centre,739.26, 01-Jun-2021
422,Revenue,CAHD,North - Community based support,Fees & Charges Income - General,Avon Lodge Care Centre,1382.18, 01-Jun-2021
423,Revenue,CAHD,North - Community based support,Permanent Nursing,Avon Lodge Care Centre,3887.40, 29-Jun-2021
424,Revenue,CAHD,North - Community based support,Respite Planned - Nursing,Avon Lodge Care Centre,2718.57, 29-Jun-2021
425,Revenue,CAHD,South Glos Users in South Glos Homes,Permanent Nursing,Avon Lodge Care Centre,3205.46, 29-Jun-2021
426,Revenue,CAHD,South Glos Users in South Glos Homes,Permanent Nursing,Avon Lodge Care Centre,1983.20, 29-Jun-2021
427,Revenue,CAHD,South Glos Users in South Glos Homes,Permanent Nursing,Avon Lodge Care Centre,750.40, 29-Jun-2021
428,Revenue,CAHD,South - Commissioned Services,Permanent Residential,Avon Lodge Care Centre,3913.00, 01-Jun-2021
429,Revenue,CAHD,South - Commissioned Services,Permanent Residential,Avon Lodge Care Centre,3130.40, 01-Jun-2021
430,Revenue,CAHD,South Glos Users in South Glos Homes,Permanent Nursing,Avon Lodge Care Centre,750.40, 01-Jun-2021
431,Revenue,CAHD,South - Commissioned Services,Fees & Charges Income - General,Avon Lodge Care Centre,796.77, 01-Jun-2021
432,Revenue,CAHD,South - Commissioned Services,Permanent Residential,Avon Lodge Care Centre,3130.40, 29-Jun-2021
433,Revenue,CAHD,South Glos Users in South Glos Homes,Permanent Nursing,Avon Lodge Care Centre,750.40, 29-Jun-2021
434,Revenue,CAHD,South Glos Users in South Glos Homes,Permanent Nursing,Avon Lodge Care Centre,750.40, 01-Jun-2021
435,Revenue,CAHD,South Glos Users in South Glos Homes,Permanent Nursing,Avon Lodge Care Centre,750.40, 29-Jun-2021
436,Revenue,CAHD,South - Commissioned Services,Permanent Nursing,Avon Lodge Care Centre,3800.00, 01-Jun-2021
437,Revenue,CAHD,South Glos Users in South Glos Homes,Permanent Nursing,Avon Lodge Care Centre,750.40, 01-Jun-2021
438,Revenue,CAHD,South - Commissioned Services,Permanent Nursing,Avon Lodge Care Centre,3800.00, 29-Jun-2021
439,Revenue,CAHD,South Glos Users in South Glos Homes,Permanent Nursing,Avon Lodge Care Centre,750.40, 29-Jun-2021
440,Revenue,CAHD,South - Commissioned Services,Permanent Residential,Avon Valley Care Home,10571.43, 01-Jun-2021
441,Revenue,CAHD,South - Commissioned Services,Permanent Residential,Avon Valley Care Home,5115.00, 01-Jun-2021
442,Revenue,CAHD,South - Commissioned Services,Permanent Residential,Avon Valley Care Home,4092.00, 01-Jun-2021
443,Revenue,CAHD,South - Commissioned Services,Fees & Charges Income - General,Avon Valley Care Home,740.71, 01-Jun-2021
444,Revenue,CAHD,South - Commissioned Services,Permanent Residential,Avon Valley Care Home,4092.00, 29-Jun-2021
445,Revenue,CAHD,South - Commissioned Services,Permanent Residential,Avon Valley Care Home,7167.50, 29-Jun-2021
446,Revenue,CAHD,South - Commissioned Services,Permanent Residential,Avon Valley Care Home,4270.00, 29-Jun-2021
447,Revenue,CAHD,South - Commissioned Services,Fees & Charges Income - General,Avon Valley Care Home,896.47, 29-Jun-2021
448,Revenue,CAHD,South - S117,Permanent Residential,Avon Valley Care Home,4092.00, 01-Jun-2021
449,Revenue,CAHD,South - S117,Permanent Residential,Avon Valley Care Home,4092.00, 29-Jun-2021
450,Revenue,CAHD,South - Commissioned Services,Permanent Residential,Avon Valley Care Home,4051.08, 01-Jun-2021
451,Revenue,CAHD,South - Commissioned Services,Permanent Residential,Avon Valley Care Home,4051.08, 29-Jun-2021
452,Revenue,CAHD,South - Commissioned Services,Permanent Residential,Avon Valley Care Home,5287.50, 29-Jun-2021
453,Revenue,CAHD,South - Commissioned Services,Permanent Residential,Avon Valley Care Home,4230.00, 29-Jun-2021
454,Revenue,CAHD,South - Commissioned Services,Permanent Residential,Avon Valley Care Home,5063.85, 01-Jun-2021
455,Revenue,CAHD,South - Commissioned Services,Permanent Residential,Avon Valley Care Home,4051.08, 01-Jun-2021
456,Revenue,CAHD,South - Commissioned Services,Fees & Charges Income - General,Avon Valley Care Home,2261.83, 01-Jun-2021
457,Revenue,CAHD,South - Commissioned Services,Permanent Residential,Avon Valley Care Home,4051.08, 29-Jun-2021
458,Revenue,CAHD,South - Commissioned Services,Fees & Charges Income - General,Avon Valley Care Home,4100.68, 29-Jun-2021
459,Revenue,CAHD,South - Commissioned Services,Permanent Residential,Avon Valley Care Home,4092.00, 01-Jun-2021
460,Revenue,CAHD,South - Commissioned Services,Permanent Residential,Avon Valley Care Home,4092.00, 29-Jun-2021
461,Revenue,CAHD,South - Commissioned Services,Permanent Residential,Avon Valley Care Home,3965.00, 01-Jun-2021
462,Revenue,CAHD,South - Commissioned Services,Permanent Residential,Avon Valley Care Home,5337.50, 01-Jun-2021
463,Revenue,CAHD,South - Commissioned Services,Permanent Residential,Avon Valley Care Home,1830.00, 01-Jun-2021
464,Revenue,CAHD,South - Commissioned Services,Permanent Residential,Avon Valley Care Home,4270.00, 29-Jun-2021
465,Revenue,CAHD,South - Commissioned Services,Permanent Residential,Avon Valley Care Home,4910.40, 01-Jun-2021
466,Revenue,CAHD,South - Commissioned Services,Permanent Residential,Avon Valley Care Home,4910.40, 29-Jun-2021
467,Revenue,CAHD,South - Commissioned Services,Fees & Charges Income - General,Avon Valley Care Home,5589.64, 29-Jun-2021
468,Revenue,CAHD,South - Commissioned Services,Permanent Residential,Avon Valley Care Home,4230.00, 29-Jun-2021
469,Revenue,CAHD,South - Commissioned Services,Permanent Residential,Avon Valley Care Home,4051.08, 01-Jun-2021
470,Revenue,CAHD,South - Commissioned Services,Permanent Residential,Avon Valley Care Home,4051.08, 29-Jun-2021
471,Revenue,CAHD,South - Commissioned Services,Permanent Residential,Avon Valley Care Home,5115.00, 01-Jun-2021
472,Revenue,CAHD,South - Commissioned Services,Permanent Residential,Avon Valley Care Home,4092.00, 01-Jun-2021
473,Revenue,CAHD,South - Commissioned Services,Fees & Charges Income - General,Avon Valley Care Home,1524.17, 01-Jun-2021
474,Revenue,CAHD,South - Commissioned Services,Permanent Residential,Avon Valley Care Home,4092.00, 29-Jun-2021
475,Revenue,CAHD,South - Commissioned Services,Permanent Residential,Avon Valley Care Home,4051.08, 01-Jun-2021
476,Revenue,CAHD,South - Commissioned Services,Permanent Residential,Avon Valley Care Home,4051.08, 29-Jun-2021
477,Revenue,CAHD,Central - Commissioned Services,Permanent Residential,Avon Valley Care Home,4092.00, 01-Jun-2021
478,Revenue,CAHD,Central - Commissioned Services,Permanent Residential,Avon Valley Care Home,4092.00, 29-Jun-2021
479,Revenue,CAHD,South - Commissioned Services,Permanent Residential,Avon Valley Care Home,4092.00, 01-Jun-2021
480,Revenue,CAHD,South - Commissioned Services,Permanent Residential,Avon Valley Care Home,4092.00, 01-Jun-2021
481,Revenue,CAHD,South - Commissioned Services,Permanent Residential,Avon Valley Care Home,4092.00, 29-Jun-2021
482,Revenue,CAHD,South - Commissioned Services,Permanent Residential,Avon Valley Care Home,3625.71, 01-Jun-2021
483,Revenue,CAHD,South - Commissioned Services,Permanent Residential,Avon Valley Care Home,1057.50, 01-Jun-2021
484,Revenue,CAHD,South - Commissioned Services,Permanent Residential,Avon Valley Care Home,906.43, 01-Jun-2021
485,Revenue,CAHD,South - Commissioned Services,Permanent Residential,Avon Valley Care Home,604.29, 01-Jun-2021
486,Revenue,CAHD,South - Commissioned Services,Permanent Residential,Avon Valley Care Home,3625.71, 29-Jun-2021
487,Revenue,CAHD,South - Commissioned Services,Permanent Residential,Avon Valley Care Home,604.29, 29-Jun-2021
488,Revenue,CAHD,South - Commissioned Services,Respite Planned - Residential,Avon Valley Care Home,868.09, 29-Jun-2021
489,Revenue,CAHD,North - Community based support,Permanent Residential,Avonmere Care Home,4680.00, 01-Jun-2021
490,Revenue,CAHD,North - Community based support,Fees & Charges Income - General,Avonmere Care Home,1336.73, 01-Jun-2021
491,Revenue,CAHD,North - Community based support,Fees & Charges Income - General,Avonmere Care Home,607.57, 01-Jun-2021
492,Revenue,CAHD,North - Community based support,Permanent Residential,Avonmere Care Home,4680.00, 29-Jun-2021
493,Revenue,CAHD,North - Community based support,Permanent Residential,Avonmere Care Home,4892.00, 01-Jun-2021
494,Revenue,CAHD,North - Community based support,Permanent Residential,Avonmere Care Home,4892.00, 29-Jun-2021
495,Revenue,CAHD,North - Community based support,Permanent Residential,Avonmere Care Home,4521.68, 01-Jun-2021
496,Revenue,CAHD,North - Community based support,Permanent Residential,Avonmere Care Home,4521.68, 29-Jun-2021
497,Revenue,CAHD,South - Commissioned Services,Permanent Nursing,Avonmere Care Home,9085.71, 01-Jun-2021
498,Revenue,CAHD,South - Commissioned Services,Permanent Nursing,Avonmere Care Home,5142.86, 01-Jun-2021
499,Revenue,CAHD,South - Commissioned Services,Permanent Nursing,Avonmere Care Home,514.29, 01-Jun-2021
500,Revenue,CAHD,South - Commissioned Services,Permanent Nursing,Avonmere Care Home,15085.71, 01-Jun-2021
501,Revenue,CAHD,South - Commissioned Services,Permanent Nursing,Avonmere Care Home,4800.00, 01-Jun-2021
502,Revenue,CAHD,South - Commissioned Services,Permanent Nursing,Avonmere Care Home,4800.00, 29-Jun-2021
503,Revenue,CAHD,North - Community based support,Permanent Residential,Avonmere Care Home,4600.00, 01-Jun-2021
504,Revenue,CAHD,North - Community based support,Permanent Residential,Avonmere Care Home,4600.00, 29-Jun-2021
505,Revenue,CAHD,North - Community based support,Permanent Residential,Avonmere Care Home,4720.00, 01-Jun-2021
506,Revenue,CAHD,North - Community based support,Permanent Residential,Avonmere Care Home,4720.00, 29-Jun-2021
507,Revenue,CAHD,Covid 19- Spend on behalf of NHS,Respite Planned - Residential,Avonmere Care Home,3614.29, 29-Jun-2021
508,Revenue,CAHD,North - Community based support,Permanent Residential,Avonmere Care Home,4892.00, 01-Jun-2021
509,Revenue,CAHD,North - Community based support,Permanent Residential,Avonmere Care Home,4892.00, 29-Jun-2021
510,Revenue,CAHD,Covid 19- Spend on behalf of NHS,Respite Planned - Residential,Badminton Place,3942.86, 29-Jun-2021
511,Revenue,CAHD,Covid 19- Spend on behalf of NHS,Respite Planned - Residential,Badminton Place,3257.14, 29-Jun-2021
512,Revenue,CAHD,North - Community based support,Permanent Nursing,Badminton Place,4864.32, 01-Jun-2021
513,Revenue,CAHD,North - Community based support,Permanent Nursing,Badminton Place,4864.32, 29-Jun-2021
514,Revenue,CAHD,North - Community based support,Respite Emergency - Residential,Badminton Place,2742.86, 29-Jun-2021
515,Revenue,CAHD,Covid 19- Spend on behalf of NHS,Respite Planned - Nursing,Badminton Place,5485.71, 01-Jun-2021
516,Revenue,CAHD,Covid 19- Spend on behalf of NHS,Respite Planned - Nursing,Badminton Place,514.29, 01-Jun-2021
517,Revenue,CAHD,Covid 19- Spend on behalf of NHS,Respite Planned - Nursing,Badminton Place,4628.57, 01-Jun-2021
518,Revenue,CAHD,Covid 19- Spend on behalf of NHS,Respite Planned - Nursing,Badminton Place,685.71, 01-Jun-2021
519,Revenue,CAHD,Covid 19- Spend on behalf of NHS,Respite Planned - Nursing,Badminton Place,4114.29, 01-Jun-2021
520,Revenue,CAHD,Covid 19- Spend on behalf of NHS,Respite Planned - Nursing,Badminton Place,3085.71, 01-Jun-2021
521,Revenue,CAHD,North - Community based support,Respite Planned - Nursing,Badminton Place,5657.14, 29-Jun-2021
522,Revenue,CAHD,North - Community based support,Respite Planned - Nursing,Badminton Place,2742.86, 29-Jun-2021
523,Revenue,CAHD,Covid 19- Spend on behalf of NHS,Respite Planned - Nursing,Badminton Place,5485.71, 01-Jun-2021
524,Revenue,CAHD,Central - Commissioned Services,Respite Planned - Nursing,Badminton Place,7714.29, 29-Jun-2021
525,Revenue,CAHD,Central - Commissioned Services,Respite Planned - Nursing,Badminton Place,1885.71, 29-Jun-2021
526,Revenue,CAHD,Covid 19- Spend on behalf of NHS,Respite Planned - Nursing,Badminton Place,6857.14, 01-Jun-2021
527,Revenue,CAHD,Covid 19- Spend on behalf of NHS,Respite Planned - Nursing,Badminton Place,4114.29, 01-Jun-2021
528,Revenue,CAHD,Covid 19- Spend on behalf of NHS,Respite Planned - Nursing,Badminton Place,2098.29, 29-Jun-2021
529,Revenue,CAHD,Covid 19- Spend on behalf of NHS,Respite Planned - Nursing,Badminton Place,611.43, 29-Jun-2021
530,Revenue,CAHD,Covid 19- Spend on behalf of NHS,Respite Planned - Nursing,Badminton Place,51757.71, 01-Jun-2021
531,Revenue,CAHD,Covid 19- Spend on behalf of NHS,Respite Planned - Nursing,Badminton Place,6096.00, 01-Jun-2021
532,Revenue,CAHD,Covid 19- Spend on behalf of NHS,Respite Planned - Nursing,Badminton Place,5430.86, 01-Jun-2021
533,Revenue,CAHD,Covid 19- Spend on behalf of NHS,Respite Planned - Nursing,Badminton Place,21911.98, 01-Jun-2021
534,Revenue,CAHD,Covid 19- Spend on behalf of NHS,Respite Planned - Residential,Badminton Place,7200.00, 29-Jun-2021
535,Revenue,CAHD,Covid 19- Spend on behalf of NHS,Respite Planned - Residential,Badminton Place,5828.57, 01-Jun-2021
536,Revenue,CAHD,Covid 19- Spend on behalf of NHS,Respite Planned - Residential,Badminton Place,1200.00, 01-Jun-2021
537,Revenue,CAHD,Covid 19- Spend on behalf of NHS,Respite Planned - Nursing,Badminton Place,5828.57, 01-Jun-2021
538,Revenue,CAHD,Covid 19- Spend on behalf of NHS,Respite Planned - Nursing,Badminton Place,1371.43, 01-Jun-2021
539,Revenue,CAHD,Covid 19- Spend on behalf of NHS,Respite Planned - Nursing,Badminton Place,7200.00, 01-Jun-2021
540,Revenue,CAHD,North - Community based support,Respite Planned - Residential,Badminton Place,3000.00, 29-Jun-2021
541,Revenue,CAHD,Covid 19- Spend on behalf of NHS,Respite Planned - Nursing,Badminton Place,1714.29, 29-Jun-2021
542,Revenue,CAHD,Early Years High Needs Support,Other Private Contractors,Baker Street Nursery & Pre-School,763.29, 22-Jun-2021
543,Revenue,CAHD,CSC - Care Leavers Support Costs,Personal Needs of Clients,Barnardo Services Limited,2982.45, 10-Jun-2021
544,Revenue,CAHD,CSC - Care Leavers Support Costs,Personal Needs of Clients,Barnardo Services Limited,3105.75, 10-Jun-2021
545,Revenue,CAHD,South Glos Users in South Glos Homes,Permanent Nursing,Beaufort Grange Care Home,750.40, 01-Jun-2021
546,Revenue,CAHD,South Glos Users in South Glos Homes,Permanent Nursing,Beaufort Grange Care Home,750.40, 29-Jun-2021
547,Revenue,CAHD,South Glos Users in South Glos Homes,Permanent Nursing,Beaufort Grange Care Home,2390.96, 29-Jun-2021
548,Revenue,CAHD,South Glos Users in South Glos Homes,Permanent Nursing,Beaufort Grange Care Home,750.40, 01-Jun-2021
549,Revenue,CAHD,South Glos Users in South Glos Homes,Permanent Nursing,Beaufort Grange Care Home,750.40, 29-Jun-2021
550,Revenue,CAHD,South Glos Users in South Glos Homes,Permanent Nursing,Beaufort Grange Care Home,5517.60, 29-Jun-2021
551,Revenue,CAHD,South Glos Users in South Glos Homes,Permanent Nursing,Beaufort Grange Care Home,1983.20, 29-Jun-2021
552,Revenue,CAHD,South Glos Users in South Glos Homes,Permanent Nursing,Beaufort Grange Care Home,750.40, 29-Jun-2021
553,Revenue,CAHD,South Glos Users in South Glos Homes,Permanent Nursing,Beaufort Grange Care Home,750.40, 01-Jun-2021
554,Revenue,CAHD,South Glos Users in South Glos Homes,Permanent Nursing,Beaufort Grange Care Home,750.40, 29-Jun-2021
555,Revenue,CAHD,Covid 19- Spend on behalf of NHS,Respite Planned - Nursing,Beaufort Grange Care Home,18068.00, 01-Jun-2021
556,Revenue,CAHD,Covid 19- Spend on behalf of NHS,Respite Planned - Nursing,Beaufort Grange Care Home,18068.00, 29-Jun-2021
557,Revenue,CAHD,South Glos Users in South Glos Homes,Permanent Nursing,Beaufort Grange Care Home,750.40, 01-Jun-2021
558,Revenue,CAHD,South Glos Users in South Glos Homes,Permanent Nursing,Beaufort Grange Care Home,750.40, 29-Jun-2021
559,Revenue,CAHD,South Glos Users in South Glos Homes,Permanent Nursing,Beaufort Grange Care Home,750.40, 01-Jun-2021
560,Revenue,CAHD,South Glos Users in South Glos Homes,Permanent Nursing,Beaufort Grange Care Home,750.40, 01-Jun-2021
561,Revenue,CAHD,South Glos Users in South Glos Homes,Permanent Nursing,Beaufort Grange Care Home,750.40, 29-Jun-2021
562,Revenue,CAHD,South Glos Users in South Glos Homes,Permanent Nursing,Beaufort Grange Care Home,750.40, 01-Jun-2021
563,Revenue,CAHD,South Glos Users in South Glos Homes,Permanent Nursing,Beaufort Grange Care Home,750.40, 29-Jun-2021
564,Revenue,CAHD,North - S117,Permanent Nursing,Beaufort Grange Care Home,4877.04, 01-Jun-2021
565,Revenue,CAHD,South Glos Users in South Glos Homes,Permanent Nursing,Beaufort Grange Care Home,750.40, 01-Jun-2021
566,Revenue,CAHD,North - S117,Permanent Nursing,Beaufort Grange Care Home,4877.04, 29-Jun-2021
567,Revenue,CAHD,South Glos Users in South Glos Homes,Permanent Nursing,Beaufort Grange Care Home,750.40, 29-Jun-2021
568,Revenue,CAHD,Central - Commissioned Services,Permanent Nursing,Beaufort Grange Care Home,11784.00, 01-Jun-2021
569,Revenue,CAHD,South Glos Users in South Glos Homes,Permanent Nursing,Beaufort Grange Care Home,750.40, 01-Jun-2021
570,Revenue,CAHD,Central - Commissioned Services,Permanent Nursing,Beaufort Grange Care Home,11957.14, 29-Jun-2021
571,Revenue,CAHD,Central - Commissioned Services,Permanent Nursing,Beaufort Grange Care Home,5400.00, 29-Jun-2021
572,Revenue,CAHD,South Glos Users in South Glos Homes,Permanent Nursing,Beaufort Grange Care Home,750.40, 29-Jun-2021
573,Revenue,CAHD,Central - Commissioned Services,Fees & Charges Income - General,Beaufort Grange Care Home,1324.80, 29-Jun-2021
574,Revenue,CAHD,Central - Commissioned Services,Permanent Nursing,Beaufort Grange Care Home,22757.14, 29-Jun-2021
575,Revenue,CAHD,South Glos Users in South Glos Homes,Permanent Nursing,Beaufort Grange Care Home,750.40, 01-Jun-2021
576,Revenue,CAHD,South Glos Users in South Glos Homes,Permanent Nursing,Beaufort Grange Care Home,750.40, 29-Jun-2021
577,Revenue,CAHD,South Glos Users in South Glos Homes,Permanent Nursing,Beaufort Grange Care Home,2207.04, 29-Jun-2021
578,Revenue,CAHD,South Glos Users in South Glos Homes,Permanent Nursing,Beaufort Grange Care Home,1983.20, 29-Jun-2021
579,Revenue,CAHD,South Glos Users in South Glos Homes,Permanent Nursing,Beaufort Grange Care Home,750.40, 29-Jun-2021
580,Revenue,CAHD,South Glos Users in South Glos Homes,Permanent Nursing,Beaufort Grange Care Home,1983.20, 29-Jun-2021
581,Revenue,CAHD,South Glos Users in South Glos Homes,Permanent Nursing,Beaufort Grange Care Home,1366.26, 29-Jun-2021
582,Revenue,CAHD,South Glos Users in South Glos Homes,Permanent Nursing,Beaufort Grange Care Home,750.40, 29-Jun-2021
583,Revenue,CAHD,Covid 19- Spend on behalf of NHS,Respite Planned - Nursing,Beaufort Grange Care Home,11884.00, 01-Jun-2021
584,Revenue,CAHD,Central - Commissioned Services,Respite Planned - Residential,Beaufort Grange Care Home,4932.32, 01-Jun-2021
585,Revenue,CAHD,Central - Commissioned Services,Permanent Nursing,Beaufort Grange Care Home,4932.32, 01-Jun-2021
586,Revenue,CAHD,South Glos Users in South Glos Homes,Permanent Nursing,Beaufort Grange Care Home,750.40, 01-Jun-2021
587,Revenue,CAHD,Central - Commissioned Services,Permanent Nursing,Beaufort Grange Care Home,4932.32, 29-Jun-2021
588,Revenue,CAHD,South Glos Users in South Glos Homes,Permanent Nursing,Beaufort Grange Care Home,750.40, 29-Jun-2021
589,Revenue,CAHD,South Glos Users in South Glos Homes,Permanent Nursing,Beaufort Grange Care Home,750.40, 01-Jun-2021
590,Revenue,CAHD,South Glos Users in South Glos Homes,Permanent Nursing,Beaufort Grange Care Home,750.40, 29-Jun-2021
591,Revenue,CAHD,South Glos Users in South Glos Homes,Permanent Nursing,Beaufort Grange Care Home,2785.07, 29-Jun-2021
592,Revenue,CAHD,South Glos Users in South Glos Homes,Permanent Nursing,Beaufort Grange Care Home,1983.20, 29-Jun-2021
593,Revenue,CAHD,South Glos Users in South Glos Homes,Permanent Nursing,Beaufort Grange Care Home,750.40, 01-Jun-2021
594,Revenue,CAHD,South Glos Users in South Glos Homes,Permanent Nursing,Beaufort Grange Care Home,750.40, 29-Jun-2021
595,Revenue,CAHD,South Glos Users in South Glos Homes,Permanent Nursing,Beaufort Grange Care Home,750.40, 01-Jun-2021
596,Revenue,CAHD,South Glos Users in South Glos Homes,Permanent Nursing,Beaufort Grange Care Home,750.40, 29-Jun-2021
597,Revenue,CAHD,South Glos Users in South Glos Homes,Permanent Nursing,Beaufort Grange Care Home,1208.62, 29-Jun-2021
598,Revenue,CAHD,South Glos Users in South Glos Homes,Permanent Nursing,Beaufort Grange Care Home,750.40, 01-Jun-2021
599,Revenue,CAHD,South Glos Users in South Glos Homes,Permanent Nursing,Beaufort Grange Care Home,750.40, 29-Jun-2021
600,Revenue,CAHD,South Glos Users in South Glos Homes,Permanent Nursing,Beaufort Grange Care Home,750.40, 01-Jun-2021
601,Revenue,CAHD,South Glos Users in South Glos Homes,Permanent Nursing,Beaufort Grange Care Home,750.40, 29-Jun-2021
602,Revenue,CAHD,South Glos Users in South Glos Homes,Permanent Nursing,Beaufort Grange Care Home,750.40, 01-Jun-2021
603,Revenue,CAHD,South Glos Users in South Glos Homes,Permanent Nursing,Beaufort Grange Care Home,750.40, 29-Jun-2021
604,Revenue,CAHD,South Glos Users in South Glos Homes,Permanent Nursing,Beaufort Grange Care Home,750.40, 01-Jun-2021
605,Revenue,CAHD,South Glos Users in South Glos Homes,Permanent Nursing,Beaufort Grange Care Home,750.40, 29-Jun-2021
606,Revenue,CAHD,South Glos Users in South Glos Homes,Permanent Nursing,Beaufort Grange Care Home,750.40, 01-Jun-2021
607,Revenue,CAHD,South Glos Users in South Glos Homes,Permanent Nursing,Beaufort Grange Care Home,750.40, 29-Jun-2021
608,Revenue,CAHD,South Glos Users in South Glos Homes,Permanent Nursing,Beaufort Grange Care Home,750.40, 01-Jun-2021
609,Revenue,CAHD,South Glos Users in South Glos Homes,Permanent Nursing,Beaufort Grange Care Home,750.40, 29-Jun-2021
610,Revenue,CAHD,South Glos Users in South Glos Homes,Permanent Nursing,Beaufort Grange Care Home,750.40, 01-Jun-2021
611,Revenue,CAHD,South Glos Users in South Glos Homes,Permanent Nursing,Beaufort Grange Care Home,750.40, 29-Jun-2021
612,Revenue,CAHD,South Glos Users in South Glos Homes,Permanent Nursing,Beaufort Grange Care Home,750.40, 01-Jun-2021
613,Revenue,CAHD,South Glos Users in South Glos Homes,Permanent Nursing,Beaufort Grange Care Home,750.40, 29-Jun-2021
614,Revenue,CAHD,North - S117,Permanent Nursing,Beaufort Grange Care Home,21600.00, 01-Jun-2021
615,Revenue,CAHD,North - S117,Permanent Nursing,Beaufort Grange Care Home,6750.00, 01-Jun-2021
616,Revenue,CAHD,North - S117,Permanent Nursing,Beaufort Grange Care Home,5400.00, 01-Jun-2021
617,Revenue,CAHD,North - S117,Permanent Nursing,Beaufort Grange Care Home,5400.00, 29-Jun-2021
618,Revenue,CAHD,South Glos Users in South Glos Homes,Permanent Nursing,Beaufort Grange Care Home,1208.62, 29-Jun-2021
619,Revenue,CAHD,Central - Commissioned Services,Fees & Charges Income - General,Beaufort Grange Care Home,7961.97, 01-Jun-2021
620,Revenue,CAHD,Central - Commissioned Services,Permanent Nursing,Beaufort Grange Care Home,5500.00, 01-Jun-2021
621,Revenue,CAHD,Central - Commissioned Services,Fees & Charges Income - General,Beaufort Grange Care Home,1166.25, 01-Jun-2021
622,Revenue,CAHD,Central - Commissioned Services,Permanent Nursing,Beaufort Grange Care Home,5500.00, 29-Jun-2021
623,Revenue,CAHD,South Glos Users in South Glos Homes,Permanent Nursing,Beaufort Grange Care Home,750.40, 01-Jun-2021
624,Revenue,CAHD,South Glos Users in South Glos Homes,Permanent Nursing,Beaufort Grange Care Home,750.40, 29-Jun-2021
625,Revenue,CAHD,South Glos Users in South Glos Homes,Permanent Nursing,Beaufort Grange Care Home,750.40, 01-Jun-2021
626,Revenue,CAHD,South Glos Users in South Glos Homes,Permanent Nursing,Beaufort Grange Care Home,750.40, 29-Jun-2021
627,Revenue,CAHD,North - Community based support,Permanent Nursing,Beaufort Grange Care Home,10024.00, 01-Jun-2021
628,Revenue,CAHD,North - Community based support,Permanent Nursing,Beaufort Grange Care Home,25236.00, 29-Jun-2021
629,Revenue,CAHD,North - Community based support,Permanent Nursing,Beaufort Grange Care Home,10620.00, 29-Jun-2021
630,Revenue,CAHD,North - Community based support,Permanent Nursing,Beaufort Grange Care Home,1127.01, 29-Jun-2021
631,Revenue,CAHD,North - Community based support,Fees & Charges Income - General,Beaufort Grange Care Home,800.68, 29-Jun-2021
632,Revenue,CAHD,North - Community based support,Fees & Charges Income - General,Beaufort Grange Care Home,942.40, 29-Jun-2021
633,Revenue,CAHD,South Glos Users in South Glos Homes,Permanent Nursing,Beaufort Grange Care Home,750.40, 01-Jun-2021
634,Revenue,CAHD,South Glos Users in South Glos Homes,Permanent Nursing,Beaufort Grange Care Home,750.40, 29-Jun-2021
635,Revenue,CAHD,South Glos Users in South Glos Homes,Permanent Nursing,Beaufort Grange Care Home,1581.20, 29-Jun-2021
636,Revenue,CAHD,South Glos Users in South Glos Homes,Permanent Nursing,Beaufort Grange Care Home,750.40, 29-Jun-2021
637,Revenue,CAHD,South Glos Users in South Glos Homes,Permanent Nursing,Beaufort Grange Care Home,750.40, 01-Jun-2021
638,Revenue,CAHD,South Glos Users in South Glos Homes,Permanent Nursing,Beaufort Grange Care Home,750.40, 29-Jun-2021
639,Revenue,CAHD,South Glos Users in South Glos Homes,Permanent Nursing,Beaufort Grange Care Home,750.40, 01-Jun-2021
640,Revenue,CAHD,South Glos Users in South Glos Homes,Permanent Nursing,Beaufort Grange Care Home,750.40, 29-Jun-2021
641,Revenue,CAHD,South Glos Users in South Glos Homes,Permanent Nursing,Beaufort Grange Care Home,750.40, 01-Jun-2021
642,Revenue,CAHD,South Glos Users in South Glos Homes,Permanent Nursing,Beaufort Grange Care Home,750.40, 29-Jun-2021
643,Revenue,CAHD,South Glos Users in South Glos Homes,Permanent Nursing,Beaufort Grange Care Home,750.40, 01-Jun-2021
644,Revenue,CAHD,South Glos Users in South Glos Homes,Permanent Nursing,Beaufort Grange Care Home,750.40, 29-Jun-2021
645,Revenue,CAHD,South Glos Users in South Glos Homes,Permanent Nursing,Beaufort Grange Care Home,1983.20, 29-Jun-2021
646,Revenue,CAHD,South Glos Users in South Glos Homes,Permanent Nursing,Beaufort Grange Care Home,750.40, 29-Jun-2021
647,Revenue,CAHD,South Glos Users in South Glos Homes,Permanent Nursing,Beaufort Grange Care Home,750.40, 01-Jun-2021
648,Revenue,CAHD,South Glos Users in South Glos Homes,Permanent Nursing,Beaufort Grange Care Home,750.40, 29-Jun-2021
649,Revenue,CAHD,South Glos Users in South Glos Homes,Permanent Nursing,Beaufort Grange Care Home,750.40, 01-Jun-2021
650,Revenue,CAHD,South Glos Users in South Glos Homes,Permanent Nursing,Beaufort Grange Care Home,750.40, 29-Jun-2021
651,Revenue,CAHD,South Glos Users in South Glos Homes,Permanent Nursing,Beaufort Grange Care Home,4913.29, 29-Jun-2021
652,Revenue,CAHD,South Glos Users in South Glos Homes,Permanent Nursing,Beaufort Grange Care Home,1983.20, 29-Jun-2021
653,Revenue,CAHD,South Glos Users in South Glos Homes,Permanent Nursing,Beaufort Grange Care Home,750.40, 29-Jun-2021
654,Revenue,CAHD,South Glos Users in South Glos Homes,Permanent Nursing,Beaufort Grange Care Home,750.40, 01-Jun-2021
655,Revenue,CAHD,South Glos Users in South Glos Homes,Permanent Nursing,Beaufort Grange Care Home,750.40, 29-Jun-2021
656,Revenue,CAHD,South Glos Users in South Glos Homes,Permanent Nursing,Beaufort Grange Care Home,750.40, 01-Jun-2021
657,Revenue,CAHD,South Glos Users in South Glos Homes,Permanent Nursing,Beaufort Grange Care Home,750.40, 29-Jun-2021
658,Revenue,CAHD,South Glos Users in South Glos Homes,Permanent Nursing,Beaufort Grange Care Home,750.40, 01-Jun-2021
659,Revenue,CAHD,South Glos Users in South Glos Homes,Permanent Nursing,Beaufort Grange Care Home,1983.20, 29-Jun-2021
660,Revenue,CAHD,South Glos Users in South Glos Homes,Permanent Nursing,Beaufort Grange Care Home,1261.17, 29-Jun-2021
661,Revenue,CAHD,South Glos Users in South Glos Homes,Permanent Nursing,Beaufort Grange Care Home,750.40, 29-Jun-2021
662,Revenue,CAHD,South Glos Users in South Glos Homes,Permanent Nursing,Beaufort Grange Care Home,750.40, 01-Jun-2021
663,Revenue,CAHD,South Glos Users in South Glos Homes,Permanent Nursing,Beaufort Grange Care Home,750.40, 29-Jun-2021
664,Revenue,CAHD,South Glos Users in South Glos Homes,Permanent Nursing,Beaufort Grange Care Home,750.40, 01-Jun-2021
665,Revenue,CAHD,Central - Commissioned Services,Permanent Nursing,Beaufort Grange Care Home,4570.56, 01-Jun-2021
666,Revenue,CAHD,South Glos Users in South Glos Homes,Permanent Nursing,Beaufort Grange Care Home,750.40, 01-Jun-2021
667,Revenue,CAHD,Central - Commissioned Services,Permanent Nursing,Beaufort Grange Care Home,761.76, 01-Jun-2021
668,Revenue,CAHD,Central - Commissioned Services,Permanent Nursing,Beaufort Grange Care Home,5332.32, 29-Jun-2021
669,Revenue,CAHD,South Glos Users in South Glos Homes,Permanent Nursing,Beaufort Grange Care Home,750.40, 29-Jun-2021
670,Revenue,CAHD,South Glos Users in South Glos Homes,Permanent Nursing,Beaufort Grange Care Home,750.40, 01-Jun-2021
671,Revenue,CAHD,Central - Commissioned Services,Permanent Residential,Beaufort House,2991.84, 01-Jun-2021
672,Revenue,CAHD,Central - Commissioned Services,Permanent Residential,Beaufort House,2991.84, 29-Jun-2021
673,Revenue,CAHD,Central - Commissioned Services,Permanent Residential,Beaufort House,2896.24, 01-Jun-2021
674,Revenue,CAHD,Central - Commissioned Services,Permanent Residential,Beaufort House,2896.24, 29-Jun-2021
675,Revenue,CAHD,North - Community based support,Permanent Residential,Beaufort House,2683.16, 01-Jun-2021
676,Revenue,CAHD,North - Community based support,Permanent Residential,Beaufort House,2683.16, 29-Jun-2021
677,Revenue,CAHD,South - Commissioned Services,Fees & Charges Income - General,Beaufort House,1102.71, 01-Jun-2021
678,Revenue,CAHD,Central - Commissioned Services,Permanent Residential,Beaufort House,3800.00, 01-Jun-2021
679,Revenue,CAHD,Central - Commissioned Services,Permanent Residential,Beaufort House,3800.00, 29-Jun-2021
680,Revenue,CAHD,North - Community based support,Permanent Residential,Beaufort House,4000.00, 01-Jun-2021
681,Revenue,CAHD,North - Community based support,Permanent Residential,Beaufort House,4000.00, 29-Jun-2021
682,Revenue,CAHD,North - Community based support,Permanent Residential,Beaufort House,2817.28, 01-Jun-2021
683,Revenue,CAHD,North - Community based support,Permanent Residential,Beaufort House,2817.28, 29-Jun-2021
684,Revenue,CAHD,Central - Commissioned Services,Permanent Residential,Beaufort House,4000.00, 01-Jun-2021
685,Revenue,CAHD,Central - Commissioned Services,Permanent Residential,Beaufort House,4000.00, 29-Jun-2021
686,Revenue,CAHD,Central - Commissioned Services,Permanent Residential,Beaufort House,3200.00, 01-Jun-2021
687,Revenue,CAHD,Central - Commissioned Services,Permanent Residential,Beaufort House,3200.00, 29-Jun-2021
688,Revenue,CAHD,Central - Commissioned Services,Permanent Residential,Beaufort House,3600.00, 01-Jun-2021
689,Revenue,CAHD,Central - Commissioned Services,Permanent Residential,Beaufort House,3600.00, 29-Jun-2021
690,Revenue,CAHD,North - Community based support,Respite Planned - Residential,Beaufort House,3285.71, 01-Jun-2021
691,Revenue,CAHD,North - Community based support,Respite Planned - Residential,Beaufort House,3285.71, 01-Jun-2021
692,Revenue,CAHD,North - Community based support,Respite Planned - Residential,Beaufort House,714.29, 01-Jun-2021
693,Revenue,CAHD,Central - Commissioned Services,Permanent Residential,Beaufort House,3600.00, 01-Jun-2021
694,Revenue,CAHD,Central - Commissioned Services,Permanent Residential,Beaufort House,3600.00, 29-Jun-2021
695,Revenue,CAHD,Central - Commissioned Services,Permanent Residential,Beaufort House,3478.20, 01-Jun-2021
696,Revenue,CAHD,Central - Commissioned Services,Permanent Residential,Beaufort House,3478.20, 29-Jun-2021
697,Revenue,CAHD,South - Commissioned Services,Permanent Residential,Beech House,3088.28, 01-Jun-2021
698,Revenue,CAHD,South Glos Users in South Glos Homes,Permanent Nursing,Beech House,750.40, 01-Jun-2021
699,Revenue,CAHD,South - Commissioned Services,Permanent Residential,Beech House,3088.28, 29-Jun-2021
700,Revenue,CAHD,South Glos Users in South Glos Homes,Permanent Nursing,Beech House,750.40, 29-Jun-2021
701,Revenue,CAHD,South Glos Users in South Glos Homes,Permanent Nursing,Beech House,750.40, 01-Jun-2021
702,Revenue,CAHD,South Glos Users in South Glos Homes,Permanent Nursing,Beech House,750.40, 29-Jun-2021
703,Revenue,CAHD,South Glos Users in South Glos Homes,Permanent Nursing,Beech House,750.40, 01-Jun-2021
704,Revenue,CAHD,South Glos Users in South Glos Homes,Permanent Nursing,Beech House,750.40, 29-Jun-2021
705,Revenue,CAHD,South Glos Users in South Glos Homes,Permanent Nursing,Beech House,804.00, 29-Jun-2021
706,Revenue,CAHD,South Glos Users in South Glos Homes,Permanent Nursing,Beech House,1983.20, 29-Jun-2021
707,Revenue,CAHD,South Glos Users in South Glos Homes,Permanent Nursing,Beech House,750.40, 29-Jun-2021
708,Revenue,CAHD,South Glos Users in South Glos Homes,Permanent Nursing,Beech House,551.76, 29-Jun-2021
709,Revenue,CAHD,South Glos Users in South Glos Homes,Permanent Nursing,Beech House,750.40, 01-Jun-2021
710,Revenue,CAHD,South Glos Users in South Glos Homes,Permanent Nursing,Beech House,750.40, 29-Jun-2021
711,Revenue,CAHD,South Glos Users in South Glos Homes,Permanent Nursing,Beech House,750.40, 01-Jun-2021
712,Revenue,CAHD,South Glos Users in South Glos Homes,Permanent Nursing,Beech House,750.40, 29-Jun-2021
713,Revenue,CAHD,Central - Commissioned Services,Respite Planned - Residential,Beech House,5917.14, 01-Jun-2021
714,Revenue,CAHD,Central - Commissioned Services,Permanent Residential,Beech House,2880.00, 01-Jun-2021
715,Revenue,CAHD,Central - Commissioned Services,Respite Planned - Residential,Beech House,1120.00, 01-Jun-2021
716,Revenue,CAHD,Central - Commissioned Services,Respite Planned - Residential,Beech House,1120.00, 01-Jun-2021
717,Revenue,CAHD,Central - Commissioned Services,Respite Planned - Residential,Beech House,796.48, 01-Jun-2021
718,Revenue,CAHD,Central - Commissioned Services,Respite Planned - Residential,Beech House,637.18, 01-Jun-2021
719,Revenue,CAHD,South Glos Users in South Glos Homes,Permanent Nursing,Beech House,750.40, 01-Jun-2021
720,Revenue,CAHD,South Glos Users in South Glos Homes,Permanent Nursing,Beech House,750.40, 29-Jun-2021
721,Revenue,CAHD,North - Community based support,Permanent Nursing,Beech House,4378.44, 01-Jun-2021
722,Revenue,CAHD,South Glos Users in South Glos Homes,Permanent Nursing,Beech House,750.40, 01-Jun-2021
723,Revenue,CAHD,North - Community based support,Permanent Nursing,Beech House,4378.44, 29-Jun-2021
724,Revenue,CAHD,South Glos Users in South Glos Homes,Permanent Nursing,Beech House,750.40, 29-Jun-2021
725,Revenue,CAHD,North - Community based support,Permanent Nursing,Beech House,4378.44, 01-Jun-2021
726,Revenue,CAHD,South Glos Users in South Glos Homes,Permanent Nursing,Beech House,750.40, 01-Jun-2021
727,Revenue,CAHD,North - Community based support,Permanent Nursing,Beech House,4378.44, 29-Jun-2021
728,Revenue,CAHD,South Glos Users in South Glos Homes,Permanent Nursing,Beech House,750.40, 29-Jun-2021
729,Revenue,CAHD,North - Community based support,Respite Planned - Nursing,Beech House,5977.47, 01-Jun-2021
730,Revenue,CAHD,South Glos Users in South Glos Homes,Permanent Nursing,Beech House,1681.55, 01-Jun-2021
731,Revenue,CAHD,North - Community based support,Permanent Nursing,Beech House,4407.12, 01-Jun-2021
732,Revenue,CAHD,South Glos Users in South Glos Homes,Permanent Nursing,Beech House,750.40, 01-Jun-2021
733,Revenue,CAHD,North - Community based support,Permanent Nursing,Beech House,4407.12, 29-Jun-2021
734,Revenue,CAHD,South Glos Users in South Glos Homes,Permanent Nursing,Beech House,750.40, 29-Jun-2021
735,Revenue,CAHD,South Glos Users in South Glos Homes,Permanent Nursing,Beech House,750.40, 01-Jun-2021
736,Revenue,CAHD,South Glos Users in South Glos Homes,Permanent Nursing,Beech House,750.40, 29-Jun-2021
737,Revenue,CAHD,South Glos Users in South Glos Homes,Permanent Nursing,Beech House,750.40, 01-Jun-2021
738,Revenue,CAHD,South Glos Users in South Glos Homes,Permanent Nursing,Beech House,750.40, 29-Jun-2021
739,Revenue,CAHD,South Glos Users in South Glos Homes,Permanent Nursing,Beech House,750.40, 01-Jun-2021
740,Revenue,CAHD,South Glos Users in South Glos Homes,Permanent Nursing,Beech House,750.40, 29-Jun-2021
741,Revenue,CAHD,North - Community based support,Permanent Residential,Beech House,2720.00, 29-Jun-2021
742,Revenue,CAHD,South Glos Users in South Glos Homes,Permanent Nursing,Beech House,750.40, 01-Jun-2021
743,Revenue,CAHD,South Glos Users in South Glos Homes,Permanent Nursing,Beech House,750.40, 29-Jun-2021
744,Revenue,CAHD,South Glos Users in South Glos Homes,Permanent Nursing,Beech House,4440.35, 01-Jun-2021
745,Revenue,CAHD,South Glos Users in South Glos Homes,Permanent Nursing,Beech House,1232.80, 01-Jun-2021
746,Revenue,CAHD,South Glos Users in South Glos Homes,Permanent Nursing,Beech House,750.40, 01-Jun-2021
747,Revenue,CAHD,South Glos Users in South Glos Homes,Permanent Nursing,Beech House,750.40, 29-Jun-2021
748,Revenue,CAHD,South Glos Users in South Glos Homes,Permanent Nursing,Beech House,750.40, 01-Jun-2021
749,Revenue,CAHD,South Glos Users in South Glos Homes,Permanent Nursing,Beech House,750.40, 29-Jun-2021
750,Revenue,CAHD,South Glos Users in South Glos Homes,Permanent Nursing,Beech House,750.40, 01-Jun-2021
751,Revenue,CAHD,South Glos Users in South Glos Homes,Permanent Nursing,Beech House,750.40, 29-Jun-2021
752,Revenue,CAHD,North - Community based support,Permanent Residential,Beech House,4460.28, 01-Jun-2021
753,Revenue,CAHD,North - Community based support,Permanent Residential,Beech House,4460.28, 29-Jun-2021
754,Revenue,CAHD,South Glos Users in South Glos Homes,Permanent Nursing,Beechwood Care Home,1044.00, 01-Jun-2021
755,Revenue,CAHD,South Glos Users in South Glos Homes,Permanent Nursing,Beechwood Care Home,1044.00, 29-Jun-2021
756,Revenue,CAHD,18-25 Year Olds,Permanent Residential,Beechwood Court Ltd,20867.62, 23-Jun-2021
757,Revenue,CAHD,18-25 Year Olds,Permanent Residential,Beechwood Court Ltd,14586.31, 14-Jun-2021
758,Revenue,CAHD,18-25 Year Olds,Permanent Residential,Beechwood Court Ltd,20867.62, 23-Jun-2021
759,Revenue,CAHD,CSC - Residential Placements,Permanent Residential,Beechwood Court Ltd,21854.54, 14-Jun-2021
760,Revenue,CAHD,18-25 Year Olds,Permanent Residential,Beechwood Court Ltd,14586.31, 25-Jun-2021
761,Revenue,CAHD,18-25 Year Olds,Permanent Residential,Beechwood Court Ltd,20867.62, 25-Jun-2021
762,Revenue,CAHD,CSC - Residential Placements,Permanent Residential,Beechwood Court Ltd,21854.54, 25-Jun-2021
763,Revenue,CAHD,South - Commissioned Services,Permanent Nursing,Begbrook House Nursing Home,3593.88, 01-Jun-2021
764,Revenue,CAHD,South - Commissioned Services,Permanent Nursing,Begbrook House Nursing Home,3593.88, 29-Jun-2021
765,Revenue,CAHD,Central - Commissioned Services,Permanent Nursing,Begbrook House Nursing Home,3400.00, 01-Jun-2021
766,Revenue,CAHD,Central - Commissioned Services,Permanent Nursing,Begbrook House Nursing Home,3400.00, 29-Jun-2021
767,Revenue,CAHD,North - Community based support,Permanent Nursing,Begbrook House Nursing Home,3234.72, 01-Jun-2021
768,Revenue,CAHD,North - Community based support,Permanent Nursing,Begbrook House Nursing Home,3234.72, 29-Jun-2021
769,Revenue,CAHD,South - Commissioned Services,Permanent Residential,Begbrook House Nursing Home,3400.00, 01-Jun-2021
770,Revenue,CAHD,South - Commissioned Services,Permanent Residential,Begbrook House Nursing Home,3400.00, 29-Jun-2021
771,Revenue,CAHD,Central - Commissioned Services,Permanent Nursing,Begbrook House Nursing Home,3400.00, 01-Jun-2021
772,Revenue,CAHD,Central - Commissioned Services,Permanent Nursing,Begbrook House Nursing Home,3400.00, 29-Jun-2021
773,Revenue,CAHD,Covid 19- Spend on behalf of NHS,Respite Planned - Nursing,Begbrook House Nursing Home,4113.86, 01-Jun-2021
774,Revenue,CAHD,Covid 19- Spend on behalf of NHS,Respite Planned - Nursing,Begbrook House Nursing Home,1844.14, 01-Jun-2021
775,Revenue,CAHD,Covid 19- Spend on behalf of NHS,Respite Planned - Nursing,Begbrook House Nursing Home,3262.71, 29-Jun-2021
776,Revenue,CAHD,South - S117,Permanent Residential,Bidna House,3774.24, 01-Jun-2021
777,Revenue,CAHD,South - S117,Permanent Residential,Bidna House,3774.24, 29-Jun-2021
778,Revenue,CAHD,Placements OLA Special Schools and RB,Other L.A.s - General,Blaise High School,807.94, 22-Jun-2021
779,Revenue,CAHD,Statemented Support Payments to OLAs,Other L.A.s - General,Blaise High School,907.83, 22-Jun-2021
780,Revenue,CAHD,Central - Commissioned Services,Other Small Contracts,Blakehill Healthcare Ltd,4543.75, 03-Jun-2021
781,Revenue,CAHD,South - Commissioned Services,Other Small Contracts,Blakehill Healthcare Ltd,4422.31, 03-Jun-2021
782,Revenue,CAHD,North - Community based support,Other Small Contracts,Blakehill Healthcare Ltd,5444.15, 03-Jun-2021
783,Revenue,CAHD,Central - Commissioned Services,Other Small Contracts,Blakehill Healthcare Ltd,4937.50, 03-Jun-2021
784,Revenue,CAHD,South - Commissioned Services,Other Small Contracts,Blakehill Healthcare Ltd,4212.61, 03-Jun-2021
785,Revenue,CAHD,North - Community based support,Other Small Contracts,Blakehill Healthcare Ltd,5587.90, 03-Jun-2021
786,Revenue,CAHD,Central - Commissioned Services,Other Small Contracts,Blakehill Healthcare Ltd,4831.25, 18-Jun-2021
787,Revenue,CAHD,South - Commissioned Services,Other Small Contracts,Blakehill Healthcare Ltd,4313.38, 18-Jun-2021
788,Revenue,CAHD,North - Community based support,Other Small Contracts,Blakehill Healthcare Ltd,5426.80, 18-Jun-2021
789,Revenue,CAHD,Central - Commissioned Services,Other Small Contracts,Blakehill Healthcare Ltd,4956.25, 23-Jun-2021
790,Revenue,CAHD,South - Commissioned Services,Other Small Contracts,Blakehill Healthcare Ltd,3201.60, 23-Jun-2021
791,Revenue,CAHD,North - Community based support,Other Small Contracts,Blakehill Healthcare Ltd,4870.80, 23-Jun-2021
792,Revenue,CAHD,South Glos Users in South Glos Homes,Permanent Nursing,Blossom Fields Nursing Home,750.40, 01-Jun-2021
793,Revenue,CAHD,South Glos Users in South Glos Homes,Permanent Nursing,Blossom Fields Nursing Home,750.40, 29-Jun-2021
794,Revenue,CAHD,North - Community based support,Permanent Residential,Blossom Fields Nursing Home,4132.12, 01-Jun-2021
795,Revenue,CAHD,South Glos Users in South Glos Homes,Permanent Nursing,Blossom Fields Nursing Home,750.40, 01-Jun-2021
796,Revenue,CAHD,South Glos Users in South Glos Homes,Permanent Nursing,Blossom Fields Nursing Home,750.40, 01-Jun-2021
797,Revenue,CAHD,South Glos Users in South Glos Homes,Permanent Nursing,Blossom Fields Nursing Home,750.40, 29-Jun-2021
798,Revenue,CAHD,South Glos Users in South Glos Homes,Permanent Nursing,Blossom Fields Nursing Home,750.40, 01-Jun-2021
799,Revenue,CAHD,North - Community based support,Permanent Nursing,Blossom Fields Nursing Home,11250.00, 29-Jun-2021
800,Revenue,CAHD,North - Community based support,Permanent Nursing,Blossom Fields Nursing Home,7321.43, 29-Jun-2021
801,Revenue,CAHD,North - Community based support,Permanent Nursing,Blossom Fields Nursing Home,5000.00, 29-Jun-2021
802,Revenue,CAHD,South Glos Users in South Glos Homes,Permanent Nursing,Blossom Fields Nursing Home,750.40, 29-Jun-2021
803,Revenue,CAHD,North - Community based support,Permanent Nursing,Blossom Fields Nursing Home,4880.12, 01-Jun-2021
804,Revenue,CAHD,South Glos Users in South Glos Homes,Permanent Nursing,Blossom Fields Nursing Home,750.40, 01-Jun-2021
805,Revenue,CAHD,North - Community based support,Permanent Nursing,Blossom Fields Nursing Home,4880.12, 29-Jun-2021
806,Revenue,CAHD,South Glos Users in South Glos Homes,Permanent Nursing,Blossom Fields Nursing Home,750.40, 29-Jun-2021
807,Revenue,CAHD,South Glos Users in South Glos Homes,Permanent Nursing,Blossom Fields Nursing Home,750.40, 01-Jun-2021
808,Revenue,CAHD,South Glos Users in South Glos Homes,Permanent Nursing,Blossom Fields Nursing Home,1313.71, 01-Jun-2021
809,Revenue,CAHD,South Glos Users in South Glos Homes,Permanent Nursing,Blossom Fields Nursing Home,1232.80, 01-Jun-2021
810,Revenue,CAHD,South Glos Users in South Glos Homes,Permanent Nursing,Blossom Fields Nursing Home,750.40, 01-Jun-2021
811,Revenue,CAHD,South Glos Users in South Glos Homes,Permanent Nursing,Blossom Fields Nursing Home,1471.36, 01-Jun-2021
812,Revenue,CAHD,South Glos Users in South Glos Homes,Permanent Nursing,Blossom Fields Nursing Home,1232.80, 01-Jun-2021
813,Revenue,CAHD,South Glos Users in South Glos Homes,Permanent Nursing,Blossom Fields Nursing Home,750.40, 01-Jun-2021
814,Revenue,CAHD,South Glos Users in South Glos Homes,Permanent Nursing,Blossom Fields Nursing Home,750.40, 29-Jun-2021
815,Revenue,CAHD,South - Commissioned Services,Permanent Nursing,Blossom Fields Nursing Home,4604.88, 01-Jun-2021
816,Revenue,CAHD,South Glos Users in South Glos Homes,Permanent Nursing,Blossom Fields Nursing Home,750.40, 01-Jun-2021
817,Revenue,CAHD,South Glos Users in South Glos Homes,Permanent Nursing,Blossom Fields Nursing Home,750.40, 01-Jun-2021
818,Revenue,CAHD,South Glos Users in South Glos Homes,Permanent Nursing,Blossom Fields Nursing Home,750.40, 29-Jun-2021
819,Revenue,CAHD,North - Community based support,Permanent Nursing,Blossom Fields Nursing Home,4910.28, 01-Jun-2021
820,Revenue,CAHD,South Glos Users in South Glos Homes,Permanent Nursing,Blossom Fields Nursing Home,750.40, 01-Jun-2021
821,Revenue,CAHD,North - Community based support,Permanent Nursing,Blossom Fields Nursing Home,4910.28, 29-Jun-2021
822,Revenue,CAHD,South Glos Users in South Glos Homes,Permanent Nursing,Blossom Fields Nursing Home,750.40, 29-Jun-2021
823,Revenue,CAHD,South Glos Users in South Glos Homes,Permanent Nursing,Blossom Fields Nursing Home,750.40, 01-Jun-2021
824,Revenue,CAHD,South Glos Users in South Glos Homes,Permanent Nursing,Blossom Fields Nursing Home,750.40, 29-Jun-2021
825,Revenue,CAHD,North - Community based support,Permanent Nursing,Blossom Fields Nursing Home,4910.40, 01-Jun-2021
826,Revenue,CAHD,South Glos Users in South Glos Homes,Permanent Nursing,Blossom Fields Nursing Home,750.40, 01-Jun-2021
827,Revenue,CAHD,North - Community based support,Permanent Nursing,Blossom Fields Nursing Home,4910.40, 29-Jun-2021
828,Revenue,CAHD,South Glos Users in South Glos Homes,Permanent Nursing,Blossom Fields Nursing Home,750.40, 29-Jun-2021
829,Revenue,CAHD,South Glos Users in South Glos Homes,Permanent Nursing,Blossom Fields Nursing Home,1232.80, 01-Jun-2021
830,Revenue,CAHD,South Glos Users in South Glos Homes,Permanent Nursing,Blossom Fields Nursing Home,750.40, 01-Jun-2021
831,Revenue,CAHD,South Glos Users in South Glos Homes,Permanent Nursing,Blossom Fields Nursing Home,750.40, 29-Jun-2021
832,Revenue,CAHD,South Glos Users in South Glos Homes,Permanent Nursing,Blossom Fields Nursing Home,750.40, 01-Jun-2021
833,Revenue,CAHD,South Glos Users in South Glos Homes,Permanent Nursing,Blossom Fields Nursing Home,750.40, 29-Jun-2021
834,Revenue,CAHD,South Glos Users in South Glos Homes,Permanent Nursing,Blossom Fields Nursing Home,750.40, 01-Jun-2021
835,Revenue,CAHD,South Glos Users in South Glos Homes,Permanent Nursing,Blossom Fields Nursing Home,750.40, 29-Jun-2021
836,Revenue,CAHD,South Glos Users in South Glos Homes,Permanent Nursing,Blossom Fields Nursing Home,750.40, 01-Jun-2021
837,Revenue,CAHD,South Glos Users in South Glos Homes,Permanent Nursing,Blossom Fields Nursing Home,750.40, 29-Jun-2021
838,Revenue,CAHD,North - Community based support,Fees & Charges Income - General,Blossom Fields Nursing Home,1441.99, 01-Jun-2021
839,Revenue,CAHD,North - Community based support,Fees & Charges Income - General,Blossom Fields Nursing Home,1947.28, 01-Jun-2021
840,Revenue,CAHD,North - Community based support,Permanent Residential,Blossom Fields Nursing Home,4132.12, 01-Jun-2021
841,Revenue,CAHD,South Glos Users in South Glos Homes,Permanent Nursing,Blossom Fields Nursing Home,750.40, 01-Jun-2021
842,Revenue,CAHD,North - Community based support,Permanent Residential,Blossom Fields Nursing Home,4132.12, 29-Jun-2021
843,Revenue,CAHD,South Glos Users in South Glos Homes,Permanent Nursing,Blossom Fields Nursing Home,750.40, 29-Jun-2021
844,Revenue,CAHD,South Glos Users in South Glos Homes,Permanent Nursing,Blossom Fields Nursing Home,750.40, 01-Jun-2021
845,Revenue,CAHD,South Glos Users in South Glos Homes,Permanent Nursing,Blossom Fields Nursing Home,750.40, 29-Jun-2021
846,Revenue,CAHD,North - Community based support,Permanent Nursing,Blossom Fields Nursing Home,5017.57, 29-Jun-2021
847,Revenue,CAHD,North - Community based support,Permanent Nursing,Blossom Fields Nursing Home,4132.12, 29-Jun-2021
848,Revenue,CAHD,South Glos Users in South Glos Homes,Permanent Nursing,Blossom Fields Nursing Home,750.40, 01-Jun-2021
849,Revenue,CAHD,South Glos Users in South Glos Homes,Permanent Nursing,Blossom Fields Nursing Home,750.40, 29-Jun-2021
850,Revenue,CAHD,South Glos Users in South Glos Homes,Permanent Nursing,Blossom Fields Nursing Home,750.40, 01-Jun-2021
851,Revenue,CAHD,South Glos Users in South Glos Homes,Permanent Nursing,Blossom Fields Nursing Home,750.40, 01-Jun-2021
852,Revenue,CAHD,South Glos Users in South Glos Homes,Permanent Nursing,Blossom Fields Nursing Home,750.40, 29-Jun-2021
853,Revenue,CAHD,Central - Commissioned Services,Permanent Nursing,Blossom Fields Nursing Home,4132.12, 01-Jun-2021
854,Revenue,CAHD,South Glos Users in South Glos Homes,Permanent Nursing,Blossom Fields Nursing Home,750.40, 01-Jun-2021
855,Revenue,CAHD,Central - Commissioned Services,Permanent Nursing,Blossom Fields Nursing Home,4132.12, 29-Jun-2021
856,Revenue,CAHD,South Glos Users in South Glos Homes,Permanent Nursing,Blossom Fields Nursing Home,750.40, 29-Jun-2021
857,Revenue,CAHD,South Glos Users in South Glos Homes,Permanent Nursing,Blossom Fields Nursing Home,750.40, 01-Jun-2021
858,Revenue,CAHD,South Glos Users in South Glos Homes,Permanent Nursing,Blossom Fields Nursing Home,750.40, 29-Jun-2021
859,Revenue,CAHD,South Glos Users in South Glos Homes,Permanent Nursing,Blossom Fields Nursing Home,750.40, 01-Jun-2021
860,Revenue,CAHD,South Glos Users in South Glos Homes,Permanent Nursing,Blossom Fields Nursing Home,750.40, 29-Jun-2021
861,Revenue,CAHD,South Glos Users in South Glos Homes,Permanent Nursing,Blossom Fields Nursing Home,750.40, 01-Jun-2021
862,Revenue,CAHD,South Glos Users in South Glos Homes,Permanent Nursing,Blossom Fields Nursing Home,750.40, 29-Jun-2021
863,Revenue,CAHD,South Glos Users in South Glos Homes,Permanent Nursing,Blossom Fields Nursing Home,750.40, 01-Jun-2021
864,Revenue,CAHD,South Glos Users in South Glos Homes,Permanent Nursing,Blossom Fields Nursing Home,750.40, 29-Jun-2021
865,Revenue,CAHD,North - Community based support,Permanent Nursing,Blossom Fields Nursing Home,4132.12, 01-Jun-2021
866,Revenue,CAHD,South Glos Users in South Glos Homes,Permanent Nursing,Blossom Fields Nursing Home,750.40, 01-Jun-2021
867,Revenue,CAHD,North - Community based support,Permanent Nursing,Blossom Fields Nursing Home,4132.12, 29-Jun-2021
868,Revenue,CAHD,South Glos Users in South Glos Homes,Permanent Nursing,Blossom Fields Nursing Home,750.40, 29-Jun-2021
869,Revenue,CAHD,Central - Commissioned Services,Permanent Nursing,Blossom Fields Nursing Home,4132.12, 01-Jun-2021
870,Revenue,CAHD,South Glos Users in South Glos Homes,Permanent Nursing,Blossom Fields Nursing Home,750.40, 01-Jun-2021
871,Revenue,CAHD,Central - Commissioned Services,Permanent Nursing,Blossom Fields Nursing Home,4132.12, 29-Jun-2021
872,Revenue,CAHD,South Glos Users in South Glos Homes,Permanent Nursing,Blossom Fields Nursing Home,750.40, 29-Jun-2021
873,Revenue,CAHD,South Glos Users in South Glos Homes,Permanent Nursing,Blossom Fields Nursing Home,750.40, 01-Jun-2021
874,Revenue,CAHD,South Glos Users in South Glos Homes,Permanent Nursing,Blossom Fields Nursing Home,750.40, 29-Jun-2021
875,Revenue,CAHD,North - Community based support,Permanent Nursing,Blossom Fields Nursing Home,3792.92, 01-Jun-2021
876,Revenue,CAHD,South Glos Users in South Glos Homes,Permanent Nursing,Blossom Fields Nursing Home,750.40, 01-Jun-2021
877,Revenue,CAHD,North - Community based support,Permanent Nursing,Blossom Fields Nursing Home,3792.92, 29-Jun-2021
878,Revenue,CAHD,South Glos Users in South Glos Homes,Permanent Nursing,Blossom Fields Nursing Home,750.40, 29-Jun-2021
879,Revenue,CAHD,South Glos Users in South Glos Homes,Permanent Nursing,Blossom Fields Nursing Home,1602.73, 01-Jun-2021
880,Revenue,CAHD,South Glos Users in South Glos Homes,Permanent Nursing,Blossom Fields Nursing Home,1232.80, 01-Jun-2021
881,Revenue,CAHD,South Glos Users in South Glos Homes,Permanent Nursing,Blossom Fields Nursing Home,750.40, 01-Jun-2021
882,Revenue,CAHD,South Glos Users in South Glos Homes,Permanent Nursing,Blossom Fields Nursing Home,830.80, 29-Jun-2021
883,Revenue,CAHD,South Glos Users in South Glos Homes,Permanent Nursing,Blossom Fields Nursing Home,750.40, 29-Jun-2021
884,Revenue,CAHD,South Glos Users in South Glos Homes,Permanent Nursing,Blossom Fields Nursing Home,1232.80, 01-Jun-2021
885,Revenue,CAHD,South Glos Users in South Glos Homes,Permanent Nursing,Blossom Fields Nursing Home,750.40, 01-Jun-2021
886,Revenue,CAHD,South Glos Users in South Glos Homes,Permanent Nursing,Blossom Fields Nursing Home,750.40, 29-Jun-2021
887,Revenue,CAHD,North - Community based support,Permanent Residential,Blossom Fields Nursing Home,2307.14, 29-Jun-2021
888,Revenue,CAHD,North - Community based support,Permanent Residential,Blossom Fields Nursing Home,1492.86, 29-Jun-2021
889,Revenue,CAHD,North - Community based support,Permanent Residential,Blossom Fields Nursing Home,1357.14, 29-Jun-2021
890,Revenue,CAHD,North - Community based support,Respite Planned - Nursing,Blossom Fields Nursing Home,6788.48, 29-Jun-2021
891,Revenue,CAHD,North - Community based support,Respite Planned - Nursing,Blossom Fields Nursing Home,1475.76, 29-Jun-2021
892,Revenue,CAHD,South Glos Users in South Glos Homes,Permanent Nursing,Blossom Fields Nursing Home,1232.80, 29-Jun-2021
893,Revenue,CAHD,South Glos Users in South Glos Homes,Permanent Nursing,Blossom Fields Nursing Home,750.40, 29-Jun-2021
894,Revenue,CAHD,South Glos Users in South Glos Homes,Permanent Nursing,Blossom Fields Nursing Home,750.40, 01-Jun-2021
895,Revenue,CAHD,South Glos Users in South Glos Homes,Permanent Nursing,Blossom Fields Nursing Home,750.40, 29-Jun-2021
896,Revenue,CAHD,Central - Commissioned Services,Permanent Residential,Blossom Fields Nursing Home,3800.00, 01-Jun-2021
897,Revenue,CAHD,Central - Commissioned Services,Permanent Residential,Blossom Fields Nursing Home,2714.29, 01-Jun-2021
898,Revenue,CAHD,Central - Commissioned Services,Permanent Residential,Blossom Fields Nursing Home,3800.00, 29-Jun-2021
899,Revenue,CAHD,Central - Commissioned Services,Permanent Nursing,Blossom Fields Nursing Home,4132.12, 01-Jun-2021
900,Revenue,CAHD,South Glos Users in South Glos Homes,Permanent Nursing,Blossom Fields Nursing Home,750.40, 01-Jun-2021
901,Revenue,CAHD,Central - Commissioned Services,Permanent Nursing,Blossom Fields Nursing Home,4132.12, 29-Jun-2021
902,Revenue,CAHD,South Glos Users in South Glos Homes,Permanent Nursing,Blossom Fields Nursing Home,750.40, 29-Jun-2021
903,Revenue,CAHD,South Glos Users in South Glos Homes,Permanent Nursing,Blossom Fields Nursing Home,750.40, 01-Jun-2021
904,Revenue,CAHD,South Glos Users in South Glos Homes,Permanent Nursing,Blossom Fields Nursing Home,750.40, 29-Jun-2021
905,Revenue,CAHD,South - Commissioned Services,Permanent Nursing,Blossom Fields Nursing Home,4790.76, 01-Jun-2021
906,Revenue,CAHD,South Glos Users in South Glos Homes,Permanent Nursing,Blossom Fields Nursing Home,750.40, 01-Jun-2021
907,Revenue,CAHD,South - Commissioned Services,Permanent Nursing,Blossom Fields Nursing Home,4790.76, 29-Jun-2021
908,Revenue,CAHD,South Glos Users in South Glos Homes,Permanent Nursing,Blossom Fields Nursing Home,750.40, 29-Jun-2021
909,Revenue,CAHD,Central - Commissioned Services,Permanent Nursing,Blossom Fields Nursing Home,5123.80, 01-Jun-2021
910,Revenue,CAHD,South Glos Users in South Glos Homes,Permanent Nursing,Blossom Fields Nursing Home,750.40, 01-Jun-2021
911,Revenue,CAHD,Central - Commissioned Services,Permanent Nursing,Blossom Fields Nursing Home,5123.80, 29-Jun-2021
912,Revenue,CAHD,South Glos Users in South Glos Homes,Permanent Nursing,Blossom Fields Nursing Home,750.40, 29-Jun-2021
913,Revenue,CAHD,Central - Commissioned Services,Permanent Nursing,Blossom Fields Nursing Home,4132.12, 01-Jun-2021
914,Revenue,CAHD,South Glos Users in South Glos Homes,Permanent Nursing,Blossom Fields Nursing Home,6857.59, 29-Jun-2021
915,Revenue,CAHD,Central - Commissioned Services,Permanent Nursing,Blossom Fields Nursing Home,4132.12, 29-Jun-2021
916,Revenue,CAHD,South Glos Users in South Glos Homes,Permanent Nursing,Blossom Fields Nursing Home,1983.20, 29-Jun-2021
917,Revenue,CAHD,South Glos Users in South Glos Homes,Permanent Nursing,Blossom Fields Nursing Home,750.40, 29-Jun-2021
918,Revenue,CAHD,South - Commissioned Services,Permanent Nursing,Blossom Fields Nursing Home,3943.04, 01-Jun-2021
919,Revenue,CAHD,South Glos Users in South Glos Homes,Permanent Nursing,Blossom Fields Nursing Home,750.40, 01-Jun-2021
920,Revenue,CAHD,South - Commissioned Services,Permanent Nursing,Blossom Fields Nursing Home,3943.04, 29-Jun-2021
921,Revenue,CAHD,South Glos Users in South Glos Homes,Permanent Nursing,Blossom Fields Nursing Home,750.40, 29-Jun-2021
922,Revenue,CAHD,South Glos Users in South Glos Homes,Permanent Nursing,Blossom Fields Nursing Home,1983.20, 29-Jun-2021
923,Revenue,CAHD,South Glos Users in South Glos Homes,Permanent Nursing,Blossom Fields Nursing Home,814.50, 29-Jun-2021
924,Revenue,CAHD,South Glos Users in South Glos Homes,Permanent Nursing,Blossom Fields Nursing Home,750.40, 29-Jun-2021
925,Revenue,CAHD,North - Community based support,Permanent Nursing,Blossom Fields Nursing Home,4132.12, 01-Jun-2021
926,Revenue,CAHD,South Glos Users in South Glos Homes,Permanent Nursing,Blossom Fields Nursing Home,750.40, 01-Jun-2021
927,Revenue,CAHD,North - Community based support,Permanent Nursing,Blossom Fields Nursing Home,4132.12, 29-Jun-2021
928,Revenue,CAHD,South Glos Users in South Glos Homes,Permanent Nursing,Blossom Fields Nursing Home,750.40, 29-Jun-2021
929,Revenue,CAHD,Central - Commissioned Services,Permanent Nursing,Blossom Fields Nursing Home,4132.12, 01-Jun-2021
930,Revenue,CAHD,South Glos Users in South Glos Homes,Permanent Nursing,Blossom Fields Nursing Home,750.40, 01-Jun-2021
931,Revenue,CAHD,Central - Commissioned Services,Permanent Nursing,Blossom Fields Nursing Home,4132.12, 29-Jun-2021
932,Revenue,CAHD,South Glos Users in South Glos Homes,Permanent Nursing,Blossom Fields Nursing Home,750.40, 29-Jun-2021
933,Revenue,CAHD,Central - Commissioned Services,Permanent Nursing,Blossom Fields Nursing Home,4790.76, 01-Jun-2021
934,Revenue,CAHD,South Glos Users in South Glos Homes,Permanent Nursing,Blossom Fields Nursing Home,750.40, 01-Jun-2021
935,Revenue,CAHD,Central - Commissioned Services,Permanent Nursing,Blossom Fields Nursing Home,4790.76, 29-Jun-2021
936,Revenue,CAHD,South Glos Users in South Glos Homes,Permanent Nursing,Blossom Fields Nursing Home,750.40, 29-Jun-2021
937,Revenue,CAHD,South - Commissioned Services,Permanent Residential,Blossom Fields Nursing Home,5115.00, 01-Jun-2021
938,Revenue,CAHD,South Glos Users in South Glos Homes,Permanent Nursing,Blossom Fields Nursing Home,1232.80, 01-Jun-2021
939,Revenue,CAHD,South Glos Users in South Glos Homes,Permanent Nursing,Blossom Fields Nursing Home,750.40, 01-Jun-2021
940,Revenue,CAHD,South - Commissioned Services,Permanent Residential,Blossom Fields Nursing Home,5115.00, 29-Jun-2021
941,Revenue,CAHD,South Glos Users in South Glos Homes,Permanent Nursing,Blossom Fields Nursing Home,750.40, 29-Jun-2021
942,Revenue,CAHD,South Glos Users in South Glos Homes,Permanent Nursing,Blossom Fields Nursing Home,750.40, 01-Jun-2021
943,Revenue,CAHD,South Glos Users in South Glos Homes,Permanent Nursing,Blossom Fields Nursing Home,750.40, 29-Jun-2021
944,Revenue,CAHD,Central - Commissioned Services,Permanent Nursing,Blossom Fields Nursing Home,4782.96, 01-Jun-2021
945,Revenue,CAHD,South Glos Users in South Glos Homes,Permanent Nursing,Blossom Fields Nursing Home,750.40, 01-Jun-2021
946,Revenue,CAHD,Central - Commissioned Services,Permanent Nursing,Blossom Fields Nursing Home,4782.96, 29-Jun-2021
947,Revenue,CAHD,South Glos Users in South Glos Homes,Permanent Nursing,Blossom Fields Nursing Home,750.40, 29-Jun-2021
948,Revenue,CAHD,North - Community based support,Permanent Nursing,Blossom Fields Nursing Home,5319.60, 01-Jun-2021
949,Revenue,CAHD,South Glos Users in South Glos Homes,Permanent Nursing,Blossom Fields Nursing Home,750.40, 01-Jun-2021
950,Revenue,CAHD,North - Community based support,Permanent Nursing,Blossom Fields Nursing Home,5319.60, 29-Jun-2021
951,Revenue,CAHD,South Glos Users in South Glos Homes,Permanent Nursing,Blossom Fields Nursing Home,750.40, 29-Jun-2021
952,Revenue,CAHD,South Glos Users in South Glos Homes,Permanent Nursing,Blossom Fields Nursing Home,750.40, 01-Jun-2021
953,Revenue,CAHD,South Glos Users in South Glos Homes,Permanent Nursing,Blossom Fields Nursing Home,750.40, 29-Jun-2021
954,Revenue,CAHD,North - S117,Permanent Residential,Blossom Fields Nursing Home,4910.40, 01-Jun-2021
955,Revenue,CAHD,South Glos Users in South Glos Homes,Permanent Nursing,Blossom Fields Nursing Home,750.40, 01-Jun-2021
956,Revenue,CAHD,North - S117,Permanent Residential,Blossom Fields Nursing Home,4910.40, 29-Jun-2021
957,Revenue,CAHD,South Glos Users in South Glos Homes,Permanent Nursing,Blossom Fields Nursing Home,750.40, 29-Jun-2021
958,Revenue,CAHD,South - Commissioned Services,Respite Planned - Nursing,Blossom Fields Nursing Home,6788.48, 29-Jun-2021
959,Revenue,CAHD,South Glos Users in South Glos Homes,Permanent Nursing,Blossom Fields Nursing Home,1983.20, 29-Jun-2021
960,Revenue,CAHD,South Glos Users in South Glos Homes,Permanent Nursing,Blossom Fields Nursing Home,750.40, 29-Jun-2021
961,Revenue,CAHD,South Glos Users in South Glos Homes,Permanent Nursing,Blossom Fields Nursing Home,551.76, 29-Jun-2021
962,Revenue,CAHD,South Glos Users in South Glos Homes,Permanent Nursing,Blossom Fields Nursing Home,750.40, 01-Jun-2021
963,Revenue,CAHD,South Glos Users in South Glos Homes,Permanent Nursing,Blossom Fields Nursing Home,750.40, 29-Jun-2021
964,Revenue,CAHD,North - S117,Permanent Residential,Blossom Fields Nursing Home,5115.00, 01-Jun-2021
965,Revenue,CAHD,South Glos Users in South Glos Homes,Permanent Nursing,Blossom Fields Nursing Home,750.40, 01-Jun-2021
966,Revenue,CAHD,North - S117,Permanent Residential,Blossom Fields Nursing Home,5115.00, 29-Jun-2021
967,Revenue,CAHD,South Glos Users in South Glos Homes,Permanent Nursing,Blossom Fields Nursing Home,750.40, 29-Jun-2021
968,Revenue,CAHD,South Glos Users in South Glos Homes,Permanent Nursing,Blossom Fields Nursing Home,750.40, 01-Jun-2021
969,Revenue,CAHD,South Glos Users in South Glos Homes,Permanent Nursing,Blossom Fields Nursing Home,750.40, 29-Jun-2021
970,Revenue,CAHD,Central - Commissioned Services,Permanent Nursing,Blossom Fields Nursing Home,4818.72, 01-Jun-2021
971,Revenue,CAHD,South Glos Users in South Glos Homes,Permanent Nursing,Blossom Fields Nursing Home,750.40, 01-Jun-2021
972,Revenue,CAHD,Central - Commissioned Services,Permanent Nursing,Blossom Fields Nursing Home,4818.72, 29-Jun-2021
973,Revenue,CAHD,South Glos Users in South Glos Homes,Permanent Nursing,Blossom Fields Nursing Home,750.40, 29-Jun-2021
974,Revenue,CAHD,South Glos Users in South Glos Homes,Permanent Nursing,Blossom Fields Nursing Home,750.40, 01-Jun-2021
975,Revenue,CAHD,South Glos Users in South Glos Homes,Permanent Nursing,Blossom Fields Nursing Home,750.40, 29-Jun-2021
976,Revenue,CAHD,Central - Commissioned Services,Permanent Nursing,Blossom Fields Nursing Home,4132.12, 01-Jun-2021
977,Revenue,CAHD,South Glos Users in South Glos Homes,Permanent Nursing,Blossom Fields Nursing Home,750.40, 01-Jun-2021
978,Revenue,CAHD,Central - Commissioned Services,Permanent Nursing,Blossom Fields Nursing Home,4132.12, 29-Jun-2021
979,Revenue,CAHD,South Glos Users in South Glos Homes,Permanent Nursing,Blossom Fields Nursing Home,750.40, 29-Jun-2021
980,Revenue,CAHD,South Glos Users in South Glos Homes,Permanent Nursing,Blossom Fields Nursing Home,750.40, 01-Jun-2021
981,Revenue,CAHD,South Glos Users in South Glos Homes,Permanent Nursing,Blossom Fields Nursing Home,750.40, 29-Jun-2021
982,Revenue,CAHD,South Glos Users in South Glos Homes,Permanent Nursing,Blossom Fields Nursing Home,750.40, 01-Jun-2021
983,Revenue,CAHD,South Glos Users in South Glos Homes,Permanent Nursing,Blossom Fields Nursing Home,750.40, 29-Jun-2021
984,Revenue,CAHD,South Glos Users in South Glos Homes,Permanent Nursing,Blossom Fields Nursing Home,1983.20, 29-Jun-2021
985,Revenue,CAHD,South Glos Users in South Glos Homes,Permanent Nursing,Blossom Fields Nursing Home,750.40, 29-Jun-2021
986,Revenue,CAHD,South Glos Users in South Glos Homes,Permanent Nursing,Blossom Fields Nursing Home,750.40, 01-Jun-2021
987,Revenue,CAHD,South Glos Users in South Glos Homes,Permanent Nursing,Blossom Fields Nursing Home,750.40, 29-Jun-2021
988,Revenue,CAHD,South Glos Users in South Glos Homes,Permanent Nursing,Blossom Fields Nursing Home,938.00, 29-Jun-2021
989,Revenue,CAHD,South Glos Users in South Glos Homes,Permanent Nursing,Blossom Fields Nursing Home,750.40, 29-Jun-2021
990,Revenue,CAHD,South - Commissioned Services,Permanent Nursing,Blossom Fields Nursing Home,5000.00, 01-Jun-2021
991,Revenue,CAHD,South Glos Users in South Glos Homes,Permanent Nursing,Blossom Fields Nursing Home,750.40, 01-Jun-2021
992,Revenue,CAHD,South - Commissioned Services,Permanent Nursing,Blossom Fields Nursing Home,5000.00, 29-Jun-2021
993,Revenue,CAHD,South Glos Users in South Glos Homes,Permanent Nursing,Blossom Fields Nursing Home,750.40, 29-Jun-2021
994,Revenue,CAHD,Central - Commissioned Services,Permanent Residential,Blossom Fields Nursing Home,5115.00, 01-Jun-2021
995,Revenue,CAHD,South Glos Users in South Glos Homes,Permanent Nursing,Blossom Fields Nursing Home,750.40, 01-Jun-2021
996,Revenue,CAHD,Central - Commissioned Services,Permanent Residential,Blossom Fields Nursing Home,5115.00, 29-Jun-2021
997,Revenue,CAHD,South Glos Users in South Glos Homes,Permanent Nursing,Blossom Fields Nursing Home,750.40, 29-Jun-2021
998,Revenue,CAHD,Central - Commissioned Services,Permanent Nursing,Blossom Fields Nursing Home,4910.40, 01-Jun-2021
999,Revenue,CAHD,South Glos Users in South Glos Homes,Permanent Nursing,Blossom Fields Nursing Home,750.40, 01-Jun-2021
1000,Revenue,CAHD,Central - Commissioned Services,Permanent Nursing,Blossom Fields Nursing Home,4910.40, 29-Jun-2021
1001,Revenue,CAHD,South Glos Users in South Glos Homes,Permanent Nursing,Blossom Fields Nursing Home,750.40, 29-Jun-2021
1002,Revenue,CAHD,Central - Commissioned Services,Permanent Nursing,Blossom Fields Nursing Home,4132.12, 01-Jun-2021
1003,Revenue,CAHD,South Glos Users in South Glos Homes,Permanent Nursing,Blossom Fields Nursing Home,750.40, 01-Jun-2021
1004,Revenue,CAHD,Central - Commissioned Services,Permanent Nursing,Blossom Fields Nursing Home,4132.12, 29-Jun-2021
1005,Revenue,CAHD,South Glos Users in South Glos Homes,Permanent Nursing,Blossom Fields Nursing Home,750.40, 29-Jun-2021
1006,Revenue,CAHD,Central - Commissioned Services,Permanent Nursing,Blossom Fields Nursing Home,5115.00, 01-Jun-2021
1007,Revenue,CAHD,South Glos Users in South Glos Homes,Permanent Nursing,Blossom Fields Nursing Home,750.40, 01-Jun-2021
1008,Revenue,CAHD,Central - Commissioned Services,Permanent Nursing,Blossom Fields Nursing Home,5115.00, 29-Jun-2021
1009,Revenue,CAHD,South Glos Users in South Glos Homes,Permanent Nursing,Blossom Fields Nursing Home,750.40, 29-Jun-2021
1010,Revenue,CAHD,Central - Commissioned Services,Permanent Nursing,Blossom Fields Nursing Home,4132.12, 01-Jun-2021
1011,Revenue,CAHD,South Glos Users in South Glos Homes,Permanent Nursing,Blossom Fields Nursing Home,750.40, 01-Jun-2021
1012,Revenue,CAHD,Central - Commissioned Services,Permanent Nursing,Blossom Fields Nursing Home,4132.12, 29-Jun-2021
1013,Revenue,CAHD,South Glos Users in South Glos Homes,Permanent Nursing,Blossom Fields Nursing Home,750.40, 29-Jun-2021
1014,Revenue,CAHD,Central - Commissioned Services,Respite Planned - Residential,Blossom Fields Nursing Home,2035.71, 01-Jun-2021
1015,Revenue,CAHD,Central - Commissioned Services,Respite Planned - Residential,Blossom Fields Nursing Home,1764.29, 01-Jun-2021
1016,Revenue,CAHD,Central - Commissioned Services,Permanent Residential,Blossom Fields Nursing Home,6514.29, 29-Jun-2021
1017,Revenue,CAHD,South Glos Users in South Glos Homes,Permanent Nursing,Blossom Fields Nursing Home,1983.20, 29-Jun-2021
1018,Revenue,CAHD,Central - Commissioned Services,Fees & Charges Income - General,Blossom Fields Nursing Home,500.00, 29-Jun-2021
1019,Revenue,CAHD,Statemented Support Payments to OLAs,Other L.A.s - General,Blue Coat CE VA Primary School,837.09, 22-Jun-2021
1020,Revenue,CAHD,Statemented Support Payments to OLAs,Other L.A.s - General,Blue Coat CE VA Primary School,1292.50, 22-Jun-2021
1021,Revenue,CAHD,CSC - Agency Fostering,Foster Parent Allowances,Blue Sky Fostering Limited,8250.00, 29-Jun-2021
1022,Revenue,CAHD,North - Community based support,Permanent Residential,Bluebells,4624.50, 01-Jun-2021
1023,Revenue,CAHD,North - Community based support,Permanent Residential,Bluebells,3699.60, 01-Jun-2021
1024,Revenue,CAHD,North - Community based support,Fees & Charges Income - General,Bluebells,1121.90, 01-Jun-2021
1025,Revenue,CAHD,North - Community based support,Permanent Residential,Bluebells,3699.60, 29-Jun-2021
1026,Revenue,CAHD,Early Years Pupil Premium Grant,Preventative Assistance,Bluebells Pre School,723.45, 25-Jun-2021
1027,Revenue,CAHD,EARLY YEARS DEPRIVATION PAYMENT,Preventative Assistance,Bluebells Pre School,766.16, 25-Jun-2021
1028,Revenue,CAHD,Pathway 1 - Re-Ablement Home Care,Other Small Contracts,Bluebird Care (South Gloucestershire),573.80, 14-Jun-2021
1029,Revenue,CAHD,Pathway 1 - Re-Ablement Home Care,Other Small Contracts,Bluebird Care (South Gloucestershire),596.45, 09-Jun-2021
1030,Revenue,CAHD,Pathway 1 - Re-Ablement Home Care,Other Small Contracts,Bluebird Care (South Gloucestershire),536.05, 11-Jun-2021
1031,Revenue,CAHD,Pathway 1 - Re-Ablement Home Care,Other Small Contracts,Bluebird Care (South Gloucestershire),588.90, 22-Jun-2021
1032,Revenue,CAHD,Central - Commissioned Services,Other Small Contracts,Bluebird Care (South Gloucestershire),11605.84, 03-Jun-2021
1033,Revenue,CAHD,South - Commissioned Services,Other Small Contracts,Bluebird Care (South Gloucestershire),4554.84, 03-Jun-2021
1034,Revenue,CAHD,North - Community based support,Other Small Contracts,Bluebird Care (South Gloucestershire),5283.52, 03-Jun-2021
1035,Revenue,CAHD,Resilience Team,Other Small Contracts,Bluebird Care (South Gloucestershire),128.35, 03-Jun-2021
1036,Revenue,CAHD,Central - Commissioned Services,Other Small Contracts,Bluebird Care (South Gloucestershire),11483.39, 11-Jun-2021
1037,Revenue,CAHD,South - Commissioned Services,Other Small Contracts,Bluebird Care (South Gloucestershire),4509.24, 11-Jun-2021
1038,Revenue,CAHD,North - Community based support,Other Small Contracts,Bluebird Care (South Gloucestershire),4805.17, 11-Jun-2021
1039,Revenue,CAHD,Resilience Team,Other Small Contracts,Bluebird Care (South Gloucestershire),98.15, 11-Jun-2021
1040,Revenue,CAHD,Central - Commissioned Services,Other Small Contracts,Bluebird Care (South Gloucestershire),11792.94, 18-Jun-2021
1041,Revenue,CAHD,South - Commissioned Services,Other Small Contracts,Bluebird Care (South Gloucestershire),4494.29, 18-Jun-2021
1042,Revenue,CAHD,North - Community based support,Other Small Contracts,Bluebird Care (South Gloucestershire),4446.07, 18-Jun-2021
1043,Revenue,CAHD,Resilience Team,Other Small Contracts,Bluebird Care (South Gloucestershire),120.80, 18-Jun-2021
1044,Revenue,CAHD,S28A cases,Permanent Residential,Bradbury House,6505.16, 01-Jun-2021
1045,Revenue,CAHD,S28A cases,Permanent Residential,Bradbury House,6505.16, 29-Jun-2021
1046,Revenue,CAHD,S28A cases,Permanent Residential,Bradbury House,6079.56, 29-Jun-2021
1047,Revenue,CAHD,Jointly Funded H&SC Packages,Permanent Residential,Bradbury House,8441.92, 01-Jun-2021
1048,Revenue,CAHD,North - S117,Permanent Residential,Bradbury House,5772.00, 01-Jun-2021
1049,Revenue,CAHD,Jointly Funded H&SC Packages,Permanent Residential,Bradbury House,8441.92, 29-Jun-2021
1050,Revenue,CAHD,North - S117,Permanent Residential,Bradbury House,5772.00, 29-Jun-2021
1051,Revenue,CAHD,South - Commissioned Services,Permanent Residential,Bradbury House,10168.08, 01-Jun-2021
1052,Revenue,CAHD,South - Commissioned Services,Permanent Residential,Bradbury House,10168.08, 29-Jun-2021
1053,Revenue,CAHD,CSC - Residential Placements,Permanent Residential,Branas ISAF Ltd,21921.34, 02-Jun-2021
1054,Revenue,CAHD,CSC - Residential Placements,Permanent Residential,Branas ISAF Ltd,21214.20, 24-Jun-2021
1055,Revenue,CAHD,North - Community based support,Respite Planned - Nursing,Breadstone House Care Centre,3590.73, 29-Jun-2021
1056,Revenue,CAHD,North - Community based support,Respite Planned - Nursing,Breadstone House Care Centre,2577.96, 29-Jun-2021
1057,Revenue,CAHD,Social Lettings Agency,Rent,Individual,822.73, 25-Jun-2021
1058,Revenue,CAHD,Social Lettings Agency,Fees & Charges Income - General,Individual,-102.80, 25-Jun-2021
1059,Revenue,CAHD,Social Lettings Agency,Rent,Individual,815.00, 03-Jun-2021
1060,Revenue,CAHD,Social Lettings Agency,Fees & Charges Income - General,Individual,-40.75, 03-Jun-2021
1061,Revenue,CAHD,Placements OLA Special Schools and RB,Other L.A.s - General,Briarwood School,1227.13, 22-Jun-2021
1062,Revenue,CAHD,Placements OLA Special Schools and RB,Other L.A.s - General,Briarwood School,2685.21, 22-Jun-2021
1063,Revenue,CAHD,Placements OLA Special Schools and RB,Other L.A.s - General,Briarwood School,1227.13, 22-Jun-2021
1064,Revenue,CAHD,North - Community based support,Permanent Residential,Bridge House Care Home,2913.52, 01-Jun-2021
1065,Revenue,CAHD,North - Community based support,Permanent Residential,Bridge House Care Home,2913.52, 29-Jun-2021
1066,Revenue,CAHD,North - Community based support,Permanent Residential,Bridgwater Court Care Home,10773.64, 01-Jun-2021
1067,Revenue,CAHD,North - Community based support,Permanent Residential,Bridgwater Court Care Home,10773.64, 29-Jun-2021
1068,Revenue,CAHD,Early Years Pupil Premium Grant,Preventative Assistance,Bright Sparks,1081.73, 25-Jun-2021
1069,Revenue,CAHD,EARLY YEARS DEPRIVATION PAYMENT,Preventative Assistance,Bright Sparks,1145.60, 25-Jun-2021
1070,Revenue,CAHD,Early Years Pupil Premium Grant,Preventative Assistance,Bright Sparks Pre School Ltd,923.26, 25-Jun-2021
1071,Revenue,CAHD,EARLY YEARS DEPRIVATION PAYMENT,Preventative Assistance,Bright Sparks Pre School Ltd,977.77, 25-Jun-2021
1072,Revenue,CAHD,Statemented Support Academies,Other Public Bodies,Bristol & South Gloucestershire UTC,635.08, 22-Jun-2021
1073,Revenue,CAHD,Statemented Support Academies,Other Public Bodies,Bristol & South Gloucestershire UTC,907.83, 22-Jun-2021
1074,Revenue,CAHD,Community Support - North,Preventative Assistance,Bristol Ambulance EMS Limited,788.00, 11-Jun-2021
1075,Revenue,CAHD,Statemented Support Payments to OLAs,Other L.A.s - General,Bristol Cathedral Choir School,942.58, 22-Jun-2021
1076,Revenue,CAHD,Statemented Support Payments to OLAs,Other L.A.s - General,Bristol Cathedral Choir School,880.08, 22-Jun-2021
1077,Revenue,CAHD,Sensory Support Services,Other L.A.s - General,Bristol City Council,49637.00, 09-Jun-2021
1078,Revenue,CAHD,Childrens - Safeguarding Board,Training Expenses,Bristol City Council,512.64, 09-Jun-2021
1079,Revenue,CAHD,Transport OLA Special Schools and RB,Client Transport,Bristol City Council,3428.20, 18-Jun-2021
1080,Revenue,CAHD,Transport OLA Special Schools and RB,Client Transport,Bristol City Council,1312.08, 30-Jun-2021
1081,Revenue,CAHD,Special Needs - Special Schools HTST,Client Transport Recharge,Bristol City Council,1522.16, 30-Jun-2021
1082,Revenue,CAHD,CSC - Section 17 SOUTH,Interpreting & Translation,Bristol City Council,715.83, 29-Jun-2021
1083,Revenue,CAHD,Early Years High Needs Support,Other Private Contractors,Bristol City Council,704.57, 22-Jun-2021
1084,Revenue,CAHD,Statemented Support Payments to OLAs,Other L.A.s - General,Bristol City Council Schools General,897.42, 22-Jun-2021
1085,Revenue,CAHD,Statemented Support Payments to OLAs,Other L.A.s - General,Bristol City Council Schools General,635.33, 22-Jun-2021
1086,Revenue,CAHD,Placements OLA Special Schools and RB,Other L.A.s - General,Bristol Gateway School,1917.51, 22-Jun-2021
1087,Revenue,CAHD,Placements OLA Special Schools and RB,Other L.A.s - General,Bristol Gateway School,1917.51, 22-Jun-2021
1088,Revenue,CAHD,Placements OLA Special Schools and RB,Other L.A.s - General,Bristol Gateway School,1845.17, 22-Jun-2021
1089,Revenue,CAHD,Placements OLA Special Schools and RB,Other L.A.s - General,Bristol Gateway School,766.84, 22-Jun-2021
1090,Revenue,CAHD,Placements OLA Special Schools and RB,Other L.A.s - General,Bristol Gateway School,2685.21, 22-Jun-2021
1091,Revenue,CAHD,CSC - South LAC Placements,Personal Needs of Clients,Bristol Memorial Woodlands Limited,1995.00, 25-Jun-2021
1092,Revenue,CAHD,Training - Adult Services,Training Expenses,Bristol MIND,2560.00, 09-Jun-2021
1093,Revenue,CAHD,SEN High Needs - Not at School Base,Other Private Contractors,Bristol Tuition Limited,595.00, 11-Jun-2021
1094,Revenue,CAHD,SEN High Needs - Not at School Base,Other Private Contractors,Bristol Tuition Limited,570.00, 11-Jun-2021
1095,Revenue,CAHD,SEN High Needs - Not at School Base,Other Private Contractors,Bristol Tuition Limited,532.00, 11-Jun-2021
1096,Revenue,CAHD,Statemented Support Payments to OLAs,Other L.A.s - General,Broadlands Academy,1332.27, 22-Jun-2021
1097,Revenue,CAHD,Statemented Support Payments to OLAs,Other L.A.s - General,Broadlands Academy,835.17, 22-Jun-2021
1098,Revenue,CAHD,North - Community based support,Permanent Residential,Brockhills Farm,3300.00, 01-Jun-2021
1099,Revenue,CAHD,North - Community based support,Permanent Residential,Brockhills Farm,3300.00, 29-Jun-2021
1100,Revenue,CAHD,North - Community based support,Permanent Residential,Brockhills Farm,3200.00, 01-Jun-2021
1101,Revenue,CAHD,North - Community based support,Permanent Residential,Brockhills Farm,3200.00, 29-Jun-2021
1102,Revenue,CAHD,Supporting People Programme,Grants to Voluntary Bodies,Bromford  :  Merlin Housing Society,15637.00, 01-Jun-2021
1103,Revenue,CAHD,Supporting People Programme,Grants to Voluntary Bodies,Bromford  :  Merlin Housing Society,2741.00, 01-Jun-2021
1104,Revenue,CAHD,Supporting People Programme,Grants to Voluntary Bodies,Bromford  :  Merlin Housing Society,22940.00, 01-Jun-2021
1105,Revenue,CAHD,Supporting People Programme,Grants to Voluntary Bodies,Bromford  :  Merlin Housing Society,1113.00, 01-Jun-2021
1106,Revenue,CAHD,Parent Partnership & Disagreement Resolutions,Fees - General,Browne Jacobson,2250.00, 04-Jun-2021
1107,Revenue,CAHD,Parent Partnership & Disagreement Resolutions,Fees - General,Browne Jacobson,903.00, 09-Jun-2021
1108,Revenue,CAHD,Parent Partnership & Disagreement Resolutions,Fees - General,Browne Jacobson,1591.00, 18-Jun-2021
1109,Revenue,CAHD,South Glos Users in South Glos Homes,Permanent Nursing,Brunelcare,830.80, 24-Jun-2021
1110,Revenue,CAHD,South Glos Users in South Glos Homes,Permanent Nursing,Brunelcare,830.80, 24-Jun-2021
1111,Revenue,CAHD,South Glos Users in South Glos Homes,Permanent Nursing,Brunelcare,830.80, 24-Jun-2021
1112,Revenue,CAHD,South Glos Users in South Glos Homes,Permanent Nursing,Brunelcare,830.80, 24-Jun-2021
1113,Revenue,CAHD,South Glos Users in South Glos Homes,Permanent Nursing,Brunelcare,830.80, 24-Jun-2021
1114,Revenue,CAHD,South Glos Users in South Glos Homes,Permanent Nursing,Brunelcare,830.80, 24-Jun-2021
1115,Revenue,CAHD,South Glos Users in South Glos Homes,Permanent Nursing,Brunelcare,830.80, 24-Jun-2021
1116,Revenue,CAHD,South Glos Users in South Glos Homes,Permanent Nursing,Brunelcare,830.80, 24-Jun-2021
1117,Revenue,CAHD,South Glos Users in South Glos Homes,Permanent Nursing,Brunelcare,830.80, 24-Jun-2021
1118,Revenue,CAHD,North - S117,Permanent Nursing,Brunelcare,3828.54, 24-Jun-2021
1119,Revenue,CAHD,North - S117,Permanent Nursing,Brunelcare,3828.54, 24-Jun-2021
1120,Revenue,CAHD,South - Commissioned Services,Permanent Nursing,Brunelcare,3828.54, 24-Jun-2021
1121,Revenue,CAHD,South - Commissioned Services,Permanent Nursing,Brunelcare,2743.06, 24-Jun-2021
1122,Revenue,CAHD,South - Commissioned Services,Permanent Nursing,Brunelcare,2678.08, 24-Jun-2021
1123,Revenue,CAHD,South - Commissioned Services,Permanent Nursing,Brunelcare,3096.55, 24-Jun-2021
1124,Revenue,CAHD,South - Commissioned Services,Permanent Nursing,Brunelcare,3171.34, 24-Jun-2021
1125,Revenue,CAHD,South - Commissioned Services,Permanent Nursing,Brunelcare,2220.40, 24-Jun-2021
1126,Revenue,CAHD,Central - Commissioned Services,Permanent Nursing,Brunelcare,3057.66, 24-Jun-2021
1127,Revenue,CAHD,North - Community based support,Permanent Nursing,Brunelcare,3828.54, 24-Jun-2021
1128,Revenue,CAHD,Central - Commissioned Services,Respite Planned - Nursing,Brunelcare,4659.34, 24-Jun-2021
1129,Revenue,CAHD,Central - Commissioned Services,Other Small Contracts,Brunelcare,383.04, 11-Jun-2021
1130,Revenue,CAHD,South - Commissioned Services,Other Small Contracts,Brunelcare,17515.64, 11-Jun-2021
1131,Revenue,CAHD,North - Community based support,Other Small Contracts,Brunelcare,393.68, 11-Jun-2021
1132,Revenue,CAHD,Central - Commissioned Services,Other Small Contracts,Brunelcare,441.56, 18-Jun-2021
1133,Revenue,CAHD,South - Commissioned Services,Other Small Contracts,Brunelcare,17304.20, 18-Jun-2021
1134,Revenue,CAHD,South - Commissioned Services,Mentoring,Brunelcare,21.28, 18-Jun-2021
1135,Revenue,CAHD,North - Community based support,Other Small Contracts,Brunelcare,393.68, 18-Jun-2021
1136,Revenue,CAHD,Central - Commissioned Services,Other Small Contracts,Brunelcare,420.28, 18-Jun-2021
1137,Revenue,CAHD,South - Commissioned Services,Other Small Contracts,Brunelcare,16944.20, 18-Jun-2021
1138,Revenue,CAHD,South - Commissioned Services,Mentoring,Brunelcare,15.96, 18-Jun-2021
1139,Revenue,CAHD,North - Community based support,Other Small Contracts,Brunelcare,414.96, 18-Jun-2021
1140,Revenue,CAHD,Central - Commissioned Services,Other Small Contracts,Brunelcare,399.00, 18-Jun-2021
1141,Revenue,CAHD,South - Commissioned Services,Other Small Contracts,Brunelcare,16715.44, 18-Jun-2021
1142,Revenue,CAHD,South - Commissioned Services,Mentoring,Brunelcare,21.28, 18-Jun-2021
1143,Revenue,CAHD,North - Community based support,Other Small Contracts,Brunelcare,414.96, 18-Jun-2021
1144,Revenue,CAHD,Central - Commissioned Services,Other Small Contracts,Brunelcare,521.36, 21-Jun-2021
1145,Revenue,CAHD,South - Commissioned Services,Other Small Contracts,Brunelcare,16906.08, 21-Jun-2021
1146,Revenue,CAHD,North - Community based support,Other Small Contracts,Brunelcare,414.96, 21-Jun-2021
1147,Revenue,CAHD,Central - Commissioned Services,Other Small Contracts,Brunelcare,622.44, 21-Jun-2021
1148,Revenue,CAHD,South - Commissioned Services,Other Small Contracts,Brunelcare,16614.36, 21-Jun-2021
1149,Revenue,CAHD,South - Commissioned Services,Mentoring,Brunelcare,37.24, 21-Jun-2021
1150,Revenue,CAHD,North - Community based support,Other Small Contracts,Brunelcare,409.64, 21-Jun-2021
1151,Revenue,CAHD,Central - Commissioned Services,Other Small Contracts,Brunelcare,665.00, 21-Jun-2021
1152,Revenue,CAHD,South - Commissioned Services,Other Small Contracts,Brunelcare,16352.80, 21-Jun-2021
1153,Revenue,CAHD,South - Commissioned Services,Mentoring,Brunelcare,42.56, 21-Jun-2021
1154,Revenue,CAHD,North - Community based support,Other Small Contracts,Brunelcare,404.32, 21-Jun-2021
1155,Revenue,CAHD,Covid 19- Spend on behalf of NHS,Project Funding,Brunelcare,3611.11, 25-Jun-2021
1156,Revenue,CAHD,North - S117,Permanent Residential,Buckland Care,3600.00, 01-Jun-2021
1157,Revenue,CAHD,North - S117,Permanent Residential,Buckland Care,3600.00, 29-Jun-2021
1158,Revenue,CAHD,Early Years High Needs Support,Other Private Contractors,Busy Bees,880.71, 22-Jun-2021
1159,Revenue,CAHD,EARLY YEARS DISABILITY  ACCES FUND,Preventative Assistance,Busy Bees Day Nursery,615.00, 15-Jun-2021
1160,Revenue,CAHD,CSC - Vinney Green Secure Unit,R & M by Departments,BWS Standfast Fire & Security Systems,50000.00, 18-Jun-2021
1161,Revenue,CAHD,CSC - Vinney Green Secure Unit,R & M by Departments,BWS Standfast Fire & Security Systems,4742.00, 30-Jun-2021
1162,Revenue,CAHD,CSC - Vinney Green Secure Unit,R & M by Departments,BWS Standfast Fire & Security Systems,1459.00, 30-Jun-2021
1163,Revenue,CAHD,North - Community based support,Permanent Nursing,C31465Clevedon Court Nursing Home,3448.16, 01-Jun-2021
1164,Revenue,CAHD,North - Community based support,Permanent Nursing,C31465Clevedon Court Nursing Home,3448.16, 29-Jun-2021
1165,Revenue,CAHD,Statemented Support Academies,Other Public Bodies,Cabot Learning Federation,918.71, 22-Jun-2021
1166,Revenue,CAHD,Statemented Support Academies,Other Public Bodies,Cabot Learning Federation,1202.39, 22-Jun-2021
1167,Revenue,CAHD,Statemented Support Academies,Other Public Bodies,Cabot Learning Federation,908.00, 22-Jun-2021
1168,Revenue,CAHD,Statemented Support Academies,Other Public Bodies,Cabot Learning Federation,3333.34, 22-Jun-2021
1169,Revenue,CAHD,Statemented Support Academies,Other Public Bodies,Cabot Learning Federation,1103.25, 22-Jun-2021
1170,Revenue,CAHD,Statemented Support Academies,Other Public Bodies,Cabot Learning Federation,907.83, 22-Jun-2021
1171,Revenue,CAHD,Statemented Support Academies,Other Public Bodies,Cabot Learning Federation,1899.58, 22-Jun-2021
1172,Revenue,CAHD,Statemented Support Academies,Other Public Bodies,Cabot Learning Federation,788.22, 22-Jun-2021
1173,Revenue,CAHD,Statemented Support Academies,Other Public Bodies,Cabot Learning Federation,957.92, 22-Jun-2021
1174,Revenue,CAHD,Statemented Support Academies,Other Public Bodies,Cabot Learning Federation,2753.01, 22-Jun-2021
1175,Revenue,CAHD,Statemented Support Academies,Other Public Bodies,Cabot Learning Federation,1654.33, 22-Jun-2021
1176,Revenue,CAHD,Statemented Support Academies,Other Public Bodies,Cabot Learning Federation,2206.25, 22-Jun-2021
1177,Revenue,CAHD,Statemented Support Payments to OLAs,Other L.A.s - General,Cabot Learning Federation,1013.94, 22-Jun-2021
1178,Revenue,CAHD,Statemented Support Academies,Other Public Bodies,Cabot Learning Federation,658.75, 22-Jun-2021
1179,Revenue,CAHD,Statemented Support Academies,Other Public Bodies,Cabot Learning Federation,1854.42, 22-Jun-2021
1180,Revenue,CAHD,Statemented Support Academies,Other Public Bodies,Cabot Learning Federation,632.67, 22-Jun-2021
1181,Revenue,CAHD,Statemented Support Academies,Other Public Bodies,Cabot Learning Federation,695.61, 22-Jun-2021
1182,Revenue,CAHD,Statemented Support Academies,Other Public Bodies,Cabot Learning Federation,918.75, 22-Jun-2021
1183,Revenue,CAHD,Statemented Support Academies,Other Public Bodies,Cabot Learning Federation,975.58, 22-Jun-2021
1184,Revenue,CAHD,Statemented Support Academies,Other Public Bodies,Cabot Learning Federation,1052.92, 22-Jun-2021
1185,Revenue,CAHD,Academy Resource Base Funding,Other Public Bodies,Cabot Learning Federation,5753.44, 22-Jun-2021
1186,Revenue,CAHD,Academy Resource Base Funding,Other Public Bodies,Cabot Learning Federation,1648.03, 22-Jun-2021
1187,Revenue,CAHD,Academy Resource Base Funding,Other Public Bodies,Cabot Learning Federation,1137.94, 22-Jun-2021
1188,Revenue,CAHD,Academy Resource Base Funding,Other Public Bodies,Cabot Learning Federation,1137.94, 22-Jun-2021
1189,Revenue,CAHD,Academy Resource Base Funding,Other Public Bodies,Cabot Learning Federation,1137.94, 22-Jun-2021
1190,Revenue,CAHD,Academy Resource Base Funding,Other Public Bodies,Cabot Learning Federation,981.04, 22-Jun-2021
1191,Revenue,CAHD,Academy Resource Base Funding,Other Public Bodies,Cabot Learning Federation,1648.03, 22-Jun-2021
1192,Revenue,CAHD,Academy Resource Base Funding,Other Public Bodies,Cabot Learning Federation,1648.03, 22-Jun-2021
1193,Revenue,CAHD,Academy Resource Base Funding,Other Public Bodies,Cabot Learning Federation,1137.94, 22-Jun-2021
1194,Revenue,CAHD,Academy Resource Base Funding,Other Public Bodies,Cabot Learning Federation,1137.94, 22-Jun-2021
1195,Revenue,CAHD,Academy Resource Base Funding,Other Public Bodies,Cabot Learning Federation,627.77, 22-Jun-2021
1196,Revenue,CAHD,Academy Resource Base Funding,Other Public Bodies,Cabot Learning Federation,1137.94, 22-Jun-2021
1197,Revenue,CAHD,Academy Resource Base Funding,Other Public Bodies,Cabot Learning Federation,1648.03, 22-Jun-2021
1198,Revenue,CAHD,Academy Resource Base Funding,Other Public Bodies,Cabot Learning Federation,1137.94, 22-Jun-2021
1199,Revenue,CAHD,Academy Resource Base Funding,Other Public Bodies,Cabot Learning Federation,1648.03, 22-Jun-2021
1200,Revenue,CAHD,Academy Resource Base Funding,Other Public Bodies,Cabot Learning Federation,1491.13, 22-Jun-2021
1201,Revenue,CAHD,Academy Resource Base Funding,Other Public Bodies,Cabot Learning Federation,627.77, 22-Jun-2021
1202,Revenue,CAHD,Academy Resource Base Funding,Other Public Bodies,Cabot Learning Federation,1491.13, 22-Jun-2021
1203,Revenue,CAHD,Academy Resource Base Funding,Other Public Bodies,Cabot Learning Federation,1648.03, 22-Jun-2021
1204,Revenue,CAHD,Academy Resource Base Funding,Other Public Bodies,Cabot Learning Federation,1137.94, 22-Jun-2021
1205,Revenue,CAHD,Academy Resource Base Funding,Other Public Bodies,Cabot Learning Federation,2118.90, 22-Jun-2021
1206,Revenue,CAHD,Academy Resource Base Funding,Other Public Bodies,Cabot Learning Federation,1137.94, 22-Jun-2021
1207,Revenue,CAHD,Academy Resource Base Funding,Other Public Bodies,Cabot Learning Federation,1491.13, 22-Jun-2021
1208,Revenue,CAHD,Statemented Support Payments to OLAs,Other L.A.s - General,Cabot Learning Federation,872.46, 22-Jun-2021
1209,Revenue,CAHD,Statemented Support Academies,Other Public Bodies,Cabot Learning Federation,1626.67, 22-Jun-2021
1210,Revenue,CAHD,Statemented Support Academies,Other Public Bodies,Cabot Learning Federation,710.58, 22-Jun-2021
1211,Revenue,CAHD,Statemented Support Academies,Other Public Bodies,Cabot Learning Federation,804.08, 22-Jun-2021
1212,Revenue,CAHD,Statemented Support Academies,Other Public Bodies,Cabot Learning Federation,554.13, 22-Jun-2021
1213,Revenue,CAHD,Statemented Support Academies,Other Public Bodies,Cabot Learning Federation,742.77, 22-Jun-2021
1214,Revenue,CAHD,Statemented Support Academies,Other Public Bodies,Cabot Learning Federation,778.14, 22-Jun-2021
1215,Revenue,CAHD,Statemented Support Academies,Other Public Bodies,Cabot Learning Federation,813.51, 22-Jun-2021
1216,Revenue,CAHD,Statemented Support Payments to OLAs,Other L.A.s - General,Cabot Learning Federation,601.29, 22-Jun-2021
1217,Revenue,CAHD,Statemented Support Academies,Other Public Bodies,Cabot Learning Federation,1131.84, 22-Jun-2021
1218,Revenue,CAHD,Statemented Support Academies,Other Public Bodies,Cabot Learning Federation,589.50, 22-Jun-2021
1219,Revenue,CAHD,Statemented Support Academies,Other Public Bodies,Cabot Learning Federation,554.13, 22-Jun-2021
1220,Revenue,CAHD,Statemented Support Academies,Other Public Bodies,Cabot Learning Federation,801.72, 22-Jun-2021
1221,Revenue,CAHD,Statemented Support Academies,Other Public Bodies,Cabot Learning Federation,1096.47, 22-Jun-2021
1222,Revenue,CAHD,Statemented Support Academies,Other Public Bodies,Cabot Learning Federation,954.99, 22-Jun-2021
1223,Revenue,CAHD,Statemented Support Academies,Other Public Bodies,Cabot Learning Federation,730.98, 22-Jun-2021
1224,Revenue,CAHD,Statemented Support Academies,Other Public Bodies,Cabot Learning Federation,907.83, 22-Jun-2021
1225,Revenue,CAHD,Statemented Support Academies,Other Public Bodies,Cabot Learning Federation,1150.25, 22-Jun-2021
1226,Revenue,CAHD,Statemented Support Academies,Other Public Bodies,Cabot Learning Federation,801.92, 22-Jun-2021
1227,Revenue,CAHD,Statemented Support Academies,Other Public Bodies,Cabot Learning Federation,530.55, 22-Jun-2021
1228,Revenue,CAHD,Statemented Support Academies,Other Public Bodies,Cabot Learning Federation,931.41, 22-Jun-2021
1229,Revenue,CAHD,Statemented Support Payments to OLAs,Other L.A.s - General,Cabot Learning Federation,1062.33, 22-Jun-2021
1230,Revenue,CAHD,Statemented Support Payments to OLAs,Other L.A.s - General,Cabot Learning Federation,888.33, 22-Jun-2021
1231,Revenue,CAHD,Statemented Support Academies,Other Public Bodies,Cabot Learning Federation,577.50, 22-Jun-2021
1232,Revenue,CAHD,Statemented Support Academies,Other Public Bodies,Cabot Learning Federation,1297.08, 22-Jun-2021
1233,Revenue,CAHD,Statemented Support Academies,Other Public Bodies,Cabot Learning Federation,966.83, 22-Jun-2021
1234,Revenue,CAHD,Statemented Support Academies,Other Public Bodies,Cabot Learning Federation,872.46, 22-Jun-2021
1235,Revenue,CAHD,Statemented Support Payments to OLAs,Other L.A.s - General,Cabot Learning Federation,665.33, 22-Jun-2021
1236,Revenue,CAHD,Early Years Pupil Premium Grant,Preventative Assistance,Caerleon Childcare,516.75, 25-Jun-2021
1237,Revenue,CAHD,EARLY YEARS DEPRIVATION PAYMENT,Preventative Assistance,Caerleon Childcare,547.26, 25-Jun-2021
1238,Revenue,CAHD,North - Community based support,Permanent Nursing,Caernarvon House,4710.40, 01-Jun-2021
1239,Revenue,CAHD,North - Community based support,Permanent Nursing,Caernarvon House,4710.40, 29-Jun-2021
1240,Revenue,CAHD,North - S117,Permanent Nursing,Caernarvon House,3990.24, 01-Jun-2021
1241,Revenue,CAHD,North - S117,Permanent Nursing,Caernarvon House,3990.24, 29-Jun-2021
1242,Revenue,CAHD,South - Commissioned Services,Permanent Nursing,Caernarvon House,4915.20, 01-Jun-2021
1243,Revenue,CAHD,South - Commissioned Services,Permanent Nursing,Caernarvon House,4915.20, 29-Jun-2021
1244,Revenue,CAHD,South - Commissioned Services,Fees & Charges Income - General,Caernarvon House,535.54, 29-Jun-2021
1245,Revenue,CAHD,South - Commissioned Services,Fees & Charges Income - General,Caernarvon House,847.94, 29-Jun-2021
1246,Revenue,CAHD,South - Commissioned Services,Permanent Nursing,Caernarvon House,79542.86, 01-Jun-2021
1247,Revenue,CAHD,South - S117,Permanent Nursing,Caernarvon House,4915.20, 01-Jun-2021
1248,Revenue,CAHD,South - S117,Permanent Nursing,Caernarvon House,4915.20, 29-Jun-2021
1249,Revenue,CAHD,South - Commissioned Services,Permanent Nursing,Caernarvon House,2960.00, 01-Jun-2021
1250,Revenue,CAHD,South - Commissioned Services,Permanent Nursing,Caernarvon House,2960.00, 29-Jun-2021
1251,Revenue,CAHD,South - Commissioned Services,Permanent Nursing,Caernarvon House,4800.00, 01-Jun-2021
1252,Revenue,CAHD,South - Commissioned Services,Permanent Nursing,Caernarvon House,4800.00, 29-Jun-2021
1253,Revenue,CAHD,Telecare,Other Supplies & Services,CAIR (UK) Ltd,984.75, 02-Jun-2021
1254,Revenue,CAHD,CSC - Residential Placements,Permanent Residential,Cambian Childcare Ltd,19042.99, 02-Jun-2021
1255,Revenue,CAHD,18-25 Year Olds,Permanent Residential,Cambian Childcare Ltd,23250.00, 02-Jun-2021
1256,Revenue,CAHD,CSC - Residential Placements,Permanent Residential,Cambian Childcare Ltd,24135.67, 02-Jun-2021
1257,Revenue,CAHD,CSC - Residential Placements,Permanent Residential,Cambian Childcare Ltd,23357.10, 23-Jun-2021
1258,Revenue,CAHD,18-25 Year Olds,Permanent Residential,Cambian Childcare Ltd,22500.00, 25-Jun-2021
1259,Revenue,CAHD,CSC - Residential Placements,Permanent Residential,Cambian Childcare Ltd,18428.70, 23-Jun-2021
1260,Revenue,CAHD,Post 16 High Needs Placements,Other Private Contractors,Cambian Whinfell School Limited,39459.42, 14-Jun-2021
1261,Revenue,CAHD,Independent Special Placements - Pre 16,Other Private Contractors,Cambian Whinfell School Limited,28800.60, 14-Jun-2021
1262,Revenue,CAHD,North - Community based support,Day Care / Social Activities,Camphill Communities Thornbury Limited,1190.54, 04-Jun-2021
1263,Revenue,CAHD,North - Community based support,Other Small Contracts,Camphill Communities Thornbury Limited,1645.02, 04-Jun-2021
1264,Revenue,CAHD,North - Community based support,Supported Living,Camphill Communities Thornbury Limited,1086.80, 04-Jun-2021
1265,Revenue,CAHD,North - Community based support,Day Care / Social Activities,Camphill Communities Thornbury Limited,1185.60, 11-Jun-2021
1266,Revenue,CAHD,North - Community based support,Other Small Contracts,Camphill Communities Thornbury Limited,1659.84, 11-Jun-2021
1267,Revenue,CAHD,North - Community based support,Supported Living,Camphill Communities Thornbury Limited,1086.80, 11-Jun-2021
1268,Revenue,CAHD,North - Community based support,Day Care / Social Activities,Camphill Communities Thornbury Limited,1185.60, 18-Jun-2021
1269,Revenue,CAHD,North - Community based support,Other Small Contracts,Camphill Communities Thornbury Limited,1645.02, 18-Jun-2021
1270,Revenue,CAHD,North - Community based support,Supported Living,Camphill Communities Thornbury Limited,1091.74, 18-Jun-2021
1271,Revenue,CAHD,North - Community based support,Day Care / Social Activities,Camphill Communities Thornbury Limited,1185.60, 25-Jun-2021
1272,Revenue,CAHD,North - Community based support,Other Small Contracts,Camphill Communities Thornbury Limited,1654.90, 25-Jun-2021
1273,Revenue,CAHD,North - Community based support,Supported Living,Camphill Communities Thornbury Limited,1081.86, 25-Jun-2021
1274,Revenue,CAHD,Central - Commissioned Services,Other Small Contracts,Care 1st Homecare,3066.70, 11-Jun-2021
1275,Revenue,CAHD,Central - Commissioned Services,Other Small Contracts,Care 1st Homecare,3071.25, 11-Jun-2021
1276,Revenue,CAHD,Central - Commissioned Services,Other Small Contracts,Care 1st Homecare,3062.15, 11-Jun-2021
1277,Revenue,CAHD,Central - Commissioned Services,Other Small Contracts,Care 1st Homecare,2579.85, 30-Jun-2021
1278,Revenue,CAHD,Central - Commissioned Services,Other Small Contracts,Care 1st Homecare,3071.25, 30-Jun-2021
1279,Revenue,CAHD,South - Commissioned Services,Other Small Contracts,Care 1st Homecare,3316.66, 30-Jun-2021
1280,Revenue,CAHD,South - Commissioned Services,Other Small Contracts,Care 1st Homecare,2523.44, 07-Jun-2021
1281,Revenue,CAHD,South - Commissioned Services,Other Small Contracts,Care 1st Homecare,2290.88, 01-Jun-2021
1282,Revenue,CAHD,South - Commissioned Services,Other Small Contracts,Care 1st Homecare,4398.34, 03-Jun-2021
1283,Revenue,CAHD,South - Commissioned Services,Other Small Contracts,Care 1st Homecare,5687.68, 07-Jun-2021
1284,Revenue,CAHD,North - Community based support,Supported Living,Care Horizons,5560.28, 01-Jun-2021
1285,Revenue,CAHD,North - Community based support,Supported Living,Care Horizons,5560.28, 29-Jun-2021
1286,Revenue,CAHD,North - Community based support,Supported Living,Care Horizons,5560.28, 01-Jun-2021
1287,Revenue,CAHD,North - Community based support,Supported Living,Care Horizons,5560.28, 29-Jun-2021
1288,Revenue,CAHD,18-25 Year Olds,Other Small Contracts,Care Horizons Limited,161.28, 11-Jun-2021
1289,Revenue,CAHD,Central - Commissioned Services,Other Small Contracts,Care Horizons Limited,5048.71, 11-Jun-2021
1290,Revenue,CAHD,South - Commissioned Services,Other Small Contracts,Care Horizons Limited,700.56, 11-Jun-2021
1291,Revenue,CAHD,North - Community based support,Day Care / Social Activities,Care Horizons Limited,418.32, 11-Jun-2021
1292,Revenue,CAHD,North - Community based support,Other Small Contracts,Care Horizons Limited,342.72, 11-Jun-2021
1293,Revenue,CAHD,Younger MH non-res purchasing,Other Small Contracts,Care Horizons Limited,262.08, 11-Jun-2021
1294,Revenue,CAHD,18-25 Year Olds,Other Small Contracts,Care Horizons Limited,161.28, 11-Jun-2021
1295,Revenue,CAHD,Central - Commissioned Services,Other Small Contracts,Care Horizons Limited,4742.42, 11-Jun-2021
1296,Revenue,CAHD,South - Commissioned Services,Other Small Contracts,Care Horizons Limited,624.96, 11-Jun-2021
1297,Revenue,CAHD,South - Commissioned Services,Mentoring,Care Horizons Limited,78.88, 11-Jun-2021
1298,Revenue,CAHD,North - Community based support,Day Care / Social Activities,Care Horizons Limited,413.28, 11-Jun-2021
1299,Revenue,CAHD,North - Community based support,Other Small Contracts,Care Horizons Limited,690.48, 11-Jun-2021
1300,Revenue,CAHD,North - Community based support,Mentoring,Care Horizons Limited,120.96, 11-Jun-2021
1301,Revenue,CAHD,Younger MH non-res purchasing,Other Small Contracts,Care Horizons Limited,267.12, 11-Jun-2021
1302,Revenue,CAHD,18-25 Year Olds,Other Small Contracts,Care Horizons Limited,161.28, 11-Jun-2021
1303,Revenue,CAHD,Central - Commissioned Services,Other Small Contracts,Care Horizons Limited,4484.48, 11-Jun-2021
1304,Revenue,CAHD,South - Commissioned Services,Other Small Contracts,Care Horizons Limited,776.16, 11-Jun-2021
1305,Revenue,CAHD,North - Community based support,Day Care / Social Activities,Care Horizons Limited,423.36, 11-Jun-2021
1306,Revenue,CAHD,North - Community based support,Other Small Contracts,Care Horizons Limited,690.48, 11-Jun-2021
1307,Revenue,CAHD,North - Community based support,Mentoring,Care Horizons Limited,120.96, 11-Jun-2021
1308,Revenue,CAHD,Younger MH non-res purchasing,Other Small Contracts,Care Horizons Limited,262.08, 11-Jun-2021
1309,Revenue,CAHD,18-25 Year Olds,Other Small Contracts,Care Horizons Limited,181.44, 11-Jun-2021
1310,Revenue,CAHD,Central - Commissioned Services,Other Small Contracts,Care Horizons Limited,1974.08, 11-Jun-2021
1311,Revenue,CAHD,Central - Commissioned Services,Supported Living,Care Horizons Limited,80.64, 11-Jun-2021
1312,Revenue,CAHD,South - Commissioned Services,Other Small Contracts,Care Horizons Limited,806.40, 11-Jun-2021
1313,Revenue,CAHD,North - Community based support,Day Care / Social Activities,Care Horizons Limited,428.40, 11-Jun-2021
1314,Revenue,CAHD,North - Community based support,Other Small Contracts,Care Horizons Limited,756.00, 11-Jun-2021
1315,Revenue,CAHD,North - Community based support,Mentoring,Care Horizons Limited,120.96, 11-Jun-2021
1316,Revenue,CAHD,Younger MH non-res purchasing,Other Small Contracts,Care Horizons Limited,268.50, 11-Jun-2021
1317,Revenue,CAHD,18-25 Year Olds,Other Small Contracts,Care Horizons Limited,141.12, 18-Jun-2021
1318,Revenue,CAHD,Central - Commissioned Services,Other Small Contracts,Care Horizons Limited,4368.56, 18-Jun-2021
1319,Revenue,CAHD,South - Commissioned Services,Other Small Contracts,Care Horizons Limited,897.12, 18-Jun-2021
1320,Revenue,CAHD,North - Community based support,Day Care / Social Activities,Care Horizons Limited,423.36, 18-Jun-2021
1321,Revenue,CAHD,North - Community based support,Other Small Contracts,Care Horizons Limited,801.36, 18-Jun-2021
1322,Revenue,CAHD,North - Community based support,Mentoring,Care Horizons Limited,120.96, 18-Jun-2021
1323,Revenue,CAHD,Younger MH non-res purchasing,Other Small Contracts,Care Horizons Limited,303.63, 18-Jun-2021
1324,Revenue,CAHD,18-25 Year Olds,Other Small Contracts,Care Horizons Limited,191.52, 21-Jun-2021
1325,Revenue,CAHD,Central - Commissioned Services,Other Small Contracts,Care Horizons Limited,4259.08, 21-Jun-2021
1326,Revenue,CAHD,South - Commissioned Services,Other Small Contracts,Care Horizons Limited,806.40, 21-Jun-2021
1327,Revenue,CAHD,North - Community based support,Day Care / Social Activities,Care Horizons Limited,423.36, 21-Jun-2021
1328,Revenue,CAHD,North - Community based support,Other Small Contracts,Care Horizons Limited,766.08, 21-Jun-2021
1329,Revenue,CAHD,North - Community based support,Mentoring,Care Horizons Limited,120.96, 21-Jun-2021
1330,Revenue,CAHD,Younger MH non-res purchasing,Other Small Contracts,Care Horizons Limited,282.24, 21-Jun-2021
1331,Revenue,CAHD,Central - Commissioned Services,Other Small Contracts,Carepride Ltd,478.80, 25-Jun-2021
1332,Revenue,CAHD,South - Commissioned Services,Other Small Contracts,Carepride Ltd,75.60, 25-Jun-2021
1333,Revenue,CAHD,North - Community based support,Other Small Contracts,Carepride Ltd,246.96, 25-Jun-2021
1334,Revenue,CAHD,Central - Commissioned Services,Other Small Contracts,Carepride Ltd,524.16, 25-Jun-2021
1335,Revenue,CAHD,South - Commissioned Services,Other Small Contracts,Carepride Ltd,156.24, 25-Jun-2021
1336,Revenue,CAHD,North - Community based support,Other Small Contracts,Carepride Ltd,236.88, 25-Jun-2021
1337,Revenue,CAHD,Central - Commissioned Services,Other Small Contracts,Carepride Ltd,498.96, 25-Jun-2021
1338,Revenue,CAHD,South - Commissioned Services,Other Small Contracts,Carepride Ltd,90.72, 25-Jun-2021
1339,Revenue,CAHD,North - Community based support,Other Small Contracts,Carepride Ltd,236.88, 25-Jun-2021
1340,Revenue,CAHD,Covid - ASC - Infection Control,Grants to Voluntary Bodies,Carepride Ltd,3553.52, 15-Jun-2021
1341,Revenue,CAHD,Supporting People Programme,Grants to Voluntary Bodies,Caring for Communities and People,12256.75, 04-Jun-2021
1342,Revenue,CAHD,CSC - Care Leavers Independent Living,Independent Living,Caring for Communities and People,4116.35, 25-Jun-2021
1343,Revenue,CAHD,CSC - Vinney Green Secure Unit,R & M by Departments,Carlton Services UK Limited,798.00, 02-Jun-2021
1344,Revenue,CAHD,South - Commissioned Services,Legal Fees,Individual,600.00, 25-Jun-2021
1345,Revenue,CAHD,Social Lettings Agency,Rent,Individual,822.73, 21-Jun-2021
1346,Revenue,CAHD,Social Lettings Agency,Fees & Charges Income - General,Individual,-102.84, 21-Jun-2021
1347,Revenue,CAHD,Statemented Support Academies,Other Public Bodies,Castle School Education Trust,530.55, 22-Jun-2021
1348,Revenue,CAHD,Statemented Support Academies,Other Public Bodies,Castle School Education Trust,778.14, 22-Jun-2021
1349,Revenue,CAHD,Statemented Support Academies,Other Public Bodies,Castle School Education Trust,821.50, 22-Jun-2021
1350,Revenue,CAHD,Statemented Support Academies,Other Public Bodies,Castle School Education Trust,672.03, 22-Jun-2021
1351,Revenue,CAHD,Statemented Support Academies,Other Public Bodies,Castle School Education Trust,577.71, 22-Jun-2021
1352,Revenue,CAHD,Statemented Support Academies,Other Public Bodies,Castle School Education Trust,505.08, 22-Jun-2021
1353,Revenue,CAHD,Statemented Support Academies,Other Public Bodies,Castle School Education Trust,613.08, 22-Jun-2021
1354,Revenue,CAHD,Statemented Support Academies,Other Public Bodies,Castle School Education Trust,672.03, 22-Jun-2021
1355,Revenue,CAHD,Statemented Support Academies,Other Public Bodies,Castle School Education Trust,1120.05, 22-Jun-2021
1356,Revenue,CAHD,Statemented Support Academies,Other Public Bodies,Castle School Education Trust,636.66, 22-Jun-2021
1357,Revenue,CAHD,Statemented Support Academies,Other Public Bodies,Castle School Education Trust,589.08, 22-Jun-2021
1358,Revenue,CAHD,Statemented Support Academies,Other Public Bodies,Castle School Education Trust,954.99, 22-Jun-2021
1359,Revenue,CAHD,Statemented Support Academies,Other Public Bodies,Castle School Education Trust,577.71, 22-Jun-2021
1360,Revenue,CAHD,Statemented Support Academies,Other Public Bodies,Castle School Education Trust,1248.33, 22-Jun-2021
1361,Revenue,CAHD,Statemented Support Academies,Other Public Bodies,Castle School Education Trust,624.87, 22-Jun-2021
1362,Revenue,CAHD,Statemented Support Academies,Other Public Bodies,Castle School Education Trust,1190.79, 22-Jun-2021
1363,Revenue,CAHD,Statemented Support Academies,Other Public Bodies,Castle School Education Trust,841.00, 22-Jun-2021
1364,Revenue,CAHD,Statemented Support Academies,Other Public Bodies,Castle School Education Trust,1237.95, 22-Jun-2021
1365,Revenue,CAHD,Statemented Support Academies,Other Public Bodies,Castle School Education Trust,1061.10, 22-Jun-2021
1366,Revenue,CAHD,Statemented Support Academies,Other Public Bodies,Castle School Education Trust,518.76, 22-Jun-2021
1367,Revenue,CAHD,Statemented Support Academies,Other Public Bodies,Castle School Education Trust,577.71, 22-Jun-2021
1368,Revenue,CAHD,Statemented Support Academies,Other Public Bodies,Castle School Education Trust,1143.63, 22-Jun-2021
1369,Revenue,CAHD,Statemented Support Academies,Other Public Bodies,Castle School Education Trust,943.33, 22-Jun-2021
1370,Revenue,CAHD,Statemented Support Academies,Other Public Bodies,Castle School Education Trust,754.25, 22-Jun-2021
1371,Revenue,CAHD,Statemented Support Academies,Other Public Bodies,Castle School Education Trust,1485.54, 22-Jun-2021
1372,Revenue,CAHD,Statemented Support Academies,Other Public Bodies,Castle School Education Trust,1177.50, 22-Jun-2021
1373,Revenue,CAHD,Statemented Support Academies,Other Public Bodies,Castle School Education Trust,888.75, 22-Jun-2021
1374,Revenue,CAHD,Statemented Support Academies,Other Public Bodies,Castle School Education Trust,1261.75, 22-Jun-2021
1375,Revenue,CAHD,Statemented Support Academies,Other Public Bodies,Castle School Education Trust,801.92, 22-Jun-2021
1376,Revenue,CAHD,Statemented Support Academies,Other Public Bodies,Castle School Education Trust,943.17, 22-Jun-2021
1377,Revenue,CAHD,Statemented Support Academies,Other Public Bodies,Castle School Education Trust,1267.50, 22-Jun-2021
1378,Revenue,CAHD,Academy Resource Base Funding,Other Public Bodies,Castle School Education Trust,3287.68, 22-Jun-2021
1379,Revenue,CAHD,Academy Resource Base Funding,Other Public Bodies,Castle School Education Trust,2432.79, 22-Jun-2021
1380,Revenue,CAHD,Academy Resource Base Funding,Other Public Bodies,Castle School Education Trust,1648.03, 22-Jun-2021
1381,Revenue,CAHD,Academy Resource Base Funding,Other Public Bodies,Castle School Education Trust,1648.03, 22-Jun-2021
1382,Revenue,CAHD,Academy Resource Base Funding,Other Public Bodies,Castle School Education Trust,2432.79, 22-Jun-2021
1383,Revenue,CAHD,Academy Resource Base Funding,Other Public Bodies,Castle School Education Trust,1648.03, 22-Jun-2021
1384,Revenue,CAHD,Academy Resource Base Funding,Other Public Bodies,Castle School Education Trust,2432.79, 22-Jun-2021
1385,Revenue,CAHD,Academy Resource Base Funding,Other Public Bodies,Castle School Education Trust,2432.79, 22-Jun-2021
1386,Revenue,CAHD,Academy Resource Base Funding,Other Public Bodies,Castle School Education Trust,1648.03, 22-Jun-2021
1387,Revenue,CAHD,Academy Resource Base Funding,Other Public Bodies,Castle School Education Trust,1648.03, 22-Jun-2021
1388,Revenue,CAHD,Academy Resource Base Funding,Other Public Bodies,Castle School Education Trust,1648.03, 22-Jun-2021
1389,Revenue,CAHD,Academy Resource Base Funding,Other Public Bodies,Castle School Education Trust,1648.03, 22-Jun-2021
1390,Revenue,CAHD,Academy Resource Base Funding,Other Public Bodies,Castle School Education Trust,1648.03, 22-Jun-2021
1391,Revenue,CAHD,Academy Resource Base Funding,Other Public Bodies,Castle School Education Trust,1648.03, 22-Jun-2021
1392,Revenue,CAHD,Academy Resource Base Funding,Other Public Bodies,Castle School Education Trust,1648.03, 22-Jun-2021
1393,Revenue,CAHD,Academy Resource Base Funding,Other Public Bodies,Castle School Education Trust,2118.90, 22-Jun-2021
1394,Revenue,CAHD,Statemented Support Academies,Other Public Bodies,Castle School Education Trust,672.03, 22-Jun-2021
1395,Revenue,CAHD,Statemented Support Academies,Other Public Bodies,Castle School Education Trust,822.50, 22-Jun-2021
1396,Revenue,CAHD,Statemented Support Academies,Other Public Bodies,Castle School Education Trust,872.46, 22-Jun-2021
1397,Revenue,CAHD,Statemented Support Academies,Other Public Bodies,Castle School Education Trust,848.88, 22-Jun-2021
1398,Revenue,CAHD,Statemented Support Academies,Other Public Bodies,Castle School Education Trust,541.58, 22-Jun-2021
1399,Revenue,CAHD,Statemented Support Academies,Other Public Bodies,Castle School Education Trust,723.17, 22-Jun-2021
1400,Revenue,CAHD,Statemented Support Academies,Other Public Bodies,Castle School Education Trust,956.00, 22-Jun-2021
1401,Revenue,CAHD,Statemented Support Academies,Other Public Bodies,Castle School Education Trust,1628.42, 22-Jun-2021
1402,Revenue,CAHD,Statemented Support Academies,Other Public Bodies,Castle School Education Trust,560.17, 22-Jun-2021
1403,Revenue,CAHD,Statemented Support Academies,Other Public Bodies,Castle School Education Trust,630.58, 22-Jun-2021
1404,Revenue,CAHD,Statemented Support Academies,Other Public Bodies,Castle School Education Trust,778.14, 22-Jun-2021
1405,Revenue,CAHD,Statemented Support Academies,Other Public Bodies,Castle School Education Trust,941.58, 22-Jun-2021
1406,Revenue,CAHD,Statemented Support Academies,Other Public Bodies,Castle School Education Trust,613.08, 22-Jun-2021
1407,Revenue,CAHD,Statemented Support Academies,Other Public Bodies,Castle School Educational Turust,1129.92, 22-Jun-2021
1408,Revenue,CAHD,Statemented Support Academies,Other Public Bodies,Castle School Educational Turust,854.00, 22-Jun-2021
1409,Revenue,CAHD,Statemented Support Academies,Other Public Bodies,Castle School Educational Turust,790.58, 22-Jun-2021
1410,Revenue,CAHD,Statemented Support Academies,Other Public Bodies,Castle School Educational Turust,508.67, 22-Jun-2021
1411,Revenue,CAHD,Statemented Support Academies,Other Public Bodies,Castle School Educational Turust,1148.20, 22-Jun-2021
1412,Revenue,CAHD,Statemented Support Academies,Other Public Bodies,Castle School Educational Turust,1097.25, 22-Jun-2021
1413,Revenue,CAHD,Statemented Support Academies,Other Public Bodies,Castle School Educational Turust,580.67, 22-Jun-2021
1414,Revenue,CAHD,Statemented Support Academies,Other Public Bodies,Castle School Educational Turust,925.08, 22-Jun-2021
1415,Revenue,CAHD,Social Lettings Agency,Rent,Individual,658.30, 01-Jun-2021
1416,Revenue,CAHD,Social Lettings Agency,Fees & Charges Income - General,Individual,-52.66, 01-Jun-2021
1417,Revenue,CAHD,North - Community based support,Day Care / Social Activities,Causeway House,2226.72, 01-Jun-2021
1418,Revenue,CAHD,North - Community based support,Day Care / Social Activities,Causeway House,1484.48, 29-Jun-2021
1419,Revenue,CAHD,South - Commissioned Services,Day Care / Social Activities,Causeway House,5481.44, 01-Jun-2021
1420,Revenue,CAHD,South - Commissioned Services,Day Care / Social Activities,Causeway House,5481.44, 29-Jun-2021
1421,Revenue,CAHD,18-25 Year Olds,Day Care / Social Activities,Causeway House,4606.48, 01-Jun-2021
1422,Revenue,CAHD,18-25 Year Olds,Day Care / Social Activities,Causeway House,4606.48, 29-Jun-2021
1423,Revenue,CAHD,Central - Commissioned Services,Day Care / Social Activities,Causeway House,4060.72, 01-Jun-2021
1424,Revenue,CAHD,Central - Commissioned Services,Day Care / Social Activities,Causeway House,4060.72, 29-Jun-2021
1425,Revenue,CAHD,North - Community based support,Day Care / Social Activities,Causeway House,3366.40, 01-Jun-2021
1426,Revenue,CAHD,North - Community based support,Day Care / Social Activities,Causeway House,3366.40, 29-Jun-2021
1427,Revenue,CAHD,North - Community based support,Day Care / Social Activities,Causeway House,5015.32, 01-Jun-2021
1428,Revenue,CAHD,North - Community based support,Day Care / Social Activities,Causeway House,5015.32, 29-Jun-2021
1429,Revenue,CAHD,Central - Commissioned Services,Day Care / Social Activities,Causeway House,3810.84, 01-Jun-2021
1430,Revenue,CAHD,Central - Commissioned Services,Day Care / Social Activities,Causeway House,3810.84, 29-Jun-2021
1431,Revenue,CAHD,North - Community based support,Day Care / Social Activities,Causeway House,3285.96, 01-Jun-2021
1432,Revenue,CAHD,North - Community based support,Day Care / Social Activities,Causeway House,3285.96, 29-Jun-2021
1433,Revenue,CAHD,North - Community based support,Day Care / Social Activities,Causeway House,593.04, 01-Jun-2021
1434,Revenue,CAHD,North - Community based support,Day Care / Social Activities,Causeway House,593.04, 29-Jun-2021
1435,Revenue,CAHD,Central - Commissioned Services,Permanent Residential,Cepen Lodge,2741.48, 01-Jun-2021
1436,Revenue,CAHD,Central - Commissioned Services,Permanent Residential,Cepen Lodge,2741.48, 29-Jun-2021
1437,Revenue,CAHD,South - Commissioned Services,Permanent Residential,Challenge House,2894.80, 01-Jun-2021
1438,Revenue,CAHD,South - Commissioned Services,Permanent Residential,Challenge House,2894.80, 29-Jun-2021
1439,Revenue,CAHD,North - S117,Permanent Residential,Challenge House,2626.16, 01-Jun-2021
1440,Revenue,CAHD,North - S117,Permanent Residential,Challenge House,2626.16, 29-Jun-2021
1441,Revenue,CAHD,North - Community based support,Permanent Residential,Challenge House,2314.96, 01-Jun-2021
1442,Revenue,CAHD,North - Community based support,Permanent Residential,Challenge House,2314.96, 29-Jun-2021
1443,Revenue,CAHD,North - Community based support,Permanent Residential,Challenge House,2902.76, 01-Jun-2021
1444,Revenue,CAHD,North - Community based support,Permanent Residential,Challenge House,2902.76, 29-Jun-2021
1445,Revenue,CAHD,Central - Commissioned Services,Permanent Residential,Challenge House,2452.44, 01-Jun-2021
1446,Revenue,CAHD,Central - Commissioned Services,Permanent Residential,Challenge House,2452.44, 29-Jun-2021
1447,Revenue,CAHD,Central - Commissioned Services,Permanent Residential,Challenge House,2819.84, 01-Jun-2021
1448,Revenue,CAHD,Central - Commissioned Services,Permanent Residential,Challenge House,2819.84, 29-Jun-2021
1449,Revenue,CAHD,North - Community based support,Permanent Residential,Challenge House,2894.76, 01-Jun-2021
1450,Revenue,CAHD,North - Community based support,Permanent Residential,Challenge House,2894.76, 29-Jun-2021
1451,Revenue,CAHD,North - S117,Permanent Nursing,Challenge House,2505.52, 01-Jun-2021
1452,Revenue,CAHD,North - S117,Permanent Nursing,Challenge House,2505.52, 29-Jun-2021
1453,Revenue,CAHD,North - Community based support,Permanent Nursing,Challenge House,2505.52, 01-Jun-2021
1454,Revenue,CAHD,North - Community based support,Permanent Nursing,Challenge House,2505.52, 29-Jun-2021
1455,Revenue,CAHD,North - Community based support,Permanent Nursing,Challenge House,3205.48, 01-Jun-2021
1456,Revenue,CAHD,North - Community based support,Permanent Nursing,Challenge House,3205.48, 29-Jun-2021
1457,Revenue,CAHD,Covid 19- Spend on behalf of NHS,Respite Planned - Nursing,Challenge House,929.14, 01-Jun-2021
1458,Revenue,CAHD,Covid 19- Spend on behalf of NHS,Respite Planned - Nursing,Challenge House,1238.86, 01-Jun-2021
1459,Revenue,CAHD,South Glos Users in South Glos Homes,Permanent Nursing,Challenge House,750.40, 01-Jun-2021
1460,Revenue,CAHD,South Glos Users in South Glos Homes,Permanent Nursing,Challenge House,750.40, 29-Jun-2021
1461,Revenue,CAHD,North - Community based support,Fees & Charges Income - General,Challenge House,504.69, 01-Jun-2021
1462,Revenue,CAHD,South Glos Users in South Glos Homes,Permanent Nursing,Challenge House,750.40, 01-Jun-2021
1463,Revenue,CAHD,South Glos Users in South Glos Homes,Permanent Nursing,Challenge House,750.40, 29-Jun-2021
1464,Revenue,CAHD,North - Community based support,Permanent Nursing,Challenge House,3478.20, 01-Jun-2021
1465,Revenue,CAHD,North - Community based support,Permanent Nursing,Challenge House,3478.20, 29-Jun-2021
1466,Revenue,CAHD,South Glos Users in South Glos Homes,Permanent Nursing,Challenge House,1983.20, 29-Jun-2021
1467,Revenue,CAHD,South Glos Users in South Glos Homes,Permanent Nursing,Challenge House,750.40, 29-Jun-2021
1468,Revenue,CAHD,South Glos Users in South Glos Homes,Permanent Nursing,Challenge House,578.03, 29-Jun-2021
1469,Revenue,CAHD,South Glos Users in South Glos Homes,Permanent Nursing,Challenge House,750.40, 01-Jun-2021
1470,Revenue,CAHD,South Glos Users in South Glos Homes,Permanent Nursing,Challenge House,750.40, 29-Jun-2021
1471,Revenue,CAHD,South - Commissioned Services,Permanent Nursing,Challenge House,3009.56, 01-Jun-2021
1472,Revenue,CAHD,South Glos Users in South Glos Homes,Permanent Nursing,Challenge House,750.40, 01-Jun-2021
1473,Revenue,CAHD,South - Commissioned Services,Permanent Nursing,Challenge House,3009.56, 29-Jun-2021
1474,Revenue,CAHD,South Glos Users in South Glos Homes,Permanent Nursing,Challenge House,750.40, 29-Jun-2021
1475,Revenue,CAHD,North - Community based support,Permanent Nursing,Challenge House,3347.92, 01-Jun-2021
1476,Revenue,CAHD,South Glos Users in South Glos Homes,Permanent Nursing,Challenge House,750.40, 01-Jun-2021
1477,Revenue,CAHD,North - Community based support,Permanent Nursing,Challenge House,3347.92, 29-Jun-2021
1478,Revenue,CAHD,South Glos Users in South Glos Homes,Permanent Nursing,Challenge House,750.40, 29-Jun-2021
1479,Revenue,CAHD,Covid 19- Spend on behalf of NHS,Respite Planned - Nursing,Challenge House,6504.00, 29-Jun-2021
1480,Revenue,CAHD,Covid 19- Spend on behalf of NHS,Respite Planned - Nursing,Challenge House,4336.00, 29-Jun-2021
1481,Revenue,CAHD,Central - Commissioned Services,Respite Planned - Residential,Challenge House,3278.57, 29-Jun-2021
1482,Revenue,CAHD,Covid 19- Spend on behalf of NHS,Respite Planned - Residential,Challenge House,3985.71, 01-Jun-2021
1483,Revenue,CAHD,Covid 19- Spend on behalf of NHS,Respite Planned - Residential,Challenge House,1414.29, 01-Jun-2021
1484,Revenue,CAHD,Covid 19- Spend on behalf of NHS,Respite Planned - Residential,Challenge House,514.29, 29-Jun-2021
1485,Revenue,CAHD,Covid 19- Spend on behalf of NHS,Respite Planned - Residential,Challenge House,4757.14, 01-Jun-2021
1486,Revenue,CAHD,North - Community based support,Permanent Residential,Challenge House,3478.20, 01-Jun-2021
1487,Revenue,CAHD,North - Community based support,Permanent Residential,Challenge House,3478.20, 29-Jun-2021
1488,Revenue,CAHD,South - Commissioned Services,Permanent Residential,Challenge House,3130.40, 01-Jun-2021
1489,Revenue,CAHD,South Glos Users in South Glos Homes,Permanent Nursing,Challenge House,750.40, 01-Jun-2021
1490,Revenue,CAHD,South - Commissioned Services,Permanent Residential,Challenge House,3130.40, 29-Jun-2021
1491,Revenue,CAHD,South Glos Users in South Glos Homes,Permanent Nursing,Challenge House,750.40, 29-Jun-2021
1492,Revenue,CAHD,South Glos Users in South Glos Homes,Permanent Nursing,Challenge House,750.40, 01-Jun-2021
1493,Revenue,CAHD,South Glos Users in South Glos Homes,Permanent Nursing,Challenge House,750.40, 29-Jun-2021
1494,Revenue,CAHD,South Glos Users in South Glos Homes,Permanent Nursing,Challenge House,750.40, 01-Jun-2021
1495,Revenue,CAHD,South Glos Users in South Glos Homes,Permanent Nursing,Challenge House,750.40, 29-Jun-2021
1496,Revenue,CAHD,South Glos Users in South Glos Homes,Permanent Nursing,Challenge House,750.40, 01-Jun-2021
1497,Revenue,CAHD,South Glos Users in South Glos Homes,Permanent Nursing,Challenge House,750.40, 29-Jun-2021
1498,Revenue,CAHD,North - Community based support,Permanent Nursing,Challenge House,4735.71, 29-Jun-2021
1499,Revenue,CAHD,North - Community based support,Permanent Nursing,Challenge House,3400.00, 29-Jun-2021
1500,Revenue,CAHD,Covid 19- Spend on behalf of NHS,Respite Planned - Nursing,Challenge House,2477.71, 01-Jun-2021
1501,Revenue,CAHD,Central - Commissioned Services,Respite Planned - Residential,Challenge House,3122.58, 29-Jun-2021
1502,Revenue,CAHD,South Glos Users in South Glos Homes,Permanent Nursing,Challenge House,750.40, 01-Jun-2021
1503,Revenue,CAHD,South Glos Users in South Glos Homes,Permanent Nursing,Challenge House,750.40, 29-Jun-2021
1504,Revenue,CAHD,South Glos Users in South Glos Homes,Permanent Nursing,Challenge House,750.40, 01-Jun-2021
1505,Revenue,CAHD,South Glos Users in South Glos Homes,Permanent Nursing,Challenge House,750.40, 29-Jun-2021
1506,Revenue,CAHD,South - Commissioned Services,Permanent Residential,Challenge House,3400.00, 01-Jun-2021
1507,Revenue,CAHD,South - Commissioned Services,Permanent Residential,Challenge House,2550.00, 01-Jun-2021
1508,Revenue,CAHD,South - Commissioned Services,Permanent Residential,Challenge House,3400.00, 29-Jun-2021
1509,Revenue,CAHD,North - Community based support,Permanent Residential,Challenge House,4750.00, 01-Jun-2021
1510,Revenue,CAHD,North - Community based support,Permanent Residential,Challenge House,3800.00, 01-Jun-2021
1511,Revenue,CAHD,North - Community based support,Permanent Residential,Challenge House,3800.00, 29-Jun-2021
1512,Revenue,CAHD,South Glos Users in South Glos Homes,Permanent Nursing,Challenge House,750.40, 01-Jun-2021
1513,Revenue,CAHD,South Glos Users in South Glos Homes,Permanent Nursing,Challenge House,750.40, 29-Jun-2021
1514,Revenue,CAHD,South Glos Users in South Glos Homes,Permanent Nursing,Challenge House,750.40, 01-Jun-2021
1515,Revenue,CAHD,South Glos Users in South Glos Homes,Permanent Nursing,Challenge House,750.40, 29-Jun-2021
1516,Revenue,CAHD,Central - Commissioned Services,Permanent Residential,Challenge House,2550.00, 01-Jun-2021
1517,Revenue,CAHD,South - Commissioned Services,Permanent Residential,Challenge House,3600.00, 01-Jun-2021
1518,Revenue,CAHD,South - Commissioned Services,Permanent Residential,Challenge House,1671.43, 01-Jun-2021
1519,Revenue,CAHD,South - Commissioned Services,Permanent Residential,Challenge House,5271.43, 29-Jun-2021
1520,Revenue,CAHD,South - Commissioned Services,Permanent Residential,Challenge House,3600.00, 29-Jun-2021
1521,Revenue,CAHD,South - Commissioned Services,Fees & Charges Income - General,Challenge House,869.71, 29-Jun-2021
1522,Revenue,CAHD,South Glos Users in South Glos Homes,Permanent Nursing,Challenge House,2023.12, 29-Jun-2021
1523,Revenue,CAHD,Covid 19- Spend on behalf of NHS,Respite Planned - Residential,Challenge House,3342.86, 01-Jun-2021
1524,Revenue,CAHD,Covid 19- Spend on behalf of NHS,Respite Planned - Residential,Challenge House,2185.71, 01-Jun-2021
1525,Revenue,CAHD,South Glos Users in South Glos Homes,Permanent Nursing,Challenge House,750.40, 01-Jun-2021
1526,Revenue,CAHD,South Glos Users in South Glos Homes,Permanent Nursing,Challenge House,750.40, 29-Jun-2021
1527,Revenue,CAHD,North - Community based support,Permanent Nursing,Challenge House,2950.40, 01-Jun-2021
1528,Revenue,CAHD,South Glos Users in South Glos Homes,Permanent Nursing,Challenge House,750.40, 01-Jun-2021
1529,Revenue,CAHD,North - Community based support,Permanent Nursing,Challenge House,2950.40, 29-Jun-2021
1530,Revenue,CAHD,South Glos Users in South Glos Homes,Permanent Nursing,Challenge House,750.40, 29-Jun-2021
1531,Revenue,CAHD,North - Community based support,Permanent Nursing,Challenge House,3318.20, 01-Jun-2021
1532,Revenue,CAHD,South Glos Users in South Glos Homes,Permanent Nursing,Challenge House,750.40, 01-Jun-2021
1533,Revenue,CAHD,North - Community based support,Permanent Nursing,Challenge House,3318.20, 29-Jun-2021
1534,Revenue,CAHD,South Glos Users in South Glos Homes,Permanent Nursing,Challenge House,750.40, 29-Jun-2021
1535,Revenue,CAHD,Central - Commissioned Services,Respite Emergency - Residential,Challenge House,4500.00, 01-Jun-2021
1536,Revenue,CAHD,Central - Commissioned Services,Respite Emergency - Residential,Challenge House,900.00, 01-Jun-2021
1537,Revenue,CAHD,North - Community based support,Permanent Nursing,Challenge House,3483.92, 01-Jun-2021
1538,Revenue,CAHD,South Glos Users in South Glos Homes,Permanent Nursing,Challenge House,750.40, 01-Jun-2021
1539,Revenue,CAHD,North - Community based support,Permanent Nursing,Challenge House,3483.92, 29-Jun-2021
1540,Revenue,CAHD,South Glos Users in South Glos Homes,Permanent Nursing,Challenge House,750.40, 29-Jun-2021
1541,Revenue,CAHD,North - Community based support,Permanent Residential,Challenge House,3193.00, 01-Jun-2021
1542,Revenue,CAHD,South Glos Users in South Glos Homes,Permanent Nursing,Challenge House,750.40, 01-Jun-2021
1543,Revenue,CAHD,North - Community based support,Permanent Residential,Challenge House,3193.00, 29-Jun-2021
1544,Revenue,CAHD,South Glos Users in South Glos Homes,Permanent Nursing,Challenge House,750.40, 29-Jun-2021
1545,Revenue,CAHD,North - Community based support,Permanent Nursing,Challenge House,2950.40, 01-Jun-2021
1546,Revenue,CAHD,South Glos Users in South Glos Homes,Permanent Nursing,Challenge House,750.40, 01-Jun-2021
1547,Revenue,CAHD,North - Community based support,Permanent Nursing,Challenge House,2950.40, 29-Jun-2021
1548,Revenue,CAHD,South Glos Users in South Glos Homes,Permanent Nursing,Challenge House,750.40, 29-Jun-2021
1549,Revenue,CAHD,South Glos Users in South Glos Homes,Permanent Nursing,Challenge House,750.40, 01-Jun-2021
1550,Revenue,CAHD,South Glos Users in South Glos Homes,Permanent Nursing,Challenge House,750.40, 29-Jun-2021
1551,Revenue,CAHD,Central - Commissioned Services,Permanent Nursing,Challenge House,2490.00, 01-Jun-2021
1552,Revenue,CAHD,Central - Commissioned Services,Permanent Nursing,Challenge House,2490.00, 29-Jun-2021
1553,Revenue,CAHD,North - Community based support,Permanent Residential,Challenge House,2254.00, 01-Jun-2021
1554,Revenue,CAHD,North - Community based support,Permanent Residential,Challenge House,2254.00, 29-Jun-2021
1555,Revenue,CAHD,Central - Commissioned Services,Permanent Nursing,Challenge House,3885.71, 29-Jun-2021
1556,Revenue,CAHD,Central - Commissioned Services,Permanent Nursing,Challenge House,3200.00, 29-Jun-2021
1557,Revenue,CAHD,Early Years High Needs Support,Other Private Contractors,Charfield Pre-School,616.50, 22-Jun-2021
1558,Revenue,CAHD,Training - Adult Services,Training Expenses,Individual,2100.00, 10-Jun-2021
1559,Revenue,CAHD,Training - Adult Services,Training Expenses,Individual,1450.00, 30-Jun-2021
1560,Revenue,CAHD,Statemented Support Academies,Other Public Bodies,Charlton Wood Primary Academy,702.17, 22-Jun-2021
1561,Revenue,CAHD,Central - Commissioned Services,Other Small Contracts,Cherish Able Care Limited,6573.32, 03-Jun-2021
1562,Revenue,CAHD,South - Commissioned Services,Other Small Contracts,Cherish Able Care Limited,5934.94, 03-Jun-2021
1563,Revenue,CAHD,North - Community based support,Other Small Contracts,Cherish Able Care Limited,711.36, 03-Jun-2021
1564,Revenue,CAHD,Central - Commissioned Services,Other Small Contracts,Cherish Able Care Limited,4198.22, 11-Jun-2021
1565,Revenue,CAHD,South - Commissioned Services,Other Small Contracts,Cherish Able Care Limited,6111.68, 11-Jun-2021
1566,Revenue,CAHD,North - Community based support,Other Small Contracts,Cherish Able Care Limited,657.02, 11-Jun-2021
1567,Revenue,CAHD,Central - Commissioned Services,Other Small Contracts,Cherish Able Care Limited,2237.82, 18-Jun-2021
1568,Revenue,CAHD,South - Commissioned Services,Other Small Contracts,Cherish Able Care Limited,6964.06, 18-Jun-2021
1569,Revenue,CAHD,North - Community based support,Other Small Contracts,Cherish Able Care Limited,691.60, 18-Jun-2021
1570,Revenue,CAHD,Central - Commissioned Services,Other Small Contracts,Cherish Able Care Limited,2267.46, 21-Jun-2021
1571,Revenue,CAHD,South - Commissioned Services,Other Small Contracts,Cherish Able Care Limited,8459.08, 21-Jun-2021
1572,Revenue,CAHD,North - Community based support,Other Small Contracts,Cherish Able Care Limited,661.96, 21-Jun-2021
1573,Revenue,CAHD,Central - Commissioned Services,Other Small Contracts,Cherish Able Care Limited,2223.00, 29-Jun-2021
1574,Revenue,CAHD,South - Commissioned Services,Other Small Contracts,Cherish Able Care Limited,8499.49, 29-Jun-2021
1575,Revenue,CAHD,North - Community based support,Other Small Contracts,Cherish Able Care Limited,671.84, 29-Jun-2021
1576,Revenue,CAHD,South - Commissioned Services,Other Small Contracts,Cherish Able Care Limited,928.42, 22-Jun-2021
1577,Revenue,CAHD,18-25 Year Olds,Other Small Contracts,Cherry Orchards,1468.32, 04-Jun-2021
1578,Revenue,CAHD,18-25 Year Olds,Other Small Contracts,Cherry Orchards,1601.20, 29-Jun-2021
1579,Revenue,CAHD,South - Commissioned Services,Other Small Contracts,Cherry Orchards,6491.52, 07-Jun-2021
1580,Revenue,CAHD,Central - Commissioned Services,Other Small Contracts,Cherry Orchards,1787.10, 04-Jun-2021
1581,Revenue,CAHD,North - Community based support,Other Small Contracts,Cherry Orchards,664.80, 04-Jun-2021
1582,Revenue,CAHD,North - Community based support,Other Small Contracts,Cherry Orchards,750.88, 14-Jun-2021
1583,Revenue,CAHD,Younger MH non-res purchasing,Other Small Contracts,Cherry Orchards,711.34, 09-Jun-2021
1584,Revenue,CAHD,South - Commissioned Services,Supported Living,Cherry Orchards,1800.05, 29-Jun-2021
1585,Revenue,CAHD,South - Commissioned Services,Supported Living,Cherry Orchards,2098.16, 29-Jun-2021
1586,Revenue,CAHD,South - Commissioned Services,Supported Living,Cherry Orchards,1049.08, 29-Jun-2021
1587,Revenue,CAHD,Younger MH non-res purchasing,Supported Living,Cherry Orchards,1958.12, 01-Jun-2021
1588,Revenue,CAHD,Younger MH non-res purchasing,Supported Living,Cherry Orchards,1958.12, 29-Jun-2021
1589,Revenue,CAHD,Central - Commissioned Services,Supported Living,Cherry Orchards,2367.92, 01-Jun-2021
1590,Revenue,CAHD,Central - Commissioned Services,Supported Living,Cherry Orchards,2367.92, 29-Jun-2021
1591,Revenue,CAHD,18-25 Year Olds,Supported Living,Cherry Orchards,2077.24, 01-Jun-2021
1592,Revenue,CAHD,18-25 Year Olds,Supported Living,Cherry Orchards,2077.24, 29-Jun-2021
1593,Revenue,CAHD,North - Community based support,Supported Living,Cherry Orchards,1066.96, 01-Jun-2021
1594,Revenue,CAHD,North - Community based support,Supported Living,Cherry Orchards,1066.96, 29-Jun-2021
1595,Revenue,CAHD,Younger MH non-res purchasing,Supported Living,Cherry Orchards,5517.18, 01-Jun-2021
1596,Revenue,CAHD,Younger MH non-res purchasing,Supported Living,Cherry Orchards,2649.25, 01-Jun-2021
1597,Revenue,CAHD,S28A cases,Permanent Residential,Chescombe Trust Ltd,10188.80, 01-Jun-2021
1598,Revenue,CAHD,S28A cases,Permanent Residential,Chescombe Trust Ltd,10188.80, 29-Jun-2021
1599,Revenue,CAHD,Statemented Support Payments to OLAs,Other L.A.s - General,Chester Park Junior School,1625.17, 22-Jun-2021
1600,Revenue,CAHD,Early Years High Needs Support,Other Private Contractors,Chipping Sodbury Pre School,880.71, 22-Jun-2021
1601,Revenue,CAHD,18-25 Year Olds,Other Small Contracts,Cintre,916.20, 03-Jun-2021
1602,Revenue,CAHD,Central - Commissioned Services,Other Small Contracts,Cintre,203.60, 03-Jun-2021
1603,Revenue,CAHD,South - Commissioned Services,Other Small Contracts,Cintre,1303.04, 03-Jun-2021
1604,Revenue,CAHD,18-25 Year Olds,Other Small Contracts,Cintre,916.20, 03-Jun-2021
1605,Revenue,CAHD,Central - Commissioned Services,Other Small Contracts,Cintre,244.32, 03-Jun-2021
1606,Revenue,CAHD,South - Commissioned Services,Other Small Contracts,Cintre,1231.78, 03-Jun-2021
1607,Revenue,CAHD,18-25 Year Olds,Other Small Contracts,Cintre,916.20, 11-Jun-2021
1608,Revenue,CAHD,Central - Commissioned Services,Other Small Contracts,Cintre,244.32, 11-Jun-2021
1609,Revenue,CAHD,South - Commissioned Services,Other Small Contracts,Cintre,1364.12, 11-Jun-2021
1610,Revenue,CAHD,18-25 Year Olds,Other Small Contracts,Cintre,916.20, 18-Jun-2021
1611,Revenue,CAHD,Central - Commissioned Services,Other Small Contracts,Cintre,40.72, 18-Jun-2021
1612,Revenue,CAHD,South - Commissioned Services,Other Small Contracts,Cintre,1353.94, 18-Jun-2021
1613,Revenue,CAHD,18-25 Year Olds,Other Small Contracts,Cintre,916.20, 23-Jun-2021
1614,Revenue,CAHD,Central - Commissioned Services,Other Small Contracts,Cintre,203.60, 23-Jun-2021
1615,Revenue,CAHD,South - Commissioned Services,Other Small Contracts,Cintre,1364.12, 23-Jun-2021
1616,Revenue,CAHD,18-25 Year Olds,Other Small Contracts,Cintre,916.20, 30-Jun-2021
1617,Revenue,CAHD,Central - Commissioned Services,Other Small Contracts,Cintre,162.88, 30-Jun-2021
1618,Revenue,CAHD,South - Commissioned Services,Other Small Contracts,Cintre,1323.40, 30-Jun-2021
1619,Revenue,CAHD,Covid - ASC - Infection Control,Grants to Voluntary Bodies,Cintre,592.25, 25-Jun-2021
1620,Revenue,CAHD,ASC Rapid Testing Fund,Grants to Voluntary Bodies,Cintre,1497.44, 25-Jun-2021
1621,Revenue,CAHD,Learning Difficulties,Premises Hire,Circadian Trust,630.00, 14-Jun-2021
1622,Revenue,CAHD,Learning Difficulties,Premises Hire,Circadian Trust,808.50, 04-Jun-2021
1623,Revenue,CAHD,Learning Difficulties,Premises Hire,Circadian Trust,882.00, 04-Jun-2021
1624,Revenue,CAHD,Information Systems - Software,Software Support & Maintenance,Civica UK Limited,1594.53, 25-Jun-2021
1625,Revenue,CAHD,Research & Conferences,Consultants Fees,Claire Leandro Ltd,550.00, 15-Jun-2021
1626,Revenue,CAHD,North - Community based support,Permanent Residential,Clare House Residential Home,2250.00, 29-Jun-2021
1627,Revenue,CAHD,North - Community based support,Permanent Residential,Clare House Residential Home,1500.00, 29-Jun-2021
1628,Revenue,CAHD,North - Community based support,Permanent Residential,Clare House Residential Home,750.00, 29-Jun-2021
1629,Revenue,CAHD,North - Community based support,Permanent Residential,Clare House Residential Home,750.00, 29-Jun-2021
1630,Revenue,CAHD,Placements OLA Special Schools and RB,Other L.A.s - General,Claremont School,1917.51, 22-Jun-2021
1631,Revenue,CAHD,Placements OLA Special Schools and RB,Other L.A.s - General,Claremont School,625.16, 22-Jun-2021
1632,Revenue,CAHD,Placements OLA Special Schools and RB,Other L.A.s - General,Claremont School,2685.21, 22-Jun-2021
1633,Revenue,CAHD,Placements OLA Special Schools and RB,Other L.A.s - General,Claremont School,625.16, 22-Jun-2021
1634,Revenue,CAHD,Placements OLA Special Schools and RB,Other L.A.s - General,Claremont School,1917.51, 22-Jun-2021
1635,Revenue,CAHD,Placements OLA Special Schools and RB,Other L.A.s - General,Claremont School,625.16, 22-Jun-2021
1636,Revenue,CAHD,Placements OLA Special Schools and RB,Other L.A.s - General,Claremont School,1917.51, 22-Jun-2021
1637,Revenue,CAHD,Placements OLA Special Schools and RB,Other L.A.s - General,Claremont School,625.16, 22-Jun-2021
1638,Revenue,CAHD,Placements OLA Special Schools and RB,Other L.A.s - General,Claremont School,767.01, 22-Jun-2021
1639,Revenue,CAHD,Placements OLA Special Schools and RB,Other L.A.s - General,Claremont School,2685.21, 22-Jun-2021
1640,Revenue,CAHD,Placements OLA Special Schools and RB,Other L.A.s - General,Claremont School,1917.51, 22-Jun-2021
1641,Revenue,CAHD,Placements OLA Special Schools and RB,Other L.A.s - General,Claremont School,625.16, 22-Jun-2021
1642,Revenue,CAHD,Placements OLA Special Schools and RB,Other L.A.s - General,Claremont School,2685.21, 22-Jun-2021
1643,Revenue,CAHD,Placements OLA Special Schools and RB,Other L.A.s - General,Claremont School,625.16, 22-Jun-2021
1644,Revenue,CAHD,Placements OLA Special Schools and RB,Other L.A.s - General,Claremont School,1534.03, 22-Jun-2021
1645,Revenue,CAHD,Placements OLA Special Schools and RB,Other L.A.s - General,Claremont School,500.10, 22-Jun-2021
1646,Revenue,CAHD,Placements OLA Special Schools and RB,Other L.A.s - General,Claremont School,1917.51, 22-Jun-2021
1647,Revenue,CAHD,Placements OLA Special Schools and RB,Other L.A.s - General,Claremont School,625.16, 22-Jun-2021
1648,Revenue,CAHD,South - Commissioned Services,Permanent Residential,Clearwater Care,56663.27, 29-Jun-2021
1649,Revenue,CAHD,South - Commissioned Services,Permanent Residential,Clearwater Care,17405.10, 29-Jun-2021
1650,Revenue,CAHD,South - Commissioned Services,Permanent Residential,Clearwater Care,14891.03, 29-Jun-2021
1651,Revenue,CAHD,South - Commissioned Services,Fees & Charges Income - General,Clearwater Care,4441.50, 29-Jun-2021
1652,Revenue,CAHD,South - Commissioned Services,Permanent Residential,Cleeve Lodge,3846.60, 01-Jun-2021
1653,Revenue,CAHD,South - Commissioned Services,Permanent Residential,Cleeve Lodge,3846.60, 29-Jun-2021
1654,Revenue,CAHD,South - Commissioned Services,Permanent Residential,Cleeve Lodge,1365.28, 01-Jun-2021
1655,Revenue,CAHD,South - Commissioned Services,Permanent Residential,Cleeve Lodge,1365.28, 29-Jun-2021
1656,Revenue,CAHD,North - S117,Permanent Residential,Cleeve Lodge,3273.60, 01-Jun-2021
1657,Revenue,CAHD,North - S117,Permanent Residential,Cleeve Lodge,3273.60, 29-Jun-2021
1658,Revenue,CAHD,Central - Commissioned Services,Permanent Residential,Cleeve Lodge,3273.60, 01-Jun-2021
1659,Revenue,CAHD,Central - Commissioned Services,Permanent Residential,Cleeve Lodge,3273.60, 29-Jun-2021
1660,Revenue,CAHD,South - Commissioned Services,Permanent Residential,Cleeve Lodge,5626.50, 01-Jun-2021
1661,Revenue,CAHD,South - Commissioned Services,Permanent Residential,Cleeve Lodge,4501.20, 01-Jun-2021
1662,Revenue,CAHD,South - Commissioned Services,Fees & Charges Income - General,Cleeve Lodge,782.97, 01-Jun-2021
1663,Revenue,CAHD,South - Commissioned Services,Permanent Residential,Cleeve Lodge,4501.20, 29-Jun-2021
1664,Revenue,CAHD,North - Community based support,Permanent Residential,Cleeve Lodge,4400.00, 01-Jun-2021
1665,Revenue,CAHD,North - Community based support,Permanent Residential,Cleeve Lodge,4400.00, 29-Jun-2021
1666,Revenue,CAHD,South - Commissioned Services,Permanent Residential,Cleeve Lodge,5115.00, 01-Jun-2021
1667,Revenue,CAHD,South - Commissioned Services,Permanent Residential,Cleeve Lodge,4092.00, 01-Jun-2021
1668,Revenue,CAHD,South - Commissioned Services,Fees & Charges Income - General,Cleeve Lodge,2266.63, 01-Jun-2021
1669,Revenue,CAHD,South - Commissioned Services,Fees & Charges Income - General,Cleeve Lodge,890.08, 29-Jun-2021
1670,Revenue,CAHD,Central - Commissioned Services,Respite Planned - Residential,Cleeve Lodge,2085.71, 01-Jun-2021
1671,Revenue,CAHD,Central - Commissioned Services,Respite Planned - Residential,Cleeve Lodge,853.47, 01-Jun-2021
1672,Revenue,CAHD,South - Commissioned Services,Permanent Residential,Cleeve Lodge,8550.00, 29-Jun-2021
1673,Revenue,CAHD,South - Commissioned Services,Permanent Residential,Cleeve Lodge,3800.00, 29-Jun-2021
1674,Revenue,CAHD,South - Commissioned Services,Fees & Charges Income - General,Cleeve Lodge,3121.43, 29-Jun-2021
1675,Revenue,CAHD,South - Commissioned Services,Fees & Charges Income - General,Cleeve Lodge,2389.77, 29-Jun-2021
1676,Revenue,CAHD,South - Commissioned Services,Permanent Residential,Cleeve Lodge,3800.00, 29-Jun-2021
1677,Revenue,CAHD,South - Commissioned Services,Permanent Nursing,Cleeve Lodge,3273.60, 01-Jun-2021
1678,Revenue,CAHD,South - Commissioned Services,Permanent Nursing,Cleeve Lodge,3273.60, 29-Jun-2021
1679,Revenue,CAHD,South - Commissioned Services,Respite Planned - Residential,Cleeve Lodge,4000.00, 29-Jun-2021
1680,Revenue,CAHD,South - Commissioned Services,Permanent Residential,Cleeve Lodge,3018.76, 01-Jun-2021
1681,Revenue,CAHD,South - Commissioned Services,Permanent Residential,Cleeve Lodge,3018.76, 29-Jun-2021
1682,Revenue,CAHD,South - Commissioned Services,Permanent Residential,Cleeve Lodge,4092.00, 01-Jun-2021
1683,Revenue,CAHD,South - Commissioned Services,Permanent Residential,Cleeve Lodge,4092.00, 29-Jun-2021
1684,Revenue,CAHD,South - Commissioned Services,Permanent Residential,Cleeve Lodge,3069.00, 01-Jun-2021
1685,Revenue,CAHD,South - Commissioned Services,Permanent Residential,Cleeve Lodge,3069.00, 29-Jun-2021
1686,Revenue,CAHD,South - Commissioned Services,Permanent Residential,Cleeve Lodge,4910.40, 01-Jun-2021
1687,Revenue,CAHD,South - Commissioned Services,Permanent Residential,Cleeve Lodge,4910.40, 29-Jun-2021
1688,Revenue,CAHD,CSC - ASYE,Training Expenses,Individual,1000.00, 17-Jun-2021
1689,Revenue,CAHD,Central - Commissioned Services,Other Small Contracts,Clover Health and Home Care Ltd,1125.72, 22-Jun-2021
1690,Revenue,CAHD,Central - Commissioned Services,Other Small Contracts,Clover Health and Home Care Ltd,1157.76, 23-Jun-2021
1691,Revenue,CAHD,Central - Commissioned Services,Other Small Contracts,Clover Health and Home Care Ltd,1190.28, 22-Jun-2021
1692,Revenue,CAHD,Central - Commissioned Services,Other Small Contracts,Clover Health and Home Care Ltd,900.48, 29-Jun-2021
1693,Revenue,CAHD,Central - Commissioned Services,Other Small Contracts,Clover Health and Home Care Ltd,900.48, 30-Jun-2021
1694,Revenue,CAHD,Covid - ASC - Infection Control,Grants to Voluntary Bodies,Clover Health and Home Care Ltd,1184.51, 02-Jun-2021
1695,Revenue,CAHD,CSC - Vinney Green Secure Unit,Service Contracts (Premises),Clover Technical Services,1633.00, 25-Jun-2021
1696,Revenue,CAHD,South - Commissioned Services,Permanent Residential,Collingwood Care Home,7650.00, 29-Jun-2021
1697,Revenue,CAHD,South - Commissioned Services,Fees & Charges Income - General,Collingwood Care Home,900.00, 29-Jun-2021
1698,Revenue,CAHD,South - Commissioned Services,Permanent Residential,Collingwood Care Home,3400.00, 29-Jun-2021
1699,Revenue,CAHD,South - Commissioned Services,Permanent Residential,Collingwood Care Home,2064.29, 29-Jun-2021
1700,Revenue,CAHD,South - Commissioned Services,Fees & Charges Income - General,Collingwood Care Home,1680.57, 29-Jun-2021
1701,Revenue,CAHD,South - Commissioned Services,Fees & Charges Income - General,Collingwood Care Home,742.86, 29-Jun-2021
1702,Revenue,CAHD,North - Community based support,Permanent Residential,Collingwood Care Home,3069.00, 01-Jun-2021
1703,Revenue,CAHD,North - Community based support,Permanent Residential,Collingwood Care Home,3069.00, 29-Jun-2021
1704,Revenue,CAHD,South - Commissioned Services,Permanent Residential,Collingwood Care Home,7650.00, 29-Jun-2021
1705,Revenue,CAHD,South - Commissioned Services,Permanent Residential,Collingwood Care Home,4128.58, 29-Jun-2021
1706,Revenue,CAHD,South - Commissioned Services,Permanent Residential,Collingwood Care Home,3400.00, 29-Jun-2021
1707,Revenue,CAHD,South - Commissioned Services,Fees & Charges Income - General,Collingwood Care Home,699.29, 29-Jun-2021
1708,Revenue,CAHD,South - Commissioned Services,Permanent Residential,Community Theraputic Services,7776.36, 01-Jun-2021
1709,Revenue,CAHD,Jointly Funded H&SC Packages,Permanent Residential,Community Theraputic Services,4992.88, 01-Jun-2021
1710,Revenue,CAHD,South - Commissioned Services,Permanent Residential,Community Theraputic Services,7776.36, 29-Jun-2021
1711,Revenue,CAHD,Jointly Funded H&SC Packages,Permanent Residential,Community Theraputic Services,4992.88, 29-Jun-2021
1712,Revenue,CAHD,North - Community based support,Permanent Residential,Community Theraputic Services,8071.08, 01-Jun-2021
1713,Revenue,CAHD,Jointly Funded H&SC Packages,Permanent Residential,Community Theraputic Services,2076.20, 01-Jun-2021
1714,Revenue,CAHD,North - Community based support,Permanent Residential,Community Theraputic Services,8071.08, 29-Jun-2021
1715,Revenue,CAHD,Jointly Funded H&SC Packages,Permanent Residential,Community Theraputic Services,2076.20, 29-Jun-2021
1716,Revenue,CAHD,CSC - Vinney Green Secure Unit,Service Contracts (Premises),Complete Weed Control (North Wessex) Ltd,622.00, 30-Jun-2021
1717,Revenue,CAHD,CSC - Vinney Green Secure Unit,Service Contracts (Premises),Complete Weed Control (North Wessex) Ltd,622.00, 30-Jun-2021
1718,Revenue,CAHD,Statemented Support Equipment,Educational Supplies & Equipment,Connevans Limited,1557.25, 04-Jun-2021
1719,Revenue,CAHD,Statemented Support Equipment,Educational Supplies & Equipment,Connevans Limited,557.25, 24-Jun-2021
1720,Revenue,CAHD,Bed and Breakfast,Bed & Breakfast,Connolly & Callaghan Limited,686.70, 25-Jun-2021
1721,Revenue,CAHD,Bed and Breakfast,Bed & Breakfast,Connolly & Callaghan Limited,719.60, 24-Jun-2021
1722,Revenue,CAHD,Bed and Breakfast,Bed & Breakfast,Connolly & Callaghan Limited,422.80, 25-Jun-2021
1723,Revenue,CAHD,Bed and Breakfast,Bed & Breakfast,Connolly & Callaghan Limited,593.60, 25-Jun-2021
1724,Revenue,CAHD,Bed and Breakfast,Bed & Breakfast,Connolly & Callaghan Limited,548.80, 24-Jun-2021
1725,Revenue,CAHD,Bed and Breakfast,Bed & Breakfast,Connolly & Callaghan Limited,807.10, 25-Jun-2021
1726,Revenue,CAHD,Bed and Breakfast,Bed & Breakfast,Connolly & Callaghan Limited,686.70, 08-Jun-2021
1727,Revenue,CAHD,Bed and Breakfast,Bed & Breakfast,Connolly & Callaghan Limited,719.60, 08-Jun-2021
1728,Revenue,CAHD,Bed and Breakfast,Bed & Breakfast,Connolly & Callaghan Limited,422.80, 08-Jun-2021
1729,Revenue,CAHD,Bed and Breakfast,Bed & Breakfast,Connolly & Callaghan Limited,422.80, 08-Jun-2021
1730,Revenue,CAHD,Bed and Breakfast,Bed & Breakfast,Connolly & Callaghan Limited,593.60, 08-Jun-2021
1731,Revenue,CAHD,Bed and Breakfast,Bed & Breakfast,Connolly & Callaghan Limited,548.80, 08-Jun-2021
1732,Revenue,CAHD,Bed and Breakfast,Bed & Breakfast,Connolly & Callaghan Limited,807.10, 08-Jun-2021
1733,Revenue,CAHD,Bed and Breakfast,Bed & Breakfast,Connolly & Callaghan Limited,686.70, 18-Jun-2021
1734,Revenue,CAHD,Bed and Breakfast,Bed & Breakfast,Connolly & Callaghan Limited,719.60, 16-Jun-2021
1735,Revenue,CAHD,Bed and Breakfast,Bed & Breakfast,Connolly & Callaghan Limited,422.80, 14-Jun-2021
1736,Revenue,CAHD,Bed and Breakfast,Bed & Breakfast,Connolly & Callaghan Limited,422.80, 15-Jun-2021
1737,Revenue,CAHD,Bed and Breakfast,Bed & Breakfast,Connolly & Callaghan Limited,593.60, 25-Jun-2021
1738,Revenue,CAHD,Bed and Breakfast,Bed & Breakfast,Connolly & Callaghan Limited,548.80, 16-Jun-2021
1739,Revenue,CAHD,Bed and Breakfast,Bed & Breakfast,Connolly & Callaghan Limited,807.10, 18-Jun-2021
1740,Revenue,CAHD,Bed and Breakfast,Bed & Breakfast,Connolly & Callaghan Limited,422.80, 16-Jun-2021
1741,Revenue,CAHD,Bed and Breakfast,Bed & Breakfast,Connolly & Callaghan Limited,686.70, 22-Jun-2021
1742,Revenue,CAHD,Bed and Breakfast,Bed & Breakfast,Connolly & Callaghan Limited,719.60, 22-Jun-2021
1743,Revenue,CAHD,Bed and Breakfast,Bed & Breakfast,Connolly & Callaghan Limited,422.80, 22-Jun-2021
1744,Revenue,CAHD,Bed and Breakfast,Bed & Breakfast,Connolly & Callaghan Limited,422.80, 25-Jun-2021
1745,Revenue,CAHD,Bed and Breakfast,Bed & Breakfast,Connolly & Callaghan Limited,593.60, 25-Jun-2021
1746,Revenue,CAHD,Bed and Breakfast,Bed & Breakfast,Connolly & Callaghan Limited,548.80, 22-Jun-2021
1747,Revenue,CAHD,Bed and Breakfast,Bed & Breakfast,Connolly & Callaghan Limited,807.10, 22-Jun-2021
1748,Revenue,CAHD,Bed and Breakfast,Bed & Breakfast,Connolly & Callaghan Limited,422.80, 22-Jun-2021
1749,Revenue,CAHD,Bed and Breakfast,Bed & Breakfast,Connolly & Callaghan Limited,430.50, 22-Jun-2021
1750,Revenue,CAHD,Bed and Breakfast,Bed & Breakfast,Connolly & Callaghan Limited,686.70, 28-Jun-2021
1751,Revenue,CAHD,Bed and Breakfast,Bed & Breakfast,Connolly & Callaghan Limited,719.60, 25-Jun-2021
1752,Revenue,CAHD,Bed and Breakfast,Bed & Breakfast,Connolly & Callaghan Limited,422.80, 25-Jun-2021
1753,Revenue,CAHD,Bed and Breakfast,Bed & Breakfast,Connolly & Callaghan Limited,422.80, 28-Jun-2021
1754,Revenue,CAHD,Bed and Breakfast,Bed & Breakfast,Connolly & Callaghan Limited,593.60, 28-Jun-2021
1755,Revenue,CAHD,Bed and Breakfast,Bed & Breakfast,Connolly & Callaghan Limited,548.80, 25-Jun-2021
1756,Revenue,CAHD,Bed and Breakfast,Bed & Breakfast,Connolly & Callaghan Limited,807.10, 25-Jun-2021
1757,Revenue,CAHD,Bed and Breakfast,Bed & Breakfast,Connolly & Callaghan Limited,422.80, 25-Jun-2021
1758,Revenue,CAHD,Bed and Breakfast,Bed & Breakfast,Connolly & Callaghan Limited,430.50, 25-Jun-2021
1759,Revenue,CAHD,CSC - Vinney Green Secure Unit,Other Supplies & Services,Coram Voice,2247.50, 11-Jun-2021
